{"text_format":"1","workbook":"xlsx","n_sheets":9,"sheets":["基本情報登録","集計請求書（物品）","集計請求書 (記入例)","内訳明細書①","内訳明細書②","内訳明細書③","内訳明細書④","内訳明細書⑤","内訳明細書（記入例)"],"not_rendered":{"charts":0,"images":0,"macros":1,"external_links":0,"defined_names":8,"comments":1,"pivot_tables":0},"unopened":[],"bounds":{"document_bytes":16777216,"sheet_cells":100000,"rows_first":2000,"rows_last":500,"rows_between":2000,"halvings":0,"cell_chars":16384,"cell_head_chars":4096},"cells_cut":0,"cells_raw":0,"read":"whole","date_system":"1900"}

{"sheet":"基本情報登録","index":0,"n_rows":47,"n_cols":14,"rows_kept":47,"cut":false,"hidden":false,"merged":[[20,0,20,5],[20,15,20,20],[20,7,20,14],[46,0,47,7],[46,8,47,10],[25,0,26,5],[27,0,28,5],[44,0,44,20],[45,0,45,20],[38,0,39,5],[40,0,41,5],[42,0,42,5],[42,6,42,7],[42,8,42,12],[42,13,42,14],[29,10,29,11],[42,15,42,19],[37,0,37,20],[30,0,31,5],[29,7,29,8],[25,6,26,19],[27,6,28,19],[36,0,36,20],[38,6,39,19],[40,6,41,19],[34,0,34,20],[35,0,35,20],[11,0,11,20],[12,0,12,5],[13,0,14,5],[13,6,14,19],[12,6,12,13],[12,14,12,19],[15,7,15,9],[15,11,15,14],[15,15,15,20],[15,0,15,5],[18,6,19,19],[16,0,19,1],[16,2,17,5],[18,2,19,5],[16,6,17,19],[52,0,52,20],[53,0,53,20],[48,0,48,20],[49,0,49,20],[50,0,50,20],[51,0,51,20],[21,0,21,20],[22,0,22,20],[32,0,33,5],[32,6,33,19],[30,6,31,19],[23,0,23,20],[24,0,24,20],[29,12,29,20],[29,0,29,5],[0,0,1,20],[3,0,3,20],[10,0,10,20],[6,0,6,20],[7,0,7,20],[8,0,8,20],[4,0,5,5],[4,6,5,11],[9,0,9,20],[2,0,2,20],[4,12,4,20],[5,12,5,20]]}
["↓請求書に反映されますので、事前に以下の情報を入力してください。↓"]
[]
[]
["①取引先コード"]
["取引先コード（8ケタ）"]
[]
["※取引先コードをお持ちでないお取引先は、下請負基本契約の締結時に発行いたしますので"]
["　お問い合わせください。"]
["※コードをお忘れの場合はお問い合わせください。"]
[]
[]
["②会社名、代表者、郵便番号、住所"]
["会社・支店（商号）"]
["代表者（役職・氏名）"]
[]
["郵便番号",null,null,null,null,null,"〒",null,null,null,"-"]
["住所",null,"市区町村～番地まで"]
[]
[null,null,"建物名"]
[]
["適格請求書発行事業者登録番号",null,null,null,null,null,"T"]
["※会社名（商号）は、株式会社、有限会社等を省略せずにご記入ください。"]
["※支店・営業所の場合は、会社名の右欄に支店・営業所名もご記入下さい。"]
[]
["③振込先銀行口座"]
["銀行名"]
[]
["店名（支店名）"]
[]
["預金種別",null,null,null,null,null,null,"普通",null,null,"当座"]
["口座番号(半角数字）"]
[]
["口座名義人氏名（半角カナ）"]
[]
["※登録口座を変更される場合は、「取引先登録票」での手続きになりますのでお問い合わせください。"]
["※口座名義人氏名は、半角カナでご通帳に記載の名義を正確にご記入ください。例：ｶ)ﾋﾉﾃﾞｴｸﾞﾁ"]
[]
["④連絡先、ご担当者氏名"]
["ご連絡先電話番号(半角数字）"]
[]
["ご連絡先FAX番号(半角数字）"]
[]
["請求書担当者",null,null,null,null,null,"所属",null,null,null,null,null,null,"氏名"]
[]
[]
["⑤請求書に貴社名ゴム印使用の有無"]
["請求書の貴社名欄にゴム印を使用"]

{"sheet":"集計請求書（物品）","index":1,"n_rows":124,"n_cols":43,"rows_kept":124,"cut":false,"hidden":false,"merged":[[50,0,50,20],[50,21,50,22],[96,22,97,24],[54,21,54,22],[52,0,52,20],[53,0,53,20],[54,0,54,20],[111,0,111,20],[111,21,111,22],[111,23,111,27],[51,0,51,20],[51,21,51,22],[51,23,51,27],[51,28,51,34],[51,35,51,36],[51,37,51,42],[56,0,56,22],[57,0,57,22],[55,18,55,19],[55,20,55,22],[55,0,55,17],[116,23,116,27],[103,0,103,20],[104,0,104,20],[109,0,109,20],[110,0,110,20],[113,0,113,20],[100,23,100,27],[114,0,114,20],[115,0,115,20],[116,0,116,20],[100,21,100,22],[101,21,101,22],[102,21,102,22],[103,21,103,22],[104,21,104,22],[105,21,105,22],[105,23,105,27],[102,0,102,20],[100,0,100,20],[101,0,101,20],[112,0,112,20],[112,21,112,22],[112,23,112,27],[7,34,10,36],[7,37,10,37],[7,38,10,42],[56,23,56,25],[57,23,57,27],[55,23,55,27],[56,28,56,34],[57,28,57,34],[56,26,56,27],[41,23,41,27],[42,23,42,27],[43,23,43,27],[47,35,47,36],[42,37,42,42],[43,37,43,42],[44,37,44,42],[53,23,53,27],[34,25,35,25],[13,22,16,24],[13,25,16,25],[50,23,50,27],[50,28,50,34],[50,35,50,36],[50,37,50,42],[52,21,52,22],[53,21,53,22],[41,21,41,22],[42,21,42,22],[43,21,43,22],[44,21,44,22],[45,21,45,22],[46,21,46,22],[47,21,47,22],[48,21,48,22],[49,21,49,22],[47,0,47,20],[48,0,48,20],[49,0,49,20],[17,22,27,24],[17,25,27,25],[11,26,12,27],[11,28,12,28],[11,29,12,31],[28,25,30,25],[31,25,33,25],[49,28,49,34],[17,26,21,42],[39,37,39,42],[40,37,40,42],[37,35,37,36],[37,37,37,42],[37,23,37,27],[37,28,37,34],[34,22,35,24],[7,25,10,25],[11,25,12,25],[41,0,41,20],[42,0,42,20],[43,0,43,20],[44,0,44,20],[45,0,45,20],[46,0,46,20],[3,13,3,15],[33,0,35,4],[28,5,32,9],[7,26,10,33],[22,26,24,40],[25,26,27,40],[28,26,30,42],[39,21,39,22],[40,21,40,22],[37,0,37,20],[38,0,38,20],[39,0,39,20],[40,0,40,20],[37,21,37,22],[38,21,38,22],[38,37,38,42],[31,26,33,42],[34,26,35,33],[13,26,14,42],[15,26,16,42],[7,22,10,24],[11,22,12,24],[28,22,30,24],[31,22,33,24],[108,21,108,22],[109,21,109,22],[110,21,110,22],[56,35,56,42],[57,35,57,42],[46,28,46,34],[47,28,47,34],[1,11,2,28],[13,0,17,4],[19,0,21,4],[34,34,35,42],[22,41,24,42],[25,41,27,42],[22,0,27,4],[1,34,2,40],[14,17,17,19],[7,0,9,13],[7,14,9,17],[22,5,27,12],[28,10,32,20],[33,5,35,20],[22,13,27,20],[13,5,17,16],[28,0,32,4],[54,23,54,27],[44,23,44,27],[45,23,45,27],[123,0,123,42],[121,0,121,42],[122,0,122,42],[120,0,120,42],[63,34,64,40],[58,0,58,42],[59,0,59,42],[65,13,65,15],[60,0,60,42],[63,11,64,28],[61,0,61,42],[75,0,79,4],[75,5,79,16],[75,22,78,24],[75,25,78,25],[75,26,76,42],[69,34,72,36],[69,37,72,37],[69,38,72,42],[106,21,106,22],[107,21,107,22],[42,35,42,36],[38,23,38,27],[39,23,39,27],[40,23,40,27],[48,35,48,36],[48,23,48,27],[38,35,38,36],[39,35,39,36],[40,35,40,36],[41,35,41,36],[48,28,48,34],[38,28,38,34],[39,28,39,34],[40,28,40,34],[44,28,44,34],[45,28,45,34],[46,23,46,27],[47,23,47,27],[73,28,74,28],[73,29,74,31],[43,35,43,36],[44,35,44,36],[45,35,45,36],[46,35,46,36],[55,35,55,42],[49,37,49,42],[52,37,52,42],[53,37,53,42],[54,37,54,42],[49,35,49,36],[52,35,52,36],[53,35,53,36],[54,35,54,36],[45,37,45,42],[46,37,46,42],[47,37,47,42],[48,37,48,42],[54,28,54,34],[55,28,55,34],[52,28,52,34],[53,28,53,34],[41,37,41,42],[90,5,94,9],[90,10,94,20],[90,22,92,24],[90,25,92,25],[90,26,92,42],[93,22,95,24],[93,25,95,25],[93,26,95,42],[69,0,71,13],[69,14,71,17],[69,22,72,24],[69,25,72,25],[69,26,72,33],[49,23,49,27],[52,23,52,27],[41,28,41,34],[42,28,42,34],[43,28,43,34],[95,0,97,4],[95,5,97,20],[84,41,86,42],[87,26,89,40],[87,41,89,42],[79,22,89,24],[79,26,83,42],[99,28,99,34],[99,35,99,36],[99,37,99,42],[99,0,99,20],[99,21,99,22],[76,17,79,19],[77,26,78,42],[79,25,89,25],[81,0,83,4],[84,0,89,4],[84,5,89,12],[84,13,89,20],[84,26,86,40],[96,34,97,42],[90,0,94,4],[96,25,97,25],[96,26,97,33],[100,28,100,34],[100,35,100,36],[100,37,100,42],[103,28,103,34],[103,35,103,36],[103,37,103,42],[104,23,104,27],[104,28,104,34],[104,35,104,36],[104,37,104,42],[101,23,101,27],[101,28,101,34],[101,35,101,36],[101,37,101,42],[102,23,102,27],[102,28,102,34],[102,35,102,36],[102,37,102,42],[113,23,113,27],[113,28,113,34],[113,35,113,36],[113,37,113,42],[114,23,114,27],[114,28,114,34],[114,35,114,36],[114,37,114,42],[105,28,105,34],[105,35,105,36],[105,37,105,42],[106,23,106,27],[106,28,106,34],[106,35,106,36],[106,37,106,42],[111,28,111,34],[111,35,111,36],[111,37,111,42],[112,28,112,34],[112,35,112,36],[112,37,112,42],[107,35,107,36],[107,37,107,42],[108,23,108,27],[108,28,108,34],[108,35,108,36],[108,37,108,42],[110,28,110,34],[110,35,110,36],[110,37,110,42],[117,23,117,27],[117,28,117,34],[117,35,117,42],[118,0,118,22],[118,23,118,25],[118,26,118,27],[118,28,118,34],[118,35,118,42],[107,0,107,20],[108,0,108,20],[117,0,117,17],[117,18,117,19],[117,20,117,22],[116,28,116,34],[116,35,116,36],[116,37,116,42],[109,28,109,34],[109,35,109,36],[109,37,109,42],[110,23,110,27],[115,28,115,34],[115,35,115,36],[115,37,115,42],[107,28,107,34],[119,0,119,22],[119,23,119,27],[119,28,119,34],[119,35,119,42],[113,21,113,22],[114,21,114,22],[115,21,115,22],[116,21,116,22],[3,21,3,22],[3,24,3,25],[3,16,3,19],[65,16,65,19],[65,21,65,22],[65,24,65,25],[115,23,115,27],[109,23,109,27],[107,23,107,27],[103,23,103,27],[99,23,99,27],[73,22,74,24],[73,25,74,25],[73,26,74,27],[105,0,105,20],[106,0,106,20]]}
[]
[null,null,null,null,null,null,null,null,null,null,null,"集 計 請 求 書 (物 品)",null,null,null,null,null,null,null,null,null,null,null,null,null,null,null,null,null,null,null,null,null,null,"【提出用】"]
[]
[null,null,null,null,null,null,null,null,null,null,null,null,null,"(西暦)",null,null,null,null,null,null,"年",null,null,"月",null,null,"日","締"]
[]
[]
[]
["株式会社 日乃出江口",null,null,null,null,null,null,null,null,null,null,null,null,null,"御中",null,null,null,null,null,null,null,"取引先\nコード",null,null,null,{"$f":"IF(基本情報登録!G5=\"\",\"\",基本情報登録!G5)","v":""},null,null,null,null,null,null,null,"登録\n番号",null,null,"T",{"$f":"IF(基本情報登録!H21=\"\",\"\",基本情報登録!H21)","v":""}]
[]
[]
[]
[null,null,null,null,null,null,null,null,null,null,null,null,null,null,null,null,null,null,null,null,null,null,"〒",null,null,null,{"$f":"IF(基本情報登録!I47=\"しない\",基本情報登録!H16,\"\")","v":""},null,{"$f":"IF(基本情報登録!I47=\"しない\",\"-\",\"\")","v":""},{"$f":"IF(基本情報登録!I47=\"しない\",基本情報登録!L16,\"\")","v":""}]
[]
["金額 ￥",null,null,null,null,{"$f":"IF(AC58=\"\",\"\",AC58)","v":""},null,null,null,null,null,null,null,null,null,null,null,null,null,null,null,null,"住　所",null,null,null,{"$f":"IF(基本情報登録!I47=\"しない\",基本情報登録!G17,\"\")","v":""}]
[null,null,null,null,null,null,null,null,null,null,null,null,null,null,null,null,null,"（税込）"]
[null,null,null,null,null,null,null,null,null,null,null,null,null,null,null,null,null,null,null,null,null,null,null,null,null,null,{"$f":"IF(基本情報登録!I47=\"しない\",IF(基本情報登録!G19=\"\",\"\",基本情報登録!G19),\"\")","v":""}]
[]
[null,null,null,null,null,null,null,null,null,null,null,null,null,null,null,null,null,null,null,null,null,null,"法人名\n又は\n氏　名",null,null,null,{"$f":"IF(基本情報登録!I47=\"しない\",IF(基本情報登録!G13=\"\",\"\",基本情報登録!G13),\"\")","v":""}]
[]
["お振込先"]
[]
[]
["取引銀行",null,null,null,null,{"$f":"IF(基本情報登録!G26=\"\",\"\",基本情報登録!G26)","v":""},null,null,null,null,null,null,null,{"$f":"IF(基本情報登録!G28=\"\",\"\",基本情報登録!G28)","v":""},null,null,null,null,null,null,null,null,null,null,null,null,{"$f":"IF(基本情報登録!I47=\"しない\",IF(基本情報登録!O13=\"\",基本情報登録!G14,基本情報登録!O13),\"\")","v":""},null,null,null,null,null,null,null,null,null,null,null,null,null,null,{"$f":"IF(AA26=\"\",\"㊞\",\"\")","v":"㊞"}]
[]
[]
[null,null,null,null,null,null,null,null,null,null,null,null,null,null,null,null,null,null,null,null,null,null,null,null,null,null,{"$f":"IF(基本情報登録!I47=\"しない\",IF(基本情報登録!G14=\"\",\"\",IF(基本情報登録!O13=\"\",\"\",基本情報登録!G14)),\"\")","v":""},null,null,null,null,null,null,null,null,null,null,null,null,null,null,{"$f":"IF(AA26=\"\",\"\",\"㊞\")","v":""}]
[]
[]
["口座番号",null,null,null,null,{"$f":"IF(AND(基本情報登録!G30=\"\",基本情報登録!J30=\"\"),\"\",IF(基本情報登録!G30=\"○\",\"普通預金\",\"当座預金\"))","v":""},null,null,null,null,{"$f":"IF(基本情報登録!G31=\"\",\"\",基本情報登録!G31)","v":""},null,null,null,null,null,null,null,null,null,null,null,"ＴＥＬ",null,null,null,{"$f":"IF(基本情報登録!G39=\"\",\"\",基本情報登録!G39)","v":""}]
[]
[]
[null,null,null,null,null,null,null,null,null,null,null,null,null,null,null,null,null,null,null,null,null,null,"ＦＡＸ",null,null,null,{"$f":"IF(基本情報登録!G41=\"\",\"\",基本情報登録!G41)","v":""}]
[]
["口座名義",null,null,null,null,{"$f":"IF(基本情報登録!G33=\"\",\"\",基本情報登録!G33)","v":""}]
[null,null,null,null,null,null,null,null,null,null,null,null,null,null,null,null,null,null,null,null,null,null,"請求書\n担当",null,null,null,{"$f":"IF(基本情報登録!I43=\"\",\"\",基本情報登録!I43)","v":""},null,null,null,null,null,null,null,{"$f":"IF(基本情報登録!P43=\"\",\"\",基本情報登録!P43)","v":""}]
[]
[]
["現 場 名 又 は 納 入 先",null,null,null,null,null,null,null,null,null,null,null,null,null,null,null,null,null,null,null,null,"軽減",null,"日乃出江口\n担当者",null,null,null,null,"金　　額",null,null,null,null,null,null,"照合",null,"備考"]
[]
[]
[]
[]
[]
[]
[]
[]
[]
[]
[]
[]
[]
[]
[]
[]
[]
["　　　　　　　　　　　　　① 売上合計",null,null,null,null,null,null,null,null,null,null,null,null,null,null,null,null,null,{"$f":"IF(X57=\"\",\"\",X57)","v":""},null,"％対象",null,null,null,null,null,null,null,{"$f":"IF(SUM(AC39:AI55)=0,\"\",SUM(AC39:AI55))","v":""}]
["　　　　　　　　　　　　　② 消費税",null,null,null,null,null,null,null,null,null,null,null,null,null,null,null,null,null,null,null,null,null,null,null,null,null,"％",null,{"$f":"IF(AC56=\"\",\"\",TRUNC(AC56*X57/100,))","v":""}]
["　　　　　　　　　　　　　③ 売上合計（税込）",null,null,null,null,null,null,null,null,null,null,null,null,null,null,null,null,null,null,null,null,null,null,"①＋②",null,null,null,null,{"$f":"IF(AC56=\"\",\"\",SUM(AC56:AI57))","v":""}]
["※クリップ止めにして、提出して下さい。"]
["※物品・資材の納入、仮設材・重機車輌等リース料以外のご請求は工事用の集計請求書及び内訳明細書をご使用下さい。"]
["※工事数が多く、枠に収まりきらない場合は、「現場名又は納入先」欄は内訳書枚数＋担当者名でまとめてください。"]
[]
[{"$f":"A1","v":0},0,0,0,0,0,0,0,0,0,0,0,0,0,0,0,0,0,0,0,0,0,0,0,0,0,0,0,0,0,0,0,0,0,0,0,0,0,0,0,0,0,0]
[{"$f":"A2","v":0},0,0,0,0,0,0,0,0,0,0,"集 計 請 求 書 (物 品)",null,null,null,null,null,null,null,null,null,null,null,null,null,null,null,null,null,{"$f":"AD2","v":0},0,0,0,0,"【貴社控】",null,null,null,null,null,null,{"$f":"AP2","v":0},0]
[{"$f":"A3","v":0},0,0,0,0,0,0,0,0,0,0,null,null,null,null,null,null,null,null,null,null,null,null,null,null,null,null,null,null,0,0,0,0,0,null,null,null,null,null,null,null,0,0]
[{"$f":"A4","v":0},0,0,0,0,0,0,0,0,0,0,{"$f":"L4","v":0},null,{"$f":"N4","v":"(西暦)"},null,null,{"$f":"Q4","v":0},null,null,null,"年",{"$f":"V4","v":0},null,"月",{"$f":"Y4","v":0},null,"日","締",{"$f":"AC4","v":0},0,0,0,0,0,{"$f":"AI4","v":0},0,0,0,0,0,0,0,0]
[{"$f":"A5","v":0},0,0,0,0,0,0,0,0,0,0,{"$f":"L5","v":0},{"$f":"M5","v":0},{"$f":"N5","v":0},{"$f":"O5","v":0},0,{"$f":"Q5","v":0},{"$f":"R5","v":0},0,0,0,0,{"$f":"W5","v":0},0,{"$f":"Y5","v":0},{"$f":"Z5","v":0},0,0,{"$f":"AC5","v":0},0,0,0,0,0,0,0,0,0,0,0,0,0,0]
[{"$f":"A6","v":0},0,0,0,0,0,0,0,0,0,0,{"$f":"L6","v":0},{"$f":"M6","v":0},{"$f":"N6","v":0},0,0,{"$f":"Q6","v":0},0,0,0,0,0,0,0,{"$f":"Y6","v":0},0,0,0,{"$f":"AC6","v":0},0,0,0,0,0,0,0,0,0,0,0,0,0,0]
[{"$f":"A7","v":0},0,0,0,0,0,0,0,0,0,0,{"$f":"L7","v":0},{"$f":"M7","v":0},{"$f":"N7","v":0},0,0,{"$f":"Q7","v":0},0,0,0,0,0,0,0,{"$f":"Y7","v":0},0,0,0,{"$f":"AC7","v":0},0,0,0,0,0,0,0,0,0,0,0,0,0,0]
[{"$f":"A8","v":"株式会社 日乃出江口"},null,null,null,null,null,null,null,null,null,null,null,null,null,{"$f":"O8","v":"御中"},null,null,null,{"$f":"S8","v":0},0,0,0,{"$f":"W8","v":"取引先\nコード"},null,null,{"$f":"Z8","v":0},{"$f":"AA8","v":""},null,null,null,null,null,null,null,{"$f":"AI8","v":"登録\n番号"},null,null,{"$f":"AL8","v":"T"},{"$f":"AM8","v":""}]
[null,null,null,null,null,null,null,null,null,null,null,null,null,null,null,null,null,null,0,0,0,0]
[null,null,null,null,null,null,null,null,null,null,null,null,null,null,null,null,null,null,0,0,0,0]
[{"$f":"A11","v":0},0,0,0,0,0,0,0,0,0,0,0,0,0,0,0,0,0,0,0,0,0]
[{"$f":"A12","v":0},0,0,0,0,0,0,0,0,0,0,0,0,0,0,0,0,0,0,0,0,0,{"$f":"W12","v":"〒"},null,null,{"$f":"Z12","v":0},{"$f":"AA12","v":""},null,{"$f":"AC12","v":""},{"$f":"AD12","v":""},null,null,{"$f":"AG12","v":0},0,0,0,0,0,0,0,0,0,0]
[{"$f":"A13","v":0},0,0,0,0,0,0,0,0,0,0,0,0,0,0,0,0,0,0,0,0,0,null,null,null,null,null,null,null,null,null,null,{"$f":"AG13","v":0},0,0,0,0,0,0,0,0,0,0]
[{"$f":"A14","v":"金額 ￥"},null,null,null,null,{"$f":"F14","v":""},null,null,null,null,null,null,null,null,null,null,null,{"$f":"R14","v":0},0,0,0,0,{"$f":"W14","v":"住　所"},null,null,{"$f":"Z14","v":0},{"$f":"AA14","v":""}]
[null,null,null,null,null,null,null,null,null,null,null,null,null,null,null,null,null,{"$f":"R15","v":"（税込）"},null,null,{"$f":"U15","v":0},0]
[null,null,null,null,null,null,null,null,null,null,null,null,null,null,null,null,null,null,null,null,0,0,null,null,null,null,{"$f":"AA16","v":""}]
[null,null,null,null,null,null,null,null,null,null,null,null,null,null,null,null,null,null,null,null,0,0]
[null,null,null,null,null,null,null,null,null,null,null,null,null,null,null,null,null,null,null,null,0,0,{"$f":"W18","v":"法人名\n又は\n氏　名"},null,null,{"$f":"Z18","v":0},{"$f":"AA18","v":""}]
[{"$f":"A19","v":0},0,0,0,0,0,0,0,0,0,0,0,0,0,0,0,0,0,0,0,0,0]
[{"$f":"A20","v":"お振込先"},null,null,null,null,{"$f":"F20","v":0},0,0,0,0,0,0,0,0,0,0,0,0,0,0,0,0]
[null,null,null,null,null,{"$f":"F21","v":0},0,0,0,0,0,0,0,0,0,0,0,0,0,0,0,0]
[null,null,null,null,null,{"$f":"F22","v":0},0,0,0,0,0,0,0,0,0,0,0,0,0,0,0,0]
[{"$f":"A23","v":"取引銀行"},null,null,null,null,{"$f":"F23","v":""},null,null,null,null,null,null,null,{"$f":"N23","v":""},null,null,null,null,null,null,null,0,null,null,null,null,{"$f":"AA23","v":""},null,null,null,null,null,null,null,null,null,null,null,null,null,null,{"$f":"AP23","v":"㊞"}]
[null,null,null,null,null,null,null,null,null,null,null,null,null,null,null,null,null,null,null,null,null,0]
[null,null,null,null,null,null,null,null,null,null,null,null,null,null,null,null,null,null,null,null,null,0]
[null,null,null,null,null,null,null,null,null,null,null,null,null,null,null,null,null,null,null,null,null,0,null,null,null,null,{"$f":"AA26","v":""},null,null,null,null,null,null,null,null,null,null,null,null,null,null,{"$f":"AP26","v":""}]
[null,null,null,null,null,null,null,null,null,null,null,null,null,null,null,null,null,null,null,null,null,0]
[null,null,null,null,null,null,null,null,null,null,null,null,null,null,null,null,null,null,null,null,null,0]
[{"$f":"A29","v":"口座番号"},null,null,null,null,{"$f":"F29","v":""},null,null,null,null,{"$f":"K29","v":""},null,null,null,null,null,null,null,null,null,null,0,{"$f":"W29","v":"ＴＥＬ"},null,null,{"$f":"Z29","v":0},{"$f":"AA29","v":""}]
[null,null,null,null,null,null,null,null,null,null,null,null,null,null,null,null,null,null,null,null,null,0]
[null,null,null,null,null,null,null,null,null,null,null,null,null,null,null,null,null,null,null,null,null,0]
[null,null,null,null,null,null,null,null,null,null,null,null,null,null,null,null,null,null,null,null,null,0,{"$f":"W32","v":"ＦＡＸ"},null,null,{"$f":"Z32","v":0},{"$f":"AA32","v":""}]
[null,null,null,null,null,null,null,null,null,null,null,null,null,null,null,null,null,null,null,null,null,0]
[{"$f":"A34","v":"口座名義"},null,null,null,null,{"$f":"F34","v":""},null,null,null,null,null,null,null,null,null,null,null,null,null,null,null,0]
[null,null,null,null,null,null,null,null,null,null,null,null,null,null,null,null,null,null,null,null,null,0,{"$f":"W35","v":"請求書\n担当"},null,null,{"$f":"Z35","v":0},{"$f":"AA35","v":""},null,null,null,null,null,null,null,{"$f":"AI35","v":""}]
[null,null,null,null,null,null,null,null,null,null,null,null,null,null,null,null,null,null,null,null,null,0]
[{"$f":"A37","v":0},0,0,0,0,0,0,0,0,0,0,0,0,0,0,0,0,0,0,0,0,0,{"$f":"W37","v":0},0,0,0,0,0,0,0,0,0,0,0,0,0,0,0,0,0,0,0,0]
[{"$f":"A38","v":"現 場 名 又 は 納 入 先"},null,null,null,null,null,null,null,null,null,null,null,null,null,null,null,null,null,null,null,null,"軽減",null,{"$f":"X38","v":"日乃出江口\n担当者"},null,null,null,null,{"$f":"AC38","v":"金　　額"},null,null,null,null,null,null,{"$f":"AJ38","v":"照合"},null,{"$f":"AL38","v":"備考"}]
[{"$f":"A39","v":0},null,null,null,null,null,null,null,null,null,null,null,null,null,null,null,null,null,null,null,null,0,null,{"$f":"X39","v":0},null,null,null,null,{"$f":"AC39","v":0},null,null,null,null,null,null,{"$f":"AJ39","v":0},null,{"$f":"AL39","v":0}]
[{"$f":"A40","v":0},null,null,null,null,null,null,null,null,null,null,null,null,null,null,null,null,null,null,null,null,0,null,{"$f":"X40","v":0},null,null,null,null,{"$f":"AC40","v":0},null,null,null,null,null,null,{"$f":"AJ40","v":0},null,{"$f":"AL40","v":0}]
[{"$f":"A41","v":0},null,null,null,null,null,null,null,null,null,null,null,null,null,null,null,null,null,null,null,null,0,null,{"$f":"X41","v":0},null,null,null,null,{"$f":"AC41","v":0},null,null,null,null,null,null,{"$f":"AJ41","v":0},null,{"$f":"AL41","v":0}]
[{"$f":"A42","v":0},null,null,null,null,null,null,null,null,null,null,null,null,null,null,null,null,null,null,null,null,{"$f":"V42","v":0},null,{"$f":"X42","v":0},null,null,null,null,{"$f":"AC42","v":0},null,null,null,null,null,null,{"$f":"AJ42","v":0},null,{"$f":"AL42","v":0}]
[0,null,null,null,null,null,null,null,null,null,null,null,null,null,null,null,null,null,null,null,null,0,null,0,null,null,null,null,0,null,null,null,null,null,null,0,null,0]
[0,null,null,null,null,null,null,null,null,null,null,null,null,null,null,null,null,null,null,null,null,0,null,0,null,null,null,null,0,null,null,null,null,null,null,0,null,0]
[0,null,null,null,null,null,null,null,null,null,null,null,null,null,null,null,null,null,null,null,null,0,null,0,null,null,null,null,0,null,null,null,null,null,null,0,null,0]
[0,null,null,null,null,null,null,null,null,null,null,null,null,null,null,null,null,null,null,null,null,0,null,0,null,null,null,null,0,null,null,null,null,null,null,0,null,0]
[0,null,null,null,null,null,null,null,null,null,null,null,null,null,null,null,null,null,null,null,null,0,null,0,null,null,null,null,0,null,null,null,null,null,null,0,null,0]
[0,null,null,null,null,null,null,null,null,null,null,null,null,null,null,null,null,null,null,null,null,0,null,0,null,null,null,null,0,null,null,null,null,null,null,0,null,0]
[0,null,null,null,null,null,null,null,null,null,null,null,null,null,null,null,null,null,null,null,null,0,null,0,null,null,null,null,0,null,null,null,null,null,null,0,null,0]
[0,null,null,null,null,null,null,null,null,null,null,null,null,null,null,null,null,null,null,null,null,0,null,0,null,null,null,null,0,null,null,null,null,null,null,0,null,0]
[0,null,null,null,null,null,null,null,null,null,null,null,null,null,null,null,null,null,null,null,null,0,null,0,null,null,null,null,0,null,null,null,null,null,null,0,null,0]
[0,null,null,null,null,null,null,null,null,null,null,null,null,null,null,null,null,null,null,null,null,0,null,0,null,null,null,null,0,null,null,null,null,null,null,0,null,0]
[{"$f":"A53","v":0},null,null,null,null,null,null,null,null,null,null,null,null,null,null,null,null,null,null,null,null,0,null,0,null,null,null,null,0,null,null,null,null,null,null,0,null,0]
[0,null,null,null,null,null,null,null,null,null,null,null,null,null,null,null,null,null,null,null,null,0,null,0,null,null,null,null,0,null,null,null,null,null,null,0,null,0]
[{"$f":"A55","v":0},null,null,null,null,null,null,null,null,null,null,null,null,null,null,null,null,null,null,null,null,{"$f":"V55","v":0},null,{"$f":"X55","v":0},null,null,null,null,{"$f":"AC55","v":0},null,null,null,null,null,null,{"$f":"AJ55","v":0},null,{"$f":"AL55","v":0}]
["　　　　　　　　　　　　　① 売上合計",null,null,null,null,null,null,null,null,null,null,null,null,null,null,null,null,null,{"$f":"S56","v":""},null,{"$f":"U56","v":"％対象"},null,null,{"$f":"X56","v":0},null,null,null,null,{"$f":"AC56","v":""},null,null,null,null,null,null,{"$f":"AJ56","v":0}]
["　　　　　　　　　　　　　② 消費税",null,null,null,null,null,null,null,null,null,null,null,null,null,null,null,null,null,null,null,null,null,null,{"$f":"X57","v":0},null,null,{"$f":"AA57","v":"％"},null,{"$f":"AC57","v":""},null,null,null,null,null,null,{"$f":"AJ57","v":0}]
["　　　　　　　　　　　　　③ 売上合計（税込）",null,null,null,null,null,null,null,null,null,null,null,null,null,null,null,null,null,null,null,null,null,null,{"$f":"X58","v":"①＋②"},null,null,null,null,{"$f":"AC58","v":""},null,null,null,null,null,null,{"$f":"AJ58","v":0}]
["※クリップ止めにして、提出して下さい。"]
["※物品・資材の納入、仮設材・重機車輌等リース料以外のご請求は工事用の集計請求書及び内訳明細書をご使用下さい。"]
["※工事数が多く、枠に収まりきらない場合は、「現場名又は納入先」欄は内訳書枚数＋担当者名でまとめてください。"]
[0]

{"sheet":"集計請求書 (記入例)","index":2,"n_rows":123,"n_cols":43,"rows_kept":123,"cut":false,"hidden":false,"merged":[[113,0,113,20],[113,21,113,22],[113,23,113,27],[113,28,113,34],[113,35,113,36],[113,37,113,42],[107,0,107,20],[107,21,107,22],[107,23,107,27],[107,28,107,34],[107,35,107,36],[107,37,107,42],[111,0,111,20],[111,21,111,22],[111,23,111,27],[111,28,111,34],[111,35,111,36],[111,37,111,42],[110,0,110,20],[110,21,110,22],[110,23,110,27],[110,28,110,34],[110,35,110,36],[110,37,110,42],[50,0,50,20],[50,21,50,22],[50,23,50,27],[50,28,50,34],[50,35,50,36],[50,37,50,42],[51,0,51,20],[51,21,51,22],[51,23,51,27],[51,28,51,34],[51,35,51,36],[51,37,51,42],[120,0,120,42],[121,0,121,42],[122,0,122,42],[123,0,123,42],[118,0,118,22],[118,23,118,25],[118,26,118,27],[118,28,118,34],[118,35,118,42],[119,0,119,22],[119,23,119,27],[119,28,119,34],[119,35,119,42],[117,0,117,17],[117,18,117,19],[117,20,117,22],[117,23,117,27],[117,28,117,34],[117,35,117,42],[116,0,116,20],[116,21,116,22],[116,23,116,27],[116,28,116,34],[116,35,116,36],[116,37,116,42],[115,0,115,20],[115,21,115,22],[115,23,115,27],[115,28,115,34],[115,35,115,36],[115,37,115,42],[114,0,114,20],[114,21,114,22],[114,23,114,27],[114,28,114,34],[114,35,114,36],[114,37,114,42],[112,0,112,20],[112,21,112,22],[112,23,112,27],[112,28,112,34],[112,35,112,36],[112,37,112,42],[106,0,106,20],[106,21,106,22],[106,23,106,27],[106,28,106,34],[106,35,106,36],[106,37,106,42],[109,0,109,20],[109,21,109,22],[109,23,109,27],[109,28,109,34],[109,35,109,36],[109,37,109,42],[108,0,108,20],[108,21,108,22],[108,23,108,27],[108,28,108,34],[108,35,108,36],[108,37,108,42],[105,37,105,42],[104,0,104,20],[104,21,104,22],[104,23,104,27],[104,28,104,34],[104,35,104,36],[104,37,104,42],[99,37,99,42],[100,0,100,20],[99,0,99,20],[99,21,99,22],[99,23,99,27],[99,28,99,34],[105,0,105,20],[105,21,105,22],[105,23,105,27],[105,28,105,34],[105,35,105,36],[100,21,100,22],[100,23,100,27],[100,28,100,34],[100,35,100,36],[99,35,99,36],[100,37,100,42],[103,0,103,20],[103,21,103,22],[103,23,103,27],[103,28,103,34],[103,35,103,36],[103,37,103,42],[102,0,102,20],[102,21,102,22],[102,23,102,27],[102,28,102,34],[102,35,102,36],[102,37,102,42],[101,0,101,20],[101,21,101,22],[101,23,101,27],[101,28,101,34],[101,35,101,36],[101,37,101,42],[84,41,86,42],[87,26,89,40],[87,41,89,42],[75,0,79,4],[75,5,79,16],[75,22,78,24],[75,25,78,25],[75,26,76,42],[76,17,79,19],[77,26,78,42],[79,22,89,24],[79,25,89,25],[79,26,83,42],[90,0,94,4],[90,5,94,9],[90,10,94,20],[90,22,92,24],[90,25,92,25],[90,26,92,42],[93,22,95,24],[93,25,95,25],[93,26,95,42],[95,0,97,4],[95,5,97,20],[96,22,97,24],[96,25,97,25],[96,26,97,33],[96,34,97,42],[73,22,74,24],[73,25,74,25],[73,26,74,27],[73,28,74,28],[73,29,74,31],[81,0,83,4],[84,0,89,4],[84,5,89,12],[84,13,89,20],[84,26,86,40],[65,13,65,15],[65,16,65,19],[65,21,65,22],[65,24,65,25],[69,0,71,13],[69,14,71,17],[69,22,72,24],[69,25,72,25],[58,0,58,42],[59,0,59,42],[60,0,60,42],[61,0,61,42],[63,11,64,28],[63,34,64,40],[69,26,72,33],[69,34,72,36],[69,37,72,37],[69,38,72,42],[56,0,56,22],[56,23,56,25],[56,26,56,27],[56,28,56,34],[56,35,56,42],[57,0,57,22],[57,23,57,27],[57,28,57,34],[57,35,57,42],[55,0,55,17],[55,18,55,19],[55,20,55,22],[55,23,55,27],[55,28,55,34],[55,35,55,42],[54,0,54,20],[54,21,54,22],[54,23,54,27],[54,28,54,34],[54,35,54,36],[54,37,54,42],[53,0,53,20],[53,21,53,22],[53,23,53,27],[53,28,53,34],[53,35,53,36],[53,37,53,42],[52,0,52,20],[52,21,52,22],[52,23,52,27],[52,28,52,34],[52,35,52,36],[52,37,52,42],[49,0,49,20],[49,21,49,22],[49,23,49,27],[49,28,49,34],[49,35,49,36],[49,37,49,42],[48,0,48,20],[48,21,48,22],[48,23,48,27],[48,28,48,34],[48,35,48,36],[48,37,48,42],[47,0,47,20],[47,21,47,22],[47,23,47,27],[47,28,47,34],[47,35,47,36],[47,37,47,42],[46,0,46,20],[46,21,46,22],[46,23,46,27],[46,28,46,34],[46,35,46,36],[46,37,46,42],[37,35,37,36],[43,37,43,42],[42,0,42,20],[42,21,42,22],[42,23,42,27],[42,28,42,34],[42,35,42,36],[42,37,42,42],[45,0,45,20],[45,21,45,22],[45,23,45,27],[45,28,45,34],[45,35,45,36],[45,37,45,42],[44,0,44,20],[44,21,44,22],[44,23,44,27],[44,28,44,34],[44,35,44,36],[44,37,44,42],[43,0,43,20],[43,21,43,22],[43,23,43,27],[43,28,43,34],[43,35,43,36],[38,21,38,22],[38,23,38,27],[38,28,38,34],[38,35,38,36],[34,34,35,42],[38,37,38,42],[41,0,41,20],[41,21,41,22],[41,23,41,27],[41,28,41,34],[41,35,41,36],[41,37,41,42],[40,0,40,20],[40,21,40,22],[40,23,40,27],[40,28,40,34],[40,35,40,36],[40,37,40,42],[39,0,39,20],[39,21,39,22],[39,23,39,27],[39,28,39,34],[39,35,39,36],[39,37,39,42],[37,0,37,20],[37,21,37,22],[37,23,37,27],[37,28,37,34],[37,37,37,42],[38,0,38,20],[19,0,21,4],[22,0,27,4],[22,5,27,12],[22,13,27,20],[22,26,24,40],[22,41,24,42],[25,26,27,40],[25,41,27,42],[28,0,32,4],[28,5,32,9],[28,10,32,20],[28,22,30,24],[28,25,30,25],[28,26,30,42],[31,22,33,24],[31,25,33,25],[31,26,33,42],[33,0,35,4],[33,5,35,20],[34,22,35,24],[34,25,35,25],[34,26,35,33],[13,0,17,4],[13,5,17,16],[13,22,16,24],[13,25,16,25],[13,26,14,42],[14,17,17,19],[15,26,16,42],[17,22,27,24],[17,25,27,25],[17,26,21,42],[1,11,2,28],[1,34,2,40],[3,13,3,15],[3,16,3,19],[3,21,3,22],[3,24,3,25],[7,37,10,37],[7,38,10,42],[11,22,12,24],[11,25,12,25],[11,26,12,27],[11,28,12,28],[11,29,12,31],[7,0,9,13],[7,14,9,17],[7,22,10,24],[7,25,10,25],[7,26,10,33],[7,34,10,36]]}
[]
[null,null,null,null,null,null,null,null,null,null,null,"集 計 請 求 書 (物 品)",null,null,null,null,null,null,null,null,null,null,null,null,null,null,null,null,null,null,null,null,null,null,"【提出用】"]
[]
[null,null,null,null,null,null,null,null,null,null,null,null,null,"(西暦)",null,null,2023,null,null,null,"年",9,null,"月",20,null,"日","締"]
[]
[]
[]
["株式会社 日乃出江口",null,null,null,null,null,null,null,null,null,null,null,null,null,"御中",null,null,null,null,null,null,null,"取引先\nコード",null,null,null,12345678,null,null,null,null,null,null,null,"登録\n番号",null,null,"T",1222233334444]
[]
[]
[]
[null,null,null,null,null,null,null,null,null,null,null,null,null,null,null,null,null,null,null,null,null,null,"〒",null,null,null,999,null,"-",9999]
[]
["金額 ￥",null,null,null,null,6075850,null,null,null,null,null,null,null,null,null,null,null,null,null,null,null,null,"住　所",null,null,null,"長岡市花園5丁目5-55"]
[null,null,null,null,null,null,null,null,null,null,null,null,null,null,null,null,null,"（税込）"]
[null,null,null,null,null,null,null,null,null,null,null,null,null,null,null,null,null,null,null,null,null,null,null,null,null,null,"〇〇ビル2階"]
[]
[null,null,null,null,null,null,null,null,null,null,null,null,null,null,null,null,null,null,null,null,null,null,"法人名\n又は\n氏　名",null,null,null,"株式会社××建設"]
[]
["お振込先"]
[]
[]
["取引銀行",null,null,null,null,"〇〇銀行",null,null,null,null,null,null,null,"〇〇支店",null,null,null,null,null,null,null,null,null,null,null,null,"××営業所",null,null,null,null,null,null,null,null,null,null,null,null,null,null,""]
[]
[]
[null,null,null,null,null,null,null,null,null,null,null,null,null,null,null,null,null,null,null,null,null,null,null,null,null,null,"営業所長　△△　△△",null,null,null,null,null,null,null,null,null,null,null,null,null,null,"㊞"]
[]
[]
["口座番号",null,null,null,null,"普通預金",null,null,null,null,1234567,null,null,null,null,null,null,null,null,null,null,null,"ＴＥＬ",null,null,null,"0258-02-5802"]
[]
[]
[null,null,null,null,null,null,null,null,null,null,null,null,null,null,null,null,null,null,null,null,null,null,"ＦＡＸ",null,null,null,"0258-02-5801"]
[]
["口座名義",null,null,null,null,"カ）バツバツケンセツ"]
[null,null,null,null,null,null,null,null,null,null,null,null,null,null,null,null,null,null,null,null,null,null,"請求書\n担当",null,null,null,"総務部経理課",null,null,null,null,null,null,null,"建築　太郎"]
[]
[]
["現 場 名 又 は 納 入 先",null,null,null,null,null,null,null,null,null,null,null,null,null,null,null,null,null,null,null,null,"軽減",null,"日乃出江口\n担当者",null,null,null,null,"金　　額",null,null,null,null,null,null,"照合",null,"備考"]
["〇〇スーパー△△店作業室改修工事",null,null,null,null,null,null,null,null,null,null,null,null,null,null,null,null,null,null,null,null,null,null,"山田様",null,null,null,null,5000000]
["××工場窓修理工事",null,null,null,null,null,null,null,null,null,null,null,null,null,null,null,null,null,null,null,null,null,null,"渡辺様",null,null,null,null,400000]
["□□邸雨樋補修工事",null,null,null,null,null,null,null,null,null,null,null,null,null,null,null,null,null,null,null,null,null,null,"佐藤様",null,null,null,null,45500]
["◇◇駐車場街灯設置工事",null,null,null,null,null,null,null,null,null,null,null,null,null,null,null,null,null,null,null,null,null,null,"山本様",null,null,null,null,78000]
[]
[]
[]
[]
[]
[]
[]
[]
[]
[]
[]
[]
[]
["　　　　　　　　　　　　　① 売上合計",null,null,null,null,null,null,null,null,null,null,null,null,null,null,null,null,null,"10",null,"％対象",null,null,null,null,null,null,null,5523500]
["　　　　　　　　　　　　　② 消費税",null,null,null,null,null,null,null,null,null,null,null,null,null,null,null,null,null,null,null,null,null,null,"10",null,null,"％",null,552350]
["　　　　　　　　　　　　　③ 売上合計（税込）",null,null,null,null,null,null,null,null,null,null,null,null,null,null,null,null,null,null,null,null,null,null,"①＋②",null,null,null,null,6075850]
["※クリップ止めにして、提出して下さい。"]
["※物品・資材の納入、仮設材・重機車輌等リース料以外のご請求は工事用の集計請求書及び内訳明細書をご使用下さい。"]
["※工事数が多く、枠に収まりきらない場合は、「現場名又は納入先」欄は内訳書枚数＋担当者名でまとめてください。"]
[]
[0,0,0,0,0,0,0,0,0,0,0,0,0,0,0,0,0,0,0,0,0,0,0,0,0,0,0,0,0,0,0,0,0,0,0,0,0,0,0,0,0,0,0]
[0,0,0,0,0,0,0,0,0,0,0,"集 計 請 求 書 (物 品)",null,null,null,null,null,null,null,null,null,null,null,null,null,null,null,null,null,0,0,0,0,0,"【貴社控】",null,null,null,null,null,null,0,0]
[0,0,0,0,0,0,0,0,0,0,0,null,null,null,null,null,null,null,null,null,null,null,null,null,null,null,null,null,null,0,0,0,0,0,null,null,null,null,null,null,null,0,0]
[0,0,0,0,0,0,0,0,0,0,0,0,null,"(西暦)",null,null,2023,null,null,null,"年",9,null,"月",20,null,"日","締",0,0,0,0,0,0,0,0,0,0,0,0,0,0,0]
[0,0,0,0,0,0,0,0,0,0,0,0,0,0,0,0,0,0,0,0,0,0,0,0,0,0,0,0,0,0,0,0,0,0,0,0,0,0,0,0,0,0,0]
[0,0,0,0,0,0,0,0,0,0,0,0,0,0,0,0,0,0,0,0,0,0,0,0,0,0,0,0,0,0,0,0,0,0,0,0,0,0,0,0,0,0,0]
[0,0,0,0,0,0,0,0,0,0,0,0,0,0,0,0,0,0,0,0,0,0,0,0,0,0,0,0,0,0,0,0,0,0,0,0,0,0,0,0,0,0,0]
["株式会社 日乃出江口",null,null,null,null,null,null,null,null,null,null,null,null,null,"御中",null,null,null,0,0,0,0,"取引先\nコード",null,null,0,12345678,null,null,null,null,null,null,null,"登録\n番号",null,null,"T",1222233334444]
[null,null,null,null,null,null,null,null,null,null,null,null,null,null,null,null,null,null,0,0,0,0]
[null,null,null,null,null,null,null,null,null,null,null,null,null,null,null,null,null,null,0,0,0,0]
[0,0,0,0,0,0,0,0,0,0,0,0,0,0,0,0,0,0,0,0,0,0]
[0,0,0,0,0,0,0,0,0,0,0,0,0,0,0,0,0,0,0,0,0,0,"〒",null,null,0,999,null,"-",9999,null,null,0,0,0,0,0,0,0,0,0,0,0]
[0,0,0,0,0,0,0,0,0,0,0,0,0,0,0,0,0,0,0,0,0,0,null,null,null,null,null,null,null,null,null,null,0,0,0,0,0,0,0,0,0,0,0]
["金額 ￥",null,null,null,null,6075850,null,null,null,null,null,null,null,null,null,null,null,0,0,0,0,0,"住　所",null,null,0,"長岡市花園5丁目5-55"]
[null,null,null,null,null,null,null,null,null,null,null,null,null,null,null,null,null,"（税込）",null,null,0,0]
[null,null,null,null,null,null,null,null,null,null,null,null,null,null,null,null,null,null,null,null,0,0,null,null,null,null,"〇〇ビル2階"]
[null,null,null,null,null,null,null,null,null,null,null,null,null,null,null,null,null,null,null,null,0,0]
[null,null,null,null,null,null,null,null,null,null,null,null,null,null,null,null,null,null,null,null,0,0,"法人名\n又は\n氏　名",null,null,0,"株式会社××建設"]
[0,0,0,0,0,0,0,0,0,0,0,0,0,0,0,0,0,0,0,0,0,0]
["お振込先",null,null,null,null,0,0,0,0,0,0,0,0,0,0,0,0,0,0,0,0,0]
[null,null,null,null,null,0,0,0,0,0,0,0,0,0,0,0,0,0,0,0,0,0]
[null,null,null,null,null,0,0,0,0,0,0,0,0,0,0,0,0,0,0,0,0,0]
["取引銀行",null,null,null,null,"〇〇銀行",null,null,null,null,null,null,null,"〇〇支店",null,null,null,null,null,null,null,0,null,null,null,null,"××営業所",null,null,null,null,null,null,null,null,null,null,null,null,null,null,""]
[null,null,null,null,null,null,null,null,null,null,null,null,null,null,null,null,null,null,null,null,null,0]
[null,null,null,null,null,null,null,null,null,null,null,null,null,null,null,null,null,null,null,null,null,0]
[null,null,null,null,null,null,null,null,null,null,null,null,null,null,null,null,null,null,null,null,null,0,null,null,null,null,"営業所長　△△　△△",null,null,null,null,null,null,null,null,null,null,null,null,null,null,"㊞"]
[null,null,null,null,null,null,null,null,null,null,null,null,null,null,null,null,null,null,null,null,null,0]
[null,null,null,null,null,null,null,null,null,null,null,null,null,null,null,null,null,null,null,null,null,0]
["口座番号",null,null,null,null,"普通預金",null,null,null,null,1234567,null,null,null,null,null,null,null,null,null,null,0,"ＴＥＬ",null,null,0,"0258-02-5802"]
[null,null,null,null,null,null,null,null,null,null,null,null,null,null,null,null,null,null,null,null,null,0]
[null,null,null,null,null,null,null,null,null,null,null,null,null,null,null,null,null,null,null,null,null,0]
[null,null,null,null,null,null,null,null,null,null,null,null,null,null,null,null,null,null,null,null,null,0,"ＦＡＸ",null,null,0,"0258-02-5801"]
[null,null,null,null,null,null,null,null,null,null,null,null,null,null,null,null,null,null,null,null,null,0]
["口座名義",null,null,null,null,"カ）××ケンセツ",null,null,null,null,null,null,null,null,null,null,null,null,null,null,null,0]
[null,null,null,null,null,null,null,null,null,null,null,null,null,null,null,null,null,null,null,null,null,0,"請求書\n担当",null,null,0,"総務部経理課",null,null,null,null,null,null,null,"建築　太郎"]
[null,null,null,null,null,null,null,null,null,null,null,null,null,null,null,null,null,null,null,null,null,0]
[0,0,0,0,0,0,0,0,0,0,0,0,0,0,0,0,0,0,0,0,0,0,0,0,0,0,0,0,0,0,0,0,0,0,0,0,0,0,0,0,0,0,0]
["現 場 名 又 は 納 入 先",null,null,null,null,null,null,null,null,null,null,null,null,null,null,null,null,null,null,null,null,"軽減",null,"日乃出江口\n担当者",null,null,null,null,"金　　額",null,null,null,null,null,null,"照合",null,"備考"]
["〇〇スーパー△△店作業室改修工事",null,null,null,null,null,null,null,null,null,null,null,null,null,null,null,null,null,null,null,null,0,null,"山田様",null,null,null,null,5000000,null,null,null,null,null,null,0,null,0]
["××工場窓修理工事",null,null,null,null,null,null,null,null,null,null,null,null,null,null,null,null,null,null,null,null,0,null,"渡辺様",null,null,null,null,400000,null,null,null,null,null,null,0,null,0]
["□□邸雨樋補修工事",null,null,null,null,null,null,null,null,null,null,null,null,null,null,null,null,null,null,null,null,0,null,"佐藤様",null,null,null,null,45500,null,null,null,null,null,null,0,null,0]
["◇◇駐車場街灯設置工事",null,null,null,null,null,null,null,null,null,null,null,null,null,null,null,null,null,null,null,null,0,null,"山本様",null,null,null,null,78000,null,null,null,null,null,null,0,null,0]
[0,null,null,null,null,null,null,null,null,null,null,null,null,null,null,null,null,null,null,null,null,0,null,0,null,null,null,null,0,null,null,null,null,null,null,0,null,0]
[0,null,null,null,null,null,null,null,null,null,null,null,null,null,null,null,null,null,null,null,null,0,null,0,null,null,null,null,0,null,null,null,null,null,null,0,null,0]
[0,null,null,null,null,null,null,null,null,null,null,null,null,null,null,null,null,null,null,null,null,0,null,0,null,null,null,null,0,null,null,null,null,null,null,0,null,0]
[0,null,null,null,null,null,null,null,null,null,null,null,null,null,null,null,null,null,null,null,null,0,null,0,null,null,null,null,0,null,null,null,null,null,null,0,null,0]
[0,null,null,null,null,null,null,null,null,null,null,null,null,null,null,null,null,null,null,null,null,0,null,0,null,null,null,null,0,null,null,null,null,null,null,0,null,0]
[0,null,null,null,null,null,null,null,null,null,null,null,null,null,null,null,null,null,null,null,null,0,null,0,null,null,null,null,0,null,null,null,null,null,null,0,null,0]
[null,null,null,null,null,null,null,null,null,null,null,null,null,null,null,null,null,null,null,null,null,null,null,null,null,null,null,null,null,null,null,null,null,null,null,0,null,0]
[null,null,null,null,null,null,null,null,null,null,null,null,null,null,null,null,null,null,null,null,null,null,null,null,null,null,null,null,null,null,null,null,null,null,null,0,null,0]
[0,null,null,null,null,null,null,null,null,null,null,null,null,null,null,null,null,null,null,null,null,0,null,0,null,null,null,null,0,null,null,null,null,null,null,0,null,0]
[0,null,null,null,null,null,null,null,null,null,null,null,null,null,null,null,null,null,null,null,null,0,null,0,null,null,null,null,0,null,null,null,null,null,null,0,null,0]
[0,null,null,null,null,null,null,null,null,null,null,null,null,null,null,null,null,null,null,null,null,0,null,0,null,null,null,null,0,null,null,null,null,null,null,0,null,0]
[0,null,null,null,null,null,null,null,null,null,null,null,null,null,null,null,null,null,null,null,null,0,null,0,null,null,null,null,0,null,null,null,null,null,null,0,null,0]
[0,null,null,null,null,null,null,null,null,null,null,null,null,null,null,null,null,null,null,null,null,0,null,0,null,null,null,null,0,null,null,null,null,null,null,0,null,0]
["　　　　　　　　　　　　　① 売上合計",null,null,null,null,null,null,null,null,null,null,null,null,null,null,null,null,null,"10",null,"％対象",null,null,0,null,null,null,null,5523500,null,null,null,null,null,null,0]
["　　　　　　　　　　　　　② 消費税",null,null,null,null,null,null,null,null,null,null,null,null,null,null,null,null,null,null,null,null,null,null,"10",null,null,"％",null,552350,null,null,null,null,null,null,0]
["　　　　　　　　　　　　　③ 売上合計（税込）",null,null,null,null,null,null,null,null,null,null,null,null,null,null,null,null,null,null,null,null,null,null,"①＋②",null,null,null,null,6075850,null,null,null,null,null,null,0]
["※クリップ止めにして、提出して下さい。"]
["※物品・資材の納入、仮設材・重機車輌等リース料以外のご請求は工事用の集計請求書及び内訳明細書をご使用下さい。"]
["※工事数が多く、枠に収まりきらない場合は、「現場名又は納入先」欄は内訳書枚数＋担当者名でまとめてください。"]

{"sheet":"内訳明細書①","index":3,"n_rows":37,"n_cols":123,"rows_kept":37,"cut":false,"hidden":false,"merged":[[36,0,36,42],[36,43,36,85],[36,86,36,128],[34,0,34,42],[34,43,34,85],[34,86,34,128],[35,0,35,42],[35,43,35,85],[35,86,35,128],[32,119,32,127],[33,0,33,32],[33,33,33,41],[33,43,33,75],[33,76,33,84],[33,86,33,118],[33,119,33,127],[32,68,32,69],[32,70,32,75],[32,76,32,84],[32,86,32,88],[32,89,32,108],[32,109,32,110],[31,119,31,127],[32,0,32,2],[32,3,32,22],[32,23,32,24],[32,25,32,26],[32,27,32,32],[32,33,32,41],[32,43,32,45],[32,46,32,65],[32,66,32,67],[31,76,31,84],[31,86,31,88],[31,89,31,108],[31,109,31,110],[31,111,31,112],[31,113,31,118],[31,33,31,41],[31,43,31,45],[31,46,31,65],[31,66,31,67],[31,68,31,69],[31,70,31,75],[32,111,32,112],[32,113,32,118],[31,0,31,2],[31,3,31,22],[31,23,31,24],[31,25,31,26],[31,27,31,32],[30,46,30,65],[30,66,30,67],[30,68,30,69],[30,70,30,75],[29,119,29,127],[30,0,30,2],[30,3,30,22],[30,23,30,24],[30,25,30,26],[30,27,30,32],[30,33,30,41],[30,43,30,45],[29,68,29,69],[29,70,29,75],[29,76,29,84],[29,86,29,88],[29,89,29,108],[29,109,29,110],[30,89,30,108],[30,109,30,110],[30,111,30,112],[30,113,30,118],[30,119,30,127],[30,76,30,84],[30,86,30,88],[28,119,28,127],[29,0,29,2],[29,3,29,22],[29,23,29,24],[29,25,29,26],[29,27,29,32],[29,33,29,41],[29,43,29,45],[29,46,29,65],[29,66,29,67],[28,76,28,84],[28,86,28,88],[28,89,28,108],[28,109,28,110],[28,111,28,112],[28,113,28,118],[28,33,28,41],[28,43,28,45],[28,46,28,65],[28,66,28,67],[28,68,28,69],[28,70,28,75],[29,111,29,112],[29,113,29,118],[28,0,28,2],[28,3,28,22],[28,23,28,24],[28,25,28,26],[28,27,28,32],[27,46,27,65],[27,66,27,67],[27,68,27,69],[27,70,27,75],[26,119,26,127],[27,0,27,2],[27,3,27,22],[27,23,27,24],[27,25,27,26],[27,27,27,32],[27,33,27,41],[27,43,27,45],[26,68,26,69],[26,70,26,75],[26,76,26,84],[26,86,26,88],[26,89,26,108],[26,109,26,110],[27,89,27,108],[27,109,27,110],[27,111,27,112],[27,113,27,118],[27,119,27,127],[27,76,27,84],[27,86,27,88],[25,119,25,127],[26,0,26,2],[26,3,26,22],[26,23,26,24],[26,25,26,26],[26,27,26,32],[26,33,26,41],[26,43,26,45],[26,46,26,65],[26,66,26,67],[25,76,25,84],[25,86,25,88],[25,89,25,108],[25,109,25,110],[25,111,25,112],[25,113,25,118],[25,33,25,41],[25,43,25,45],[25,46,25,65],[25,66,25,67],[25,68,25,69],[25,70,25,75],[26,111,26,112],[26,113,26,118],[24,86,24,88],[25,0,25,2],[25,3,25,22],[25,23,25,24],[25,25,25,26],[25,27,25,32],[24,46,24,65],[24,66,24,67],[24,68,24,69],[24,70,24,75],[22,68,22,69],[22,70,22,75],[23,111,23,112],[23,113,23,118],[23,119,23,127],[24,0,24,2],[24,3,24,22],[24,23,24,24],[24,25,24,26],[24,27,24,32],[24,33,24,41],[24,43,24,45],[23,68,23,69],[23,70,23,75],[23,76,23,84],[23,86,23,88],[23,89,23,108],[23,109,23,110],[24,89,24,108],[24,109,24,110],[24,111,24,112],[24,113,24,118],[24,119,24,127],[24,76,24,84],[23,0,23,2],[23,3,23,22],[23,23,23,24],[23,25,23,26],[23,27,23,32],[23,33,23,41],[23,43,23,45],[23,46,23,65],[23,66,23,67],[21,113,21,118],[21,119,21,127],[21,76,21,84],[21,86,21,88],[22,0,22,2],[22,3,22,22],[22,23,22,24],[22,25,22,26],[22,27,22,32],[21,46,21,65],[21,66,21,67],[21,68,21,69],[21,70,21,75],[22,119,22,127],[22,76,22,84],[22,86,22,88],[22,89,22,108],[22,109,22,110],[22,111,22,112],[22,113,22,118],[22,33,22,41],[22,43,22,45],[22,46,22,65],[22,66,22,67],[19,43,19,45],[19,46,19,65],[19,66,19,67],[19,68,19,69],[19,70,19,75],[20,111,20,112],[20,113,20,118],[20,119,20,127],[21,0,21,2],[21,3,21,22],[21,23,21,24],[21,25,21,26],[21,27,21,32],[21,33,21,41],[21,43,21,45],[20,68,20,69],[20,70,20,75],[20,76,20,84],[20,86,20,88],[20,89,20,108],[20,109,20,110],[21,89,21,108],[21,109,21,110],[21,111,21,112],[20,0,20,2],[20,3,20,22],[20,23,20,24],[20,25,20,26],[20,27,20,32],[20,33,20,41],[20,43,20,45],[20,46,20,65],[20,66,20,67],[18,89,18,108],[18,109,18,110],[18,111,18,112],[18,113,18,118],[18,119,18,127],[18,76,18,84],[18,86,18,88],[19,0,19,2],[19,3,19,22],[19,23,19,24],[19,25,19,26],[19,27,19,32],[18,46,18,65],[18,66,18,67],[18,68,18,69],[18,70,18,75],[19,119,19,127],[19,76,19,84],[19,86,19,88],[19,89,19,108],[19,109,19,110],[19,111,19,112],[19,113,19,118],[19,33,19,41],[18,0,18,2],[18,3,18,22],[18,23,18,24],[18,25,18,26],[18,27,18,32],[18,33,18,41],[18,43,18,45],[17,68,17,69],[17,70,17,75],[17,0,17,2],[17,3,17,22],[17,23,17,24],[17,25,17,26],[17,27,17,32],[16,33,16,41],[16,43,16,45],[16,46,16,65],[16,66,16,67],[16,68,16,69],[16,70,16,75],[17,111,17,112],[17,113,17,118],[17,119,17,127],[17,76,17,84],[17,86,17,88],[17,89,17,108],[17,109,17,110],[17,33,17,41],[17,43,17,45],[17,46,17,65],[17,66,17,67],[15,89,15,108],[15,109,15,110],[15,111,15,112],[15,113,15,118],[15,119,15,127],[15,76,15,84],[15,86,15,88],[14,0,14,2],[16,0,16,2],[16,3,16,22],[16,23,16,24],[16,25,16,26],[16,27,16,32],[15,46,15,65],[15,66,15,67],[15,68,15,69],[15,70,15,75],[16,119,16,127],[16,76,16,84],[16,86,16,88],[16,89,16,108],[16,109,16,110],[16,111,16,112],[16,113,16,118],[15,0,15,2],[15,3,15,22],[15,23,15,24],[15,25,15,26],[15,27,15,32],[15,33,15,41],[15,43,15,45],[14,68,14,69],[14,70,14,75],[14,3,14,22],[14,23,14,24],[14,25,14,26],[14,27,14,32],[14,33,14,41],[14,43,14,45],[14,46,14,65],[14,66,14,67],[7,111,7,119],[14,111,14,112],[14,113,14,118],[14,119,14,127],[14,76,14,84],[14,86,14,88],[14,89,14,108],[14,109,14,110],[7,120,7,128],[7,91,7,105],[7,108,7,110],[8,91,9,100],[8,0,9,3],[8,4,9,4],[8,5,9,14],[8,43,9,46],[8,47,9,47],[8,48,9,57],[8,86,9,89],[8,90,9,90],[7,65,7,67],[7,68,7,76],[7,77,7,85],[7,86,7,89],[7,0,7,3],[7,5,7,19],[7,22,7,24],[7,25,7,33],[7,34,7,42],[7,43,7,46],[7,48,7,62],[5,47,6,47],[5,48,6,62],[5,0,6,3],[5,4,6,4],[5,5,6,19],[5,22,6,24],[5,25,6,42],[5,43,6,46],[0,12,1,27],[0,36,1,42],[0,55,1,70],[0,79,1,85],[0,98,1,113],[0,122,1,128],[5,91,6,105],[5,108,6,110],[5,111,6,128],[5,65,6,67],[5,68,6,85],[5,86,6,89],[5,90,6,90]]}
[null,null,null,null,null,null,null,null,null,null,null,null,"内 訳 明 細 書(物 品)",null,null,null,null,null,null,null,null,null,null,null,null,null,null,null,null,null,null,null,null,null,null,null,"【正本】",null,null,null,null,null,null,null,null,null,null,null,null,null,null,null,null,null,null,"内 訳 明 細 書(物 品)",null,null,null,null,null,null,null,null,null,null,null,null,null,null,null,null,null,null,null,null,null,null,null,"【副本】",null,null,null,null,null,null,null,null,null,null,null,null,null,null,null,null,null,null,"内 訳 明 細 書(物 品)",null,null,null,null,null,null,null,null,null,null,null,null,null,null,null,null,null,null,null,null,null,null,null,"【貴社控】"]
[]
[]
[]
[]
["注文番号",null,null,null,null,null,null,null,null,null,null,null,null,null,null,null,null,null,null,null,null,null,"会社名",null,null,{"$f":"CONCATENATE(基本情報登録!$G$13,\" \",基本情報登録!$O$13)","v":" "},null,null,null,null,null,null,null,null,null,null,null,null,null,null,null,null,null,"注文番号",null,null,null,null,{"$f":"F6","v":0},null,null,null,null,null,null,null,null,null,null,null,null,null,null,null,null,"会社名",null,null,{"$f":"Z6","v":" "},null,null,null,null,null,null,null,null,null,null,null,null,null,null,null,null,null,"注文番号",null,null,null,null,{"$f":"AW6","v":0},null,null,null,null,null,null,null,null,null,null,null,null,null,null,null,null,"会社名",null,null,{"$f":"BQ6","v":" "}]
[]
["工事名",null,null,null,null,null,null,null,null,null,null,null,null,null,null,null,null,null,null,null,null,null,"営業担当\n部署･氏名",null,null,null,null,null,null,null,null,null,null,null,null,null,null,null,null,null,null,null,null,"工事名",null,null,null,null,{"$f":"F8","v":0},null,null,null,null,null,null,null,null,null,null,null,null,null,null,null,null,"営業担当\n部署･氏名",null,null,{"$f":"Z8","v":0},null,null,null,null,null,null,null,null,{"$f":"AI8","v":0},null,null,null,null,null,null,null,null,"工事名",null,null,null,null,{"$f":"AW8","v":0},null,null,null,null,null,null,null,null,null,null,null,null,null,null,null,null,"営業担当\n部署･氏名",null,null,{"$f":"BQ8","v":0},null,null,null,null,null,null,null,null,{"$f":"BZ8","v":0}]
["日乃出江口\n担当者名",null,null,null,null,null,null,null,null,null,null,null,null,null,null,null,null,null,null,null,null,null,null,null,null,null,null,null,null,null,null,null,null,null,null,null,null,null,null,null,null,null,null,"日乃出江口\n担当者名",null,null,null,null,{"$f":"F9","v":0},null,null,null,null,null,null,null,null,null,null,null,null,null,null,null,null,null,null,null,null,null,null,null,null,null,null,null,null,null,null,null,null,null,null,null,null,null,"日乃出江口\n担当者名",null,null,null,null,{"$f":"AW9","v":0}]
[]
[]
[]
[]
[]
["日付",null,null,"内　訳　及　び　納　入　先",null,null,null,null,null,null,null,null,null,null,null,null,null,null,null,null,null,null,null,"数量",null,"単位",null,"単価",null,null,null,null,null,"金額",null,null,null,null,null,null,null,null,null,"日付",null,null,"内　訳　及　び　納　入　先",null,null,null,null,null,null,null,null,null,null,null,null,null,null,null,null,null,null,null,"数量",null,"単位",null,"単価",null,null,null,null,null,"金額",null,null,null,null,null,null,null,null,null,"日付",null,null,"内　訳　及　び　納　入　先",null,null,null,null,null,null,null,null,null,null,null,null,null,null,null,null,null,null,null,"数量",null,"単位",null,"単価",null,null,null,null,null,"金額"]
[null,null,null,null,null,null,null,null,null,null,null,null,null,null,null,null,null,null,null,null,null,null,null,null,null,null,null,null,null,null,null,null,null,{"$f":"ROUND(X16*AB16,0)","v":0},null,null,null,null,null,null,null,null,null,{"$f":"A16","v":"00:00:00"},null,null,{"$f":"D16","v":0},null,null,null,null,null,null,null,null,null,null,null,null,null,null,null,null,null,null,null,{"$f":"X16","v":0},null,{"$f":"Z16","v":0},null,{"$f":"AB16","v":0},null,null,null,null,null,{"$f":"AH16","v":0},null,null,null,null,null,null,null,null,null,{"$f":"AR16","v":"00:00:00"},null,null,{"$f":"AU16","v":0},null,null,null,null,null,null,null,null,null,null,null,null,null,null,null,null,null,null,null,{"$f":"BO16","v":0},null,{"$f":"BQ16","v":0},null,{"$f":"BS16","v":0},null,null,null,null,null,{"$f":"BY16","v":0}]
[null,null,null,null,null,null,null,null,null,null,null,null,null,null,null,null,null,null,null,null,null,null,null,null,null,null,null,null,null,null,null,null,null,{"$f":"ROUND(X17*AB17,0)","v":0},null,null,null,null,null,null,null,null,null,{"$f":"A17","v":"00:00:00"},null,null,{"$f":"D17","v":0},null,null,null,null,null,null,null,null,null,null,null,null,null,null,null,null,null,null,null,{"$f":"X17","v":0},null,{"$f":"Z17","v":0},null,{"$f":"AB17","v":0},null,null,null,null,null,{"$f":"AH17","v":0},null,null,null,null,null,null,null,null,null,{"$f":"AR17","v":"00:00:00"},null,null,{"$f":"AU17","v":0},null,null,null,null,null,null,null,null,null,null,null,null,null,null,null,null,null,null,null,{"$f":"BO17","v":0},null,{"$f":"BQ17","v":0},null,{"$f":"BS17","v":0},null,null,null,null,null,{"$f":"BY17","v":0}]
[null,null,null,null,null,null,null,null,null,null,null,null,null,null,null,null,null,null,null,null,null,null,null,null,null,null,null,null,null,null,null,null,null,{"$f":"ROUND(X18*AB18,0)","v":0},null,null,null,null,null,null,null,null,null,{"$f":"A18","v":"00:00:00"},null,null,{"$f":"D18","v":0},null,null,null,null,null,null,null,null,null,null,null,null,null,null,null,null,null,null,null,{"$f":"X18","v":0},null,{"$f":"Z18","v":0},null,{"$f":"AB18","v":0},null,null,null,null,null,{"$f":"AH18","v":0},null,null,null,null,null,null,null,null,null,{"$f":"AR18","v":"00:00:00"},null,null,{"$f":"AU18","v":0},null,null,null,null,null,null,null,null,null,null,null,null,null,null,null,null,null,null,null,{"$f":"BO18","v":0},null,{"$f":"BQ18","v":0},null,{"$f":"BS18","v":0},null,null,null,null,null,{"$f":"BY18","v":0}]
[null,null,null,null,null,null,null,null,null,null,null,null,null,null,null,null,null,null,null,null,null,null,null,null,null,null,null,null,null,null,null,null,null,0,null,null,null,null,null,null,null,null,null,"00:00:00",null,null,0,null,null,null,null,null,null,null,null,null,null,null,null,null,null,null,null,null,null,null,0,null,0,null,0,null,null,null,null,null,0,null,null,null,null,null,null,null,null,null,"00:00:00",null,null,0,null,null,null,null,null,null,null,null,null,null,null,null,null,null,null,null,null,null,null,0,null,0,null,0,null,null,null,null,null,0]
[null,null,null,null,null,null,null,null,null,null,null,null,null,null,null,null,null,null,null,null,null,null,null,null,null,null,null,null,null,null,null,null,null,0,null,null,null,null,null,null,null,null,null,"00:00:00",null,null,0,null,null,null,null,null,null,null,null,null,null,null,null,null,null,null,null,null,null,null,0,null,0,null,0,null,null,null,null,null,0,null,null,null,null,null,null,null,null,null,"00:00:00",null,null,0,null,null,null,null,null,null,null,null,null,null,null,null,null,null,null,null,null,null,null,0,null,0,null,0,null,null,null,null,null,0]
[null,null,null,null,null,null,null,null,null,null,null,null,null,null,null,null,null,null,null,null,null,null,null,null,null,null,null,null,null,null,null,null,null,0,null,null,null,null,null,null,null,null,null,"00:00:00",null,null,0,null,null,null,null,null,null,null,null,null,null,null,null,null,null,null,null,null,null,null,0,null,0,null,0,null,null,null,null,null,0,null,null,null,null,null,null,null,null,null,"00:00:00",null,null,0,null,null,null,null,null,null,null,null,null,null,null,null,null,null,null,null,null,null,null,0,null,0,null,0,null,null,null,null,null,0]
[null,null,null,null,null,null,null,null,null,null,null,null,null,null,null,null,null,null,null,null,null,null,null,null,null,null,null,null,null,null,null,null,null,0,null,null,null,null,null,null,null,null,null,"00:00:00",null,null,0,null,null,null,null,null,null,null,null,null,null,null,null,null,null,null,null,null,null,null,0,null,0,null,0,null,null,null,null,null,0,null,null,null,null,null,null,null,null,null,"00:00:00",null,null,0,null,null,null,null,null,null,null,null,null,null,null,null,null,null,null,null,null,null,null,0,null,0,null,0,null,null,null,null,null,0]
[null,null,null,null,null,null,null,null,null,null,null,null,null,null,null,null,null,null,null,null,null,null,null,null,null,null,null,null,null,null,null,null,null,0,null,null,null,null,null,null,null,null,null,"00:00:00",null,null,0,null,null,null,null,null,null,null,null,null,null,null,null,null,null,null,null,null,null,null,0,null,0,null,0,null,null,null,null,null,0,null,null,null,null,null,null,null,null,null,"00:00:00",null,null,0,null,null,null,null,null,null,null,null,null,null,null,null,null,null,null,null,null,null,null,0,null,0,null,0,null,null,null,null,null,0]
[null,null,null,null,null,null,null,null,null,null,null,null,null,null,null,null,null,null,null,null,null,null,null,null,null,null,null,null,null,null,null,null,null,0,null,null,null,null,null,null,null,null,null,"00:00:00",null,null,0,null,null,null,null,null,null,null,null,null,null,null,null,null,null,null,null,null,null,null,0,null,0,null,0,null,null,null,null,null,0,null,null,null,null,null,null,null,null,null,"00:00:00",null,null,0,null,null,null,null,null,null,null,null,null,null,null,null,null,null,null,null,null,null,null,0,null,0,null,0,null,null,null,null,null,0]
[null,null,null,null,null,null,null,null,null,null,null,null,null,null,null,null,null,null,null,null,null,null,null,null,null,null,null,null,null,null,null,null,null,0,null,null,null,null,null,null,null,null,null,"00:00:00",null,null,0,null,null,null,null,null,null,null,null,null,null,null,null,null,null,null,null,null,null,null,0,null,0,null,0,null,null,null,null,null,0,null,null,null,null,null,null,null,null,null,"00:00:00",null,null,0,null,null,null,null,null,null,null,null,null,null,null,null,null,null,null,null,null,null,null,0,null,0,null,0,null,null,null,null,null,0]
[null,null,null,null,null,null,null,null,null,null,null,null,null,null,null,null,null,null,null,null,null,null,null,null,null,null,null,null,null,null,null,null,null,0,null,null,null,null,null,null,null,null,null,"00:00:00",null,null,0,null,null,null,null,null,null,null,null,null,null,null,null,null,null,null,null,null,null,null,0,null,0,null,0,null,null,null,null,null,0,null,null,null,null,null,null,null,null,null,"00:00:00",null,null,0,null,null,null,null,null,null,null,null,null,null,null,null,null,null,null,null,null,null,null,0,null,0,null,0,null,null,null,null,null,0]
[null,null,null,null,null,null,null,null,null,null,null,null,null,null,null,null,null,null,null,null,null,null,null,null,null,null,null,null,null,null,null,null,null,0,null,null,null,null,null,null,null,null,null,"00:00:00",null,null,0,null,null,null,null,null,null,null,null,null,null,null,null,null,null,null,null,null,null,null,0,null,0,null,0,null,null,null,null,null,0,null,null,null,null,null,null,null,null,null,"00:00:00",null,null,0,null,null,null,null,null,null,null,null,null,null,null,null,null,null,null,null,null,null,null,0,null,0,null,0,null,null,null,null,null,0]
[null,null,null,null,null,null,null,null,null,null,null,null,null,null,null,null,null,null,null,null,null,null,null,null,null,null,null,null,null,null,null,null,null,0,null,null,null,null,null,null,null,null,null,"00:00:00",null,null,0,null,null,null,null,null,null,null,null,null,null,null,null,null,null,null,null,null,null,null,0,null,0,null,0,null,null,null,null,null,0,null,null,null,null,null,null,null,null,null,"00:00:00",null,null,0,null,null,null,null,null,null,null,null,null,null,null,null,null,null,null,null,null,null,null,0,null,0,null,0,null,null,null,null,null,0]
[null,null,null,null,null,null,null,null,null,null,null,null,null,null,null,null,null,null,null,null,null,null,null,null,null,null,null,null,null,null,null,null,null,0,null,null,null,null,null,null,null,null,null,"00:00:00",null,null,0,null,null,null,null,null,null,null,null,null,null,null,null,null,null,null,null,null,null,null,0,null,0,null,0,null,null,null,null,null,0,null,null,null,null,null,null,null,null,null,"00:00:00",null,null,0,null,null,null,null,null,null,null,null,null,null,null,null,null,null,null,null,null,null,null,0,null,0,null,0,null,null,null,null,null,0]
[null,null,null,null,null,null,null,null,null,null,null,null,null,null,null,null,null,null,null,null,null,null,null,null,null,null,null,null,null,null,null,null,null,0,null,null,null,null,null,null,null,null,null,"00:00:00",null,null,0,null,null,null,null,null,null,null,null,null,null,null,null,null,null,null,null,null,null,null,0,null,0,null,0,null,null,null,null,null,0,null,null,null,null,null,null,null,null,null,"00:00:00",null,null,0,null,null,null,null,null,null,null,null,null,null,null,null,null,null,null,null,null,null,null,0,null,0,null,0,null,null,null,null,null,0]
[null,null,null,null,null,null,null,null,null,null,null,null,null,null,null,null,null,null,null,null,null,null,null,null,null,null,null,null,null,null,null,null,null,0,null,null,null,null,null,null,null,null,null,"00:00:00",null,null,0,null,null,null,null,null,null,null,null,null,null,null,null,null,null,null,null,null,null,null,0,null,0,null,0,null,null,null,null,null,0,null,null,null,null,null,null,null,null,null,"00:00:00",null,null,0,null,null,null,null,null,null,null,null,null,null,null,null,null,null,null,null,null,null,null,0,null,0,null,0,null,null,null,null,null,0]
[null,null,null,null,null,null,null,null,null,null,null,null,null,null,null,null,null,null,null,null,null,null,null,null,null,null,null,null,null,null,null,null,null,0,null,null,null,null,null,null,null,null,null,"00:00:00",null,null,0,null,null,null,null,null,null,null,null,null,null,null,null,null,null,null,null,null,null,null,0,null,0,null,0,null,null,null,null,null,0,null,null,null,null,null,null,null,null,null,"00:00:00",null,null,0,null,null,null,null,null,null,null,null,null,null,null,null,null,null,null,null,null,null,null,0,null,0,null,0,null,null,null,null,null,0]
[null,null,null,null,null,null,null,null,null,null,null,null,null,null,null,null,null,null,null,null,null,null,null,null,null,null,null,null,null,null,null,null,null,0,null,null,null,null,null,null,null,null,null,"00:00:00",null,null,0,null,null,null,null,null,null,null,null,null,null,null,null,null,null,null,null,null,null,null,0,null,0,null,0,null,null,null,null,null,0,null,null,null,null,null,null,null,null,null,"00:00:00",null,null,0,null,null,null,null,null,null,null,null,null,null,null,null,null,null,null,null,null,null,null,0,null,0,null,0,null,null,null,null,null,0]
["合　　計 　",null,null,null,null,null,null,null,null,null,null,null,null,null,null,null,null,null,null,null,null,null,null,null,null,null,null,null,null,null,null,null,null,{"$f":"SUM(AH16:AP33)","v":0},null,null,null,null,null,null,null,null,null,"合　　計 　",null,null,null,null,null,null,null,null,null,null,null,null,null,null,null,null,null,null,null,null,null,null,null,null,null,null,null,null,null,null,null,null,{"$f":"AH34","v":0},null,null,null,null,null,null,null,null,null,"合　　計 　",null,null,null,null,null,null,null,null,null,null,null,null,null,null,null,null,null,null,null,null,null,null,null,null,null,null,null,null,null,null,null,null,{"$f":"BY34","v":0}]
["※注文金額20万円以上の工事は、対応する注文書の注文番号をご記入ください。",null,null,null,null,null,null,null,null,null,null,null,null,null,null,null,null,null,null,null,null,null,null,null,null,null,null,null,null,null,null,null,null,null,null,null,null,null,null,null,null,null,null,"※注文金額20万円以上の工事は、対応する注文書の注文番号をご記入ください。",null,null,null,null,null,null,null,null,null,null,null,null,null,null,null,null,null,null,null,null,null,null,null,null,null,null,null,null,null,null,null,null,null,null,null,null,null,null,null,null,null,null,"※注文金額20万円以上の工事は、対応する注文書の注文番号をご記入ください。"]
["※物品・資材の納入、仮設材・重機車輌等リース料以外のご請求は工事用の内訳明細書及び集計請求書をご使用下さい。",null,null,null,null,null,null,null,null,null,null,null,null,null,null,null,null,null,null,null,null,null,null,null,null,null,null,null,null,null,null,null,null,null,null,null,null,null,null,null,null,null,null,"※物品・資材の納入、仮設材・重機車輌等リース料以外のご請求は工事用の内訳明細書及び集計請求書をご使用下さい。",null,null,null,null,null,null,null,null,null,null,null,null,null,null,null,null,null,null,null,null,null,null,null,null,null,null,null,null,null,null,null,null,null,null,null,null,null,null,null,null,null,null,"※物品・資材の納入、仮設材・重機車輌等リース料以外のご請求は工事用の内訳明細書及び集計請求書をご使用下さい。"]
["※現場ごとに集計し、集計請求書１部＋内訳明細書２部をご提出ください。",null,null,null,null,null,null,null,null,null,null,null,null,null,null,null,null,null,null,null,null,null,null,null,null,null,null,null,null,null,null,null,null,null,null,null,null,null,null,null,null,null,null,"※現場ごとに集計し、集計請求書１部＋内訳明細書２部をご提出ください。",null,null,null,null,null,null,null,null,null,null,null,null,null,null,null,null,null,null,null,null,null,null,null,null,null,null,null,null,null,null,null,null,null,null,null,null,null,null,null,null,null,null,"※現場ごとに集計し、集計請求書１部＋内訳明細書２部をご提出ください。"]

{"sheet":"内訳明細書②","index":4,"n_rows":37,"n_cols":123,"rows_kept":37,"cut":false,"hidden":false,"merged":[[36,0,36,42],[36,43,36,85],[36,86,36,128],[34,0,34,42],[34,43,34,85],[34,86,34,128],[35,0,35,42],[35,43,35,85],[35,86,35,128],[32,119,32,127],[33,0,33,32],[33,33,33,41],[33,43,33,75],[33,76,33,84],[33,86,33,118],[33,119,33,127],[32,68,32,69],[32,70,32,75],[32,76,32,84],[32,86,32,88],[32,89,32,108],[32,109,32,110],[31,119,31,127],[32,0,32,2],[32,3,32,22],[32,23,32,24],[32,25,32,26],[32,27,32,32],[32,33,32,41],[32,43,32,45],[32,46,32,65],[32,66,32,67],[31,76,31,84],[31,86,31,88],[31,89,31,108],[31,109,31,110],[31,111,31,112],[31,113,31,118],[31,33,31,41],[31,43,31,45],[31,46,31,65],[31,66,31,67],[31,68,31,69],[31,70,31,75],[32,111,32,112],[32,113,32,118],[31,0,31,2],[31,3,31,22],[31,23,31,24],[31,25,31,26],[31,27,31,32],[30,46,30,65],[30,66,30,67],[30,68,30,69],[30,70,30,75],[29,119,29,127],[30,0,30,2],[30,3,30,22],[30,23,30,24],[30,25,30,26],[30,27,30,32],[30,33,30,41],[30,43,30,45],[29,68,29,69],[29,70,29,75],[29,76,29,84],[29,86,29,88],[29,89,29,108],[29,109,29,110],[30,89,30,108],[30,109,30,110],[30,111,30,112],[30,113,30,118],[30,119,30,127],[30,76,30,84],[30,86,30,88],[28,119,28,127],[29,0,29,2],[29,3,29,22],[29,23,29,24],[29,25,29,26],[29,27,29,32],[29,33,29,41],[29,43,29,45],[29,46,29,65],[29,66,29,67],[28,76,28,84],[28,86,28,88],[28,89,28,108],[28,109,28,110],[28,111,28,112],[28,113,28,118],[28,33,28,41],[28,43,28,45],[28,46,28,65],[28,66,28,67],[28,68,28,69],[28,70,28,75],[29,111,29,112],[29,113,29,118],[28,0,28,2],[28,3,28,22],[28,23,28,24],[28,25,28,26],[28,27,28,32],[27,46,27,65],[27,66,27,67],[27,68,27,69],[27,70,27,75],[26,119,26,127],[27,0,27,2],[27,3,27,22],[27,23,27,24],[27,25,27,26],[27,27,27,32],[27,33,27,41],[27,43,27,45],[26,68,26,69],[26,70,26,75],[26,76,26,84],[26,86,26,88],[26,89,26,108],[26,109,26,110],[27,89,27,108],[27,109,27,110],[27,111,27,112],[27,113,27,118],[27,119,27,127],[27,76,27,84],[27,86,27,88],[25,119,25,127],[26,0,26,2],[26,3,26,22],[26,23,26,24],[26,25,26,26],[26,27,26,32],[26,33,26,41],[26,43,26,45],[26,46,26,65],[26,66,26,67],[25,76,25,84],[25,86,25,88],[25,89,25,108],[25,109,25,110],[25,111,25,112],[25,113,25,118],[25,33,25,41],[25,43,25,45],[25,46,25,65],[25,66,25,67],[25,68,25,69],[25,70,25,75],[26,111,26,112],[26,113,26,118],[24,86,24,88],[25,0,25,2],[25,3,25,22],[25,23,25,24],[25,25,25,26],[25,27,25,32],[24,46,24,65],[24,66,24,67],[24,68,24,69],[24,70,24,75],[22,68,22,69],[22,70,22,75],[23,111,23,112],[23,113,23,118],[23,119,23,127],[24,0,24,2],[24,3,24,22],[24,23,24,24],[24,25,24,26],[24,27,24,32],[24,33,24,41],[24,43,24,45],[23,68,23,69],[23,70,23,75],[23,76,23,84],[23,86,23,88],[23,89,23,108],[23,109,23,110],[24,89,24,108],[24,109,24,110],[24,111,24,112],[24,113,24,118],[24,119,24,127],[24,76,24,84],[23,0,23,2],[23,3,23,22],[23,23,23,24],[23,25,23,26],[23,27,23,32],[23,33,23,41],[23,43,23,45],[23,46,23,65],[23,66,23,67],[21,113,21,118],[21,119,21,127],[21,76,21,84],[21,86,21,88],[22,0,22,2],[22,3,22,22],[22,23,22,24],[22,25,22,26],[22,27,22,32],[21,46,21,65],[21,66,21,67],[21,68,21,69],[21,70,21,75],[22,119,22,127],[22,76,22,84],[22,86,22,88],[22,89,22,108],[22,109,22,110],[22,111,22,112],[22,113,22,118],[22,33,22,41],[22,43,22,45],[22,46,22,65],[22,66,22,67],[19,43,19,45],[19,46,19,65],[19,66,19,67],[19,68,19,69],[19,70,19,75],[20,111,20,112],[20,113,20,118],[20,119,20,127],[21,0,21,2],[21,3,21,22],[21,23,21,24],[21,25,21,26],[21,27,21,32],[21,33,21,41],[21,43,21,45],[20,68,20,69],[20,70,20,75],[20,76,20,84],[20,86,20,88],[20,89,20,108],[20,109,20,110],[21,89,21,108],[21,109,21,110],[21,111,21,112],[20,0,20,2],[20,3,20,22],[20,23,20,24],[20,25,20,26],[20,27,20,32],[20,33,20,41],[20,43,20,45],[20,46,20,65],[20,66,20,67],[18,89,18,108],[18,109,18,110],[18,111,18,112],[18,113,18,118],[18,119,18,127],[18,76,18,84],[18,86,18,88],[19,0,19,2],[19,3,19,22],[19,23,19,24],[19,25,19,26],[19,27,19,32],[18,46,18,65],[18,66,18,67],[18,68,18,69],[18,70,18,75],[19,119,19,127],[19,76,19,84],[19,86,19,88],[19,89,19,108],[19,109,19,110],[19,111,19,112],[19,113,19,118],[19,33,19,41],[18,0,18,2],[18,3,18,22],[18,23,18,24],[18,25,18,26],[18,27,18,32],[18,33,18,41],[18,43,18,45],[17,68,17,69],[17,70,17,75],[17,0,17,2],[17,3,17,22],[17,23,17,24],[17,25,17,26],[17,27,17,32],[16,33,16,41],[16,43,16,45],[16,46,16,65],[16,66,16,67],[16,68,16,69],[16,70,16,75],[17,111,17,112],[17,113,17,118],[17,119,17,127],[17,76,17,84],[17,86,17,88],[17,89,17,108],[17,109,17,110],[17,33,17,41],[17,43,17,45],[17,46,17,65],[17,66,17,67],[15,89,15,108],[15,109,15,110],[15,111,15,112],[15,113,15,118],[15,119,15,127],[15,76,15,84],[15,86,15,88],[14,0,14,2],[16,0,16,2],[16,3,16,22],[16,23,16,24],[16,25,16,26],[16,27,16,32],[15,46,15,65],[15,66,15,67],[15,68,15,69],[15,70,15,75],[16,119,16,127],[16,76,16,84],[16,86,16,88],[16,89,16,108],[16,109,16,110],[16,111,16,112],[16,113,16,118],[15,0,15,2],[15,3,15,22],[15,23,15,24],[15,25,15,26],[15,27,15,32],[15,33,15,41],[15,43,15,45],[14,68,14,69],[14,70,14,75],[14,3,14,22],[14,23,14,24],[14,25,14,26],[14,27,14,32],[14,33,14,41],[14,43,14,45],[14,46,14,65],[14,66,14,67],[7,111,7,119],[14,111,14,112],[14,113,14,118],[14,119,14,127],[14,76,14,84],[14,86,14,88],[14,89,14,108],[14,109,14,110],[7,120,7,128],[7,91,7,105],[7,108,7,110],[8,91,9,100],[8,0,9,3],[8,4,9,4],[8,5,9,14],[8,43,9,46],[8,47,9,47],[8,48,9,57],[8,86,9,89],[8,90,9,90],[7,65,7,67],[7,68,7,76],[7,77,7,85],[7,86,7,89],[7,0,7,3],[7,5,7,19],[7,22,7,24],[7,25,7,33],[7,34,7,42],[7,43,7,46],[7,48,7,62],[5,47,6,47],[5,48,6,62],[5,0,6,3],[5,4,6,4],[5,5,6,19],[5,22,6,24],[5,25,6,42],[5,43,6,46],[0,12,1,27],[0,36,1,42],[0,55,1,70],[0,79,1,85],[0,98,1,113],[0,122,1,128],[5,91,6,105],[5,108,6,110],[5,111,6,128],[5,65,6,67],[5,68,6,85],[5,86,6,89],[5,90,6,90]]}
[null,null,null,null,null,null,null,null,null,null,null,null,"内 訳 明 細 書(物 品)",null,null,null,null,null,null,null,null,null,null,null,null,null,null,null,null,null,null,null,null,null,null,null,"【正本】",null,null,null,null,null,null,null,null,null,null,null,null,null,null,null,null,null,null,"内 訳 明 細 書(物 品)",null,null,null,null,null,null,null,null,null,null,null,null,null,null,null,null,null,null,null,null,null,null,null,"【副本】",null,null,null,null,null,null,null,null,null,null,null,null,null,null,null,null,null,null,"内 訳 明 細 書(物 品)",null,null,null,null,null,null,null,null,null,null,null,null,null,null,null,null,null,null,null,null,null,null,null,"【貴社控】"]
[]
[]
[]
[]
["注文番号",null,null,null,null,null,null,null,null,null,null,null,null,null,null,null,null,null,null,null,null,null,"会社名",null,null,{"$f":"CONCATENATE(基本情報登録!$G$13,\" \",基本情報登録!$O$13)","v":" "},null,null,null,null,null,null,null,null,null,null,null,null,null,null,null,null,null,"注文番号",null,null,null,null,{"$f":"F6","v":0},null,null,null,null,null,null,null,null,null,null,null,null,null,null,null,null,"会社名",null,null,{"$f":"Z6","v":" "},null,null,null,null,null,null,null,null,null,null,null,null,null,null,null,null,null,"注文番号",null,null,null,null,{"$f":"AW6","v":0},null,null,null,null,null,null,null,null,null,null,null,null,null,null,null,null,"会社名",null,null,{"$f":"BQ6","v":" "}]
[]
["工事名",null,null,null,null,null,null,null,null,null,null,null,null,null,null,null,null,null,null,null,null,null,"営業担当\n部署･氏名",null,null,null,null,null,null,null,null,null,null,null,null,null,null,null,null,null,null,null,null,"工事名",null,null,null,null,{"$f":"F8","v":0},null,null,null,null,null,null,null,null,null,null,null,null,null,null,null,null,"営業担当\n部署･氏名",null,null,{"$f":"Z8","v":0},null,null,null,null,null,null,null,null,{"$f":"AI8","v":0},null,null,null,null,null,null,null,null,"工事名",null,null,null,null,{"$f":"AW8","v":0},null,null,null,null,null,null,null,null,null,null,null,null,null,null,null,null,"営業担当\n部署･氏名",null,null,{"$f":"BQ8","v":0},null,null,null,null,null,null,null,null,{"$f":"BZ8","v":0}]
["日乃出江口\n担当者名",null,null,null,null,null,null,null,null,null,null,null,null,null,null,null,null,null,null,null,null,null,null,null,null,null,null,null,null,null,null,null,null,null,null,null,null,null,null,null,null,null,null,"日乃出江口\n担当者名",null,null,null,null,{"$f":"F9","v":0},null,null,null,null,null,null,null,null,null,null,null,null,null,null,null,null,null,null,null,null,null,null,null,null,null,null,null,null,null,null,null,null,null,null,null,null,null,"日乃出江口\n担当者名",null,null,null,null,{"$f":"AW9","v":0}]
[]
[]
[]
[]
[]
["日付",null,null,"内　訳　及　び　納　入　先",null,null,null,null,null,null,null,null,null,null,null,null,null,null,null,null,null,null,null,"数量",null,"単位",null,"単価",null,null,null,null,null,"金額",null,null,null,null,null,null,null,null,null,"日付",null,null,"内　訳　及　び　納　入　先",null,null,null,null,null,null,null,null,null,null,null,null,null,null,null,null,null,null,null,"数量",null,"単位",null,"単価",null,null,null,null,null,"金額",null,null,null,null,null,null,null,null,null,"日付",null,null,"内　訳　及　び　納　入　先",null,null,null,null,null,null,null,null,null,null,null,null,null,null,null,null,null,null,null,"数量",null,"単位",null,"単価",null,null,null,null,null,"金額"]
[null,null,null,null,null,null,null,null,null,null,null,null,null,null,null,null,null,null,null,null,null,null,null,null,null,null,null,null,null,null,null,null,null,{"$f":"ROUND(X16*AB16,0)","v":0},null,null,null,null,null,null,null,null,null,{"$f":"A16","v":"00:00:00"},null,null,{"$f":"D16","v":0},null,null,null,null,null,null,null,null,null,null,null,null,null,null,null,null,null,null,null,{"$f":"X16","v":0},null,{"$f":"Z16","v":0},null,{"$f":"AB16","v":0},null,null,null,null,null,{"$f":"AH16","v":0},null,null,null,null,null,null,null,null,null,{"$f":"AR16","v":"00:00:00"},null,null,{"$f":"AU16","v":0},null,null,null,null,null,null,null,null,null,null,null,null,null,null,null,null,null,null,null,{"$f":"BO16","v":0},null,{"$f":"BQ16","v":0},null,{"$f":"BS16","v":0},null,null,null,null,null,{"$f":"BY16","v":0}]
[null,null,null,null,null,null,null,null,null,null,null,null,null,null,null,null,null,null,null,null,null,null,null,null,null,null,null,null,null,null,null,null,null,{"$f":"ROUND(X17*AB17,0)","v":0},null,null,null,null,null,null,null,null,null,{"$f":"A17","v":"00:00:00"},null,null,{"$f":"D17","v":0},null,null,null,null,null,null,null,null,null,null,null,null,null,null,null,null,null,null,null,{"$f":"X17","v":0},null,{"$f":"Z17","v":0},null,{"$f":"AB17","v":0},null,null,null,null,null,{"$f":"AH17","v":0},null,null,null,null,null,null,null,null,null,{"$f":"AR17","v":"00:00:00"},null,null,{"$f":"AU17","v":0},null,null,null,null,null,null,null,null,null,null,null,null,null,null,null,null,null,null,null,{"$f":"BO17","v":0},null,{"$f":"BQ17","v":0},null,{"$f":"BS17","v":0},null,null,null,null,null,{"$f":"BY17","v":0}]
[null,null,null,null,null,null,null,null,null,null,null,null,null,null,null,null,null,null,null,null,null,null,null,null,null,null,null,null,null,null,null,null,null,{"$f":"ROUND(X18*AB18,0)","v":0},null,null,null,null,null,null,null,null,null,{"$f":"A18","v":"00:00:00"},null,null,{"$f":"D18","v":0},null,null,null,null,null,null,null,null,null,null,null,null,null,null,null,null,null,null,null,{"$f":"X18","v":0},null,{"$f":"Z18","v":0},null,{"$f":"AB18","v":0},null,null,null,null,null,{"$f":"AH18","v":0},null,null,null,null,null,null,null,null,null,{"$f":"AR18","v":"00:00:00"},null,null,{"$f":"AU18","v":0},null,null,null,null,null,null,null,null,null,null,null,null,null,null,null,null,null,null,null,{"$f":"BO18","v":0},null,{"$f":"BQ18","v":0},null,{"$f":"BS18","v":0},null,null,null,null,null,{"$f":"BY18","v":0}]
[null,null,null,null,null,null,null,null,null,null,null,null,null,null,null,null,null,null,null,null,null,null,null,null,null,null,null,null,null,null,null,null,null,0,null,null,null,null,null,null,null,null,null,"00:00:00",null,null,0,null,null,null,null,null,null,null,null,null,null,null,null,null,null,null,null,null,null,null,0,null,0,null,0,null,null,null,null,null,0,null,null,null,null,null,null,null,null,null,"00:00:00",null,null,0,null,null,null,null,null,null,null,null,null,null,null,null,null,null,null,null,null,null,null,0,null,0,null,0,null,null,null,null,null,0]
[null,null,null,null,null,null,null,null,null,null,null,null,null,null,null,null,null,null,null,null,null,null,null,null,null,null,null,null,null,null,null,null,null,0,null,null,null,null,null,null,null,null,null,"00:00:00",null,null,0,null,null,null,null,null,null,null,null,null,null,null,null,null,null,null,null,null,null,null,0,null,0,null,0,null,null,null,null,null,0,null,null,null,null,null,null,null,null,null,"00:00:00",null,null,0,null,null,null,null,null,null,null,null,null,null,null,null,null,null,null,null,null,null,null,0,null,0,null,0,null,null,null,null,null,0]
[null,null,null,null,null,null,null,null,null,null,null,null,null,null,null,null,null,null,null,null,null,null,null,null,null,null,null,null,null,null,null,null,null,0,null,null,null,null,null,null,null,null,null,"00:00:00",null,null,0,null,null,null,null,null,null,null,null,null,null,null,null,null,null,null,null,null,null,null,0,null,0,null,0,null,null,null,null,null,0,null,null,null,null,null,null,null,null,null,"00:00:00",null,null,0,null,null,null,null,null,null,null,null,null,null,null,null,null,null,null,null,null,null,null,0,null,0,null,0,null,null,null,null,null,0]
[null,null,null,null,null,null,null,null,null,null,null,null,null,null,null,null,null,null,null,null,null,null,null,null,null,null,null,null,null,null,null,null,null,0,null,null,null,null,null,null,null,null,null,"00:00:00",null,null,0,null,null,null,null,null,null,null,null,null,null,null,null,null,null,null,null,null,null,null,0,null,0,null,0,null,null,null,null,null,0,null,null,null,null,null,null,null,null,null,"00:00:00",null,null,0,null,null,null,null,null,null,null,null,null,null,null,null,null,null,null,null,null,null,null,0,null,0,null,0,null,null,null,null,null,0]
[null,null,null,null,null,null,null,null,null,null,null,null,null,null,null,null,null,null,null,null,null,null,null,null,null,null,null,null,null,null,null,null,null,0,null,null,null,null,null,null,null,null,null,"00:00:00",null,null,0,null,null,null,null,null,null,null,null,null,null,null,null,null,null,null,null,null,null,null,0,null,0,null,0,null,null,null,null,null,0,null,null,null,null,null,null,null,null,null,"00:00:00",null,null,0,null,null,null,null,null,null,null,null,null,null,null,null,null,null,null,null,null,null,null,0,null,0,null,0,null,null,null,null,null,0]
[null,null,null,null,null,null,null,null,null,null,null,null,null,null,null,null,null,null,null,null,null,null,null,null,null,null,null,null,null,null,null,null,null,0,null,null,null,null,null,null,null,null,null,"00:00:00",null,null,0,null,null,null,null,null,null,null,null,null,null,null,null,null,null,null,null,null,null,null,0,null,0,null,0,null,null,null,null,null,0,null,null,null,null,null,null,null,null,null,"00:00:00",null,null,0,null,null,null,null,null,null,null,null,null,null,null,null,null,null,null,null,null,null,null,0,null,0,null,0,null,null,null,null,null,0]
[null,null,null,null,null,null,null,null,null,null,null,null,null,null,null,null,null,null,null,null,null,null,null,null,null,null,null,null,null,null,null,null,null,0,null,null,null,null,null,null,null,null,null,"00:00:00",null,null,0,null,null,null,null,null,null,null,null,null,null,null,null,null,null,null,null,null,null,null,0,null,0,null,0,null,null,null,null,null,0,null,null,null,null,null,null,null,null,null,"00:00:00",null,null,0,null,null,null,null,null,null,null,null,null,null,null,null,null,null,null,null,null,null,null,0,null,0,null,0,null,null,null,null,null,0]
[null,null,null,null,null,null,null,null,null,null,null,null,null,null,null,null,null,null,null,null,null,null,null,null,null,null,null,null,null,null,null,null,null,0,null,null,null,null,null,null,null,null,null,"00:00:00",null,null,0,null,null,null,null,null,null,null,null,null,null,null,null,null,null,null,null,null,null,null,0,null,0,null,0,null,null,null,null,null,0,null,null,null,null,null,null,null,null,null,"00:00:00",null,null,0,null,null,null,null,null,null,null,null,null,null,null,null,null,null,null,null,null,null,null,0,null,0,null,0,null,null,null,null,null,0]
[null,null,null,null,null,null,null,null,null,null,null,null,null,null,null,null,null,null,null,null,null,null,null,null,null,null,null,null,null,null,null,null,null,0,null,null,null,null,null,null,null,null,null,"00:00:00",null,null,0,null,null,null,null,null,null,null,null,null,null,null,null,null,null,null,null,null,null,null,0,null,0,null,0,null,null,null,null,null,0,null,null,null,null,null,null,null,null,null,"00:00:00",null,null,0,null,null,null,null,null,null,null,null,null,null,null,null,null,null,null,null,null,null,null,0,null,0,null,0,null,null,null,null,null,0]
[null,null,null,null,null,null,null,null,null,null,null,null,null,null,null,null,null,null,null,null,null,null,null,null,null,null,null,null,null,null,null,null,null,0,null,null,null,null,null,null,null,null,null,"00:00:00",null,null,0,null,null,null,null,null,null,null,null,null,null,null,null,null,null,null,null,null,null,null,0,null,0,null,0,null,null,null,null,null,0,null,null,null,null,null,null,null,null,null,"00:00:00",null,null,0,null,null,null,null,null,null,null,null,null,null,null,null,null,null,null,null,null,null,null,0,null,0,null,0,null,null,null,null,null,0]
[null,null,null,null,null,null,null,null,null,null,null,null,null,null,null,null,null,null,null,null,null,null,null,null,null,null,null,null,null,null,null,null,null,0,null,null,null,null,null,null,null,null,null,"00:00:00",null,null,0,null,null,null,null,null,null,null,null,null,null,null,null,null,null,null,null,null,null,null,0,null,0,null,0,null,null,null,null,null,0,null,null,null,null,null,null,null,null,null,"00:00:00",null,null,0,null,null,null,null,null,null,null,null,null,null,null,null,null,null,null,null,null,null,null,0,null,0,null,0,null,null,null,null,null,0]
[null,null,null,null,null,null,null,null,null,null,null,null,null,null,null,null,null,null,null,null,null,null,null,null,null,null,null,null,null,null,null,null,null,0,null,null,null,null,null,null,null,null,null,"00:00:00",null,null,0,null,null,null,null,null,null,null,null,null,null,null,null,null,null,null,null,null,null,null,0,null,0,null,0,null,null,null,null,null,0,null,null,null,null,null,null,null,null,null,"00:00:00",null,null,0,null,null,null,null,null,null,null,null,null,null,null,null,null,null,null,null,null,null,null,0,null,0,null,0,null,null,null,null,null,0]
[null,null,null,null,null,null,null,null,null,null,null,null,null,null,null,null,null,null,null,null,null,null,null,null,null,null,null,null,null,null,null,null,null,0,null,null,null,null,null,null,null,null,null,"00:00:00",null,null,0,null,null,null,null,null,null,null,null,null,null,null,null,null,null,null,null,null,null,null,0,null,0,null,0,null,null,null,null,null,0,null,null,null,null,null,null,null,null,null,"00:00:00",null,null,0,null,null,null,null,null,null,null,null,null,null,null,null,null,null,null,null,null,null,null,0,null,0,null,0,null,null,null,null,null,0]
[null,null,null,null,null,null,null,null,null,null,null,null,null,null,null,null,null,null,null,null,null,null,null,null,null,null,null,null,null,null,null,null,null,0,null,null,null,null,null,null,null,null,null,"00:00:00",null,null,0,null,null,null,null,null,null,null,null,null,null,null,null,null,null,null,null,null,null,null,0,null,0,null,0,null,null,null,null,null,0,null,null,null,null,null,null,null,null,null,"00:00:00",null,null,0,null,null,null,null,null,null,null,null,null,null,null,null,null,null,null,null,null,null,null,0,null,0,null,0,null,null,null,null,null,0]
[null,null,null,null,null,null,null,null,null,null,null,null,null,null,null,null,null,null,null,null,null,null,null,null,null,null,null,null,null,null,null,null,null,0,null,null,null,null,null,null,null,null,null,"00:00:00",null,null,0,null,null,null,null,null,null,null,null,null,null,null,null,null,null,null,null,null,null,null,0,null,0,null,0,null,null,null,null,null,0,null,null,null,null,null,null,null,null,null,"00:00:00",null,null,0,null,null,null,null,null,null,null,null,null,null,null,null,null,null,null,null,null,null,null,0,null,0,null,0,null,null,null,null,null,0]
["合　　計 　",null,null,null,null,null,null,null,null,null,null,null,null,null,null,null,null,null,null,null,null,null,null,null,null,null,null,null,null,null,null,null,null,{"$f":"SUM(AH16:AP33)","v":0},null,null,null,null,null,null,null,null,null,"合　　計 　",null,null,null,null,null,null,null,null,null,null,null,null,null,null,null,null,null,null,null,null,null,null,null,null,null,null,null,null,null,null,null,null,{"$f":"AH34","v":0},null,null,null,null,null,null,null,null,null,"合　　計 　",null,null,null,null,null,null,null,null,null,null,null,null,null,null,null,null,null,null,null,null,null,null,null,null,null,null,null,null,null,null,null,null,{"$f":"BY34","v":0}]
["※注文金額20万円以上の工事は、対応する注文書の注文番号をご記入ください。",null,null,null,null,null,null,null,null,null,null,null,null,null,null,null,null,null,null,null,null,null,null,null,null,null,null,null,null,null,null,null,null,null,null,null,null,null,null,null,null,null,null,"※注文金額20万円以上の工事は、対応する注文書の注文番号をご記入ください。",null,null,null,null,null,null,null,null,null,null,null,null,null,null,null,null,null,null,null,null,null,null,null,null,null,null,null,null,null,null,null,null,null,null,null,null,null,null,null,null,null,null,"※注文金額20万円以上の工事は、対応する注文書の注文番号をご記入ください。"]
["※物品・資材の納入、仮設材・重機車輌等リース料以外のご請求は工事用の内訳明細書及び集計請求書をご使用下さい。",null,null,null,null,null,null,null,null,null,null,null,null,null,null,null,null,null,null,null,null,null,null,null,null,null,null,null,null,null,null,null,null,null,null,null,null,null,null,null,null,null,null,"※物品・資材の納入、仮設材・重機車輌等リース料以外のご請求は工事用の内訳明細書及び集計請求書をご使用下さい。",null,null,null,null,null,null,null,null,null,null,null,null,null,null,null,null,null,null,null,null,null,null,null,null,null,null,null,null,null,null,null,null,null,null,null,null,null,null,null,null,null,null,"※物品・資材の納入、仮設材・重機車輌等リース料以外のご請求は工事用の内訳明細書及び集計請求書をご使用下さい。"]
["※現場ごとに集計し、集計請求書１部＋内訳明細書２部をご提出ください。",null,null,null,null,null,null,null,null,null,null,null,null,null,null,null,null,null,null,null,null,null,null,null,null,null,null,null,null,null,null,null,null,null,null,null,null,null,null,null,null,null,null,"※現場ごとに集計し、集計請求書１部＋内訳明細書２部をご提出ください。",null,null,null,null,null,null,null,null,null,null,null,null,null,null,null,null,null,null,null,null,null,null,null,null,null,null,null,null,null,null,null,null,null,null,null,null,null,null,null,null,null,null,"※現場ごとに集計し、集計請求書１部＋内訳明細書２部をご提出ください。"]

{"sheet":"内訳明細書③","index":5,"n_rows":37,"n_cols":123,"rows_kept":37,"cut":false,"hidden":false,"merged":[[36,0,36,42],[36,43,36,85],[36,86,36,128],[34,0,34,42],[34,43,34,85],[34,86,34,128],[35,0,35,42],[35,43,35,85],[35,86,35,128],[32,119,32,127],[33,0,33,32],[33,33,33,41],[33,43,33,75],[33,76,33,84],[33,86,33,118],[33,119,33,127],[32,68,32,69],[32,70,32,75],[32,76,32,84],[32,86,32,88],[32,89,32,108],[32,109,32,110],[31,119,31,127],[32,0,32,2],[32,3,32,22],[32,23,32,24],[32,25,32,26],[32,27,32,32],[32,33,32,41],[32,43,32,45],[32,46,32,65],[32,66,32,67],[31,76,31,84],[31,86,31,88],[31,89,31,108],[31,109,31,110],[31,111,31,112],[31,113,31,118],[31,33,31,41],[31,43,31,45],[31,46,31,65],[31,66,31,67],[31,68,31,69],[31,70,31,75],[32,111,32,112],[32,113,32,118],[31,0,31,2],[31,3,31,22],[31,23,31,24],[31,25,31,26],[31,27,31,32],[30,46,30,65],[30,66,30,67],[30,68,30,69],[30,70,30,75],[29,119,29,127],[30,0,30,2],[30,3,30,22],[30,23,30,24],[30,25,30,26],[30,27,30,32],[30,33,30,41],[30,43,30,45],[29,68,29,69],[29,70,29,75],[29,76,29,84],[29,86,29,88],[29,89,29,108],[29,109,29,110],[30,89,30,108],[30,109,30,110],[30,111,30,112],[30,113,30,118],[30,119,30,127],[30,76,30,84],[30,86,30,88],[28,119,28,127],[29,0,29,2],[29,3,29,22],[29,23,29,24],[29,25,29,26],[29,27,29,32],[29,33,29,41],[29,43,29,45],[29,46,29,65],[29,66,29,67],[28,76,28,84],[28,86,28,88],[28,89,28,108],[28,109,28,110],[28,111,28,112],[28,113,28,118],[28,33,28,41],[28,43,28,45],[28,46,28,65],[28,66,28,67],[28,68,28,69],[28,70,28,75],[29,111,29,112],[29,113,29,118],[28,0,28,2],[28,3,28,22],[28,23,28,24],[28,25,28,26],[28,27,28,32],[27,46,27,65],[27,66,27,67],[27,68,27,69],[27,70,27,75],[26,119,26,127],[27,0,27,2],[27,3,27,22],[27,23,27,24],[27,25,27,26],[27,27,27,32],[27,33,27,41],[27,43,27,45],[26,68,26,69],[26,70,26,75],[26,76,26,84],[26,86,26,88],[26,89,26,108],[26,109,26,110],[27,89,27,108],[27,109,27,110],[27,111,27,112],[27,113,27,118],[27,119,27,127],[27,76,27,84],[27,86,27,88],[25,119,25,127],[26,0,26,2],[26,3,26,22],[26,23,26,24],[26,25,26,26],[26,27,26,32],[26,33,26,41],[26,43,26,45],[26,46,26,65],[26,66,26,67],[25,76,25,84],[25,86,25,88],[25,89,25,108],[25,109,25,110],[25,111,25,112],[25,113,25,118],[25,33,25,41],[25,43,25,45],[25,46,25,65],[25,66,25,67],[25,68,25,69],[25,70,25,75],[26,111,26,112],[26,113,26,118],[24,86,24,88],[25,0,25,2],[25,3,25,22],[25,23,25,24],[25,25,25,26],[25,27,25,32],[24,46,24,65],[24,66,24,67],[24,68,24,69],[24,70,24,75],[22,68,22,69],[22,70,22,75],[23,111,23,112],[23,113,23,118],[23,119,23,127],[24,0,24,2],[24,3,24,22],[24,23,24,24],[24,25,24,26],[24,27,24,32],[24,33,24,41],[24,43,24,45],[23,68,23,69],[23,70,23,75],[23,76,23,84],[23,86,23,88],[23,89,23,108],[23,109,23,110],[24,89,24,108],[24,109,24,110],[24,111,24,112],[24,113,24,118],[24,119,24,127],[24,76,24,84],[23,0,23,2],[23,3,23,22],[23,23,23,24],[23,25,23,26],[23,27,23,32],[23,33,23,41],[23,43,23,45],[23,46,23,65],[23,66,23,67],[21,113,21,118],[21,119,21,127],[21,76,21,84],[21,86,21,88],[22,0,22,2],[22,3,22,22],[22,23,22,24],[22,25,22,26],[22,27,22,32],[21,46,21,65],[21,66,21,67],[21,68,21,69],[21,70,21,75],[22,119,22,127],[22,76,22,84],[22,86,22,88],[22,89,22,108],[22,109,22,110],[22,111,22,112],[22,113,22,118],[22,33,22,41],[22,43,22,45],[22,46,22,65],[22,66,22,67],[19,43,19,45],[19,46,19,65],[19,66,19,67],[19,68,19,69],[19,70,19,75],[20,111,20,112],[20,113,20,118],[20,119,20,127],[21,0,21,2],[21,3,21,22],[21,23,21,24],[21,25,21,26],[21,27,21,32],[21,33,21,41],[21,43,21,45],[20,68,20,69],[20,70,20,75],[20,76,20,84],[20,86,20,88],[20,89,20,108],[20,109,20,110],[21,89,21,108],[21,109,21,110],[21,111,21,112],[20,0,20,2],[20,3,20,22],[20,23,20,24],[20,25,20,26],[20,27,20,32],[20,33,20,41],[20,43,20,45],[20,46,20,65],[20,66,20,67],[18,89,18,108],[18,109,18,110],[18,111,18,112],[18,113,18,118],[18,119,18,127],[18,76,18,84],[18,86,18,88],[19,0,19,2],[19,3,19,22],[19,23,19,24],[19,25,19,26],[19,27,19,32],[18,46,18,65],[18,66,18,67],[18,68,18,69],[18,70,18,75],[19,119,19,127],[19,76,19,84],[19,86,19,88],[19,89,19,108],[19,109,19,110],[19,111,19,112],[19,113,19,118],[19,33,19,41],[18,0,18,2],[18,3,18,22],[18,23,18,24],[18,25,18,26],[18,27,18,32],[18,33,18,41],[18,43,18,45],[17,68,17,69],[17,70,17,75],[17,0,17,2],[17,3,17,22],[17,23,17,24],[17,25,17,26],[17,27,17,32],[16,33,16,41],[16,43,16,45],[16,46,16,65],[16,66,16,67],[16,68,16,69],[16,70,16,75],[17,111,17,112],[17,113,17,118],[17,119,17,127],[17,76,17,84],[17,86,17,88],[17,89,17,108],[17,109,17,110],[17,33,17,41],[17,43,17,45],[17,46,17,65],[17,66,17,67],[15,89,15,108],[15,109,15,110],[15,111,15,112],[15,113,15,118],[15,119,15,127],[15,76,15,84],[15,86,15,88],[14,0,14,2],[16,0,16,2],[16,3,16,22],[16,23,16,24],[16,25,16,26],[16,27,16,32],[15,46,15,65],[15,66,15,67],[15,68,15,69],[15,70,15,75],[16,119,16,127],[16,76,16,84],[16,86,16,88],[16,89,16,108],[16,109,16,110],[16,111,16,112],[16,113,16,118],[15,0,15,2],[15,3,15,22],[15,23,15,24],[15,25,15,26],[15,27,15,32],[15,33,15,41],[15,43,15,45],[14,68,14,69],[14,70,14,75],[14,3,14,22],[14,23,14,24],[14,25,14,26],[14,27,14,32],[14,33,14,41],[14,43,14,45],[14,46,14,65],[14,66,14,67],[7,111,7,119],[14,111,14,112],[14,113,14,118],[14,119,14,127],[14,76,14,84],[14,86,14,88],[14,89,14,108],[14,109,14,110],[7,120,7,128],[7,91,7,105],[7,108,7,110],[8,91,9,100],[8,0,9,3],[8,4,9,4],[8,5,9,14],[8,43,9,46],[8,47,9,47],[8,48,9,57],[8,86,9,89],[8,90,9,90],[7,65,7,67],[7,68,7,76],[7,77,7,85],[7,86,7,89],[7,0,7,3],[7,5,7,19],[7,22,7,24],[7,25,7,33],[7,34,7,42],[7,43,7,46],[7,48,7,62],[5,47,6,47],[5,48,6,62],[5,0,6,3],[5,4,6,4],[5,5,6,19],[5,22,6,24],[5,25,6,42],[5,43,6,46],[0,12,1,27],[0,36,1,42],[0,55,1,70],[0,79,1,85],[0,98,1,113],[0,122,1,128],[5,91,6,105],[5,108,6,110],[5,111,6,128],[5,65,6,67],[5,68,6,85],[5,86,6,89],[5,90,6,90]]}
[null,null,null,null,null,null,null,null,null,null,null,null,"内 訳 明 細 書(物 品)",null,null,null,null,null,null,null,null,null,null,null,null,null,null,null,null,null,null,null,null,null,null,null,"【正本】",null,null,null,null,null,null,null,null,null,null,null,null,null,null,null,null,null,null,"内 訳 明 細 書(物 品)",null,null,null,null,null,null,null,null,null,null,null,null,null,null,null,null,null,null,null,null,null,null,null,"【副本】",null,null,null,null,null,null,null,null,null,null,null,null,null,null,null,null,null,null,"内 訳 明 細 書(物 品)",null,null,null,null,null,null,null,null,null,null,null,null,null,null,null,null,null,null,null,null,null,null,null,"【貴社控】"]
[]
[]
[]
[]
["注文番号",null,null,null,null,null,null,null,null,null,null,null,null,null,null,null,null,null,null,null,null,null,"会社名",null,null,{"$f":"CONCATENATE(基本情報登録!$G$13,\" \",基本情報登録!$O$13)","v":" "},null,null,null,null,null,null,null,null,null,null,null,null,null,null,null,null,null,"注文番号",null,null,null,null,{"$f":"F6","v":0},null,null,null,null,null,null,null,null,null,null,null,null,null,null,null,null,"会社名",null,null,{"$f":"Z6","v":" "},null,null,null,null,null,null,null,null,null,null,null,null,null,null,null,null,null,"注文番号",null,null,null,null,{"$f":"AW6","v":0},null,null,null,null,null,null,null,null,null,null,null,null,null,null,null,null,"会社名",null,null,{"$f":"BQ6","v":" "}]
[]
["工事名",null,null,null,null,null,null,null,null,null,null,null,null,null,null,null,null,null,null,null,null,null,"営業担当\n部署･氏名",null,null,null,null,null,null,null,null,null,null,null,null,null,null,null,null,null,null,null,null,"工事名",null,null,null,null,{"$f":"F8","v":0},null,null,null,null,null,null,null,null,null,null,null,null,null,null,null,null,"営業担当\n部署･氏名",null,null,{"$f":"Z8","v":0},null,null,null,null,null,null,null,null,{"$f":"AI8","v":0},null,null,null,null,null,null,null,null,"工事名",null,null,null,null,{"$f":"AW8","v":0},null,null,null,null,null,null,null,null,null,null,null,null,null,null,null,null,"営業担当\n部署･氏名",null,null,{"$f":"BQ8","v":0},null,null,null,null,null,null,null,null,{"$f":"BZ8","v":0}]
["日乃出江口\n担当者名",null,null,null,null,null,null,null,null,null,null,null,null,null,null,null,null,null,null,null,null,null,null,null,null,null,null,null,null,null,null,null,null,null,null,null,null,null,null,null,null,null,null,"日乃出江口\n担当者名",null,null,null,null,{"$f":"F9","v":0},null,null,null,null,null,null,null,null,null,null,null,null,null,null,null,null,null,null,null,null,null,null,null,null,null,null,null,null,null,null,null,null,null,null,null,null,null,"日乃出江口\n担当者名",null,null,null,null,{"$f":"AW9","v":0}]
[]
[]
[]
[]
[]
["日付",null,null,"内　訳　及　び　納　入　先",null,null,null,null,null,null,null,null,null,null,null,null,null,null,null,null,null,null,null,"数量",null,"単位",null,"単価",null,null,null,null,null,"金額",null,null,null,null,null,null,null,null,null,"日付",null,null,"内　訳　及　び　納　入　先",null,null,null,null,null,null,null,null,null,null,null,null,null,null,null,null,null,null,null,"数量",null,"単位",null,"単価",null,null,null,null,null,"金額",null,null,null,null,null,null,null,null,null,"日付",null,null,"内　訳　及　び　納　入　先",null,null,null,null,null,null,null,null,null,null,null,null,null,null,null,null,null,null,null,"数量",null,"単位",null,"単価",null,null,null,null,null,"金額"]
[null,null,null,null,null,null,null,null,null,null,null,null,null,null,null,null,null,null,null,null,null,null,null,null,null,null,null,null,null,null,null,null,null,{"$f":"ROUND(X16*AB16,0)","v":0},null,null,null,null,null,null,null,null,null,{"$f":"A16","v":"00:00:00"},null,null,{"$f":"D16","v":0},null,null,null,null,null,null,null,null,null,null,null,null,null,null,null,null,null,null,null,{"$f":"X16","v":0},null,{"$f":"Z16","v":0},null,{"$f":"AB16","v":0},null,null,null,null,null,{"$f":"AH16","v":0},null,null,null,null,null,null,null,null,null,{"$f":"AR16","v":"00:00:00"},null,null,{"$f":"AU16","v":0},null,null,null,null,null,null,null,null,null,null,null,null,null,null,null,null,null,null,null,{"$f":"BO16","v":0},null,{"$f":"BQ16","v":0},null,{"$f":"BS16","v":0},null,null,null,null,null,{"$f":"BY16","v":0}]
[null,null,null,null,null,null,null,null,null,null,null,null,null,null,null,null,null,null,null,null,null,null,null,null,null,null,null,null,null,null,null,null,null,{"$f":"ROUND(X17*AB17,0)","v":0},null,null,null,null,null,null,null,null,null,{"$f":"A17","v":"00:00:00"},null,null,{"$f":"D17","v":0},null,null,null,null,null,null,null,null,null,null,null,null,null,null,null,null,null,null,null,{"$f":"X17","v":0},null,{"$f":"Z17","v":0},null,{"$f":"AB17","v":0},null,null,null,null,null,{"$f":"AH17","v":0},null,null,null,null,null,null,null,null,null,{"$f":"AR17","v":"00:00:00"},null,null,{"$f":"AU17","v":0},null,null,null,null,null,null,null,null,null,null,null,null,null,null,null,null,null,null,null,{"$f":"BO17","v":0},null,{"$f":"BQ17","v":0},null,{"$f":"BS17","v":0},null,null,null,null,null,{"$f":"BY17","v":0}]
[null,null,null,null,null,null,null,null,null,null,null,null,null,null,null,null,null,null,null,null,null,null,null,null,null,null,null,null,null,null,null,null,null,{"$f":"ROUND(X18*AB18,0)","v":0},null,null,null,null,null,null,null,null,null,{"$f":"A18","v":"00:00:00"},null,null,{"$f":"D18","v":0},null,null,null,null,null,null,null,null,null,null,null,null,null,null,null,null,null,null,null,{"$f":"X18","v":0},null,{"$f":"Z18","v":0},null,{"$f":"AB18","v":0},null,null,null,null,null,{"$f":"AH18","v":0},null,null,null,null,null,null,null,null,null,{"$f":"AR18","v":"00:00:00"},null,null,{"$f":"AU18","v":0},null,null,null,null,null,null,null,null,null,null,null,null,null,null,null,null,null,null,null,{"$f":"BO18","v":0},null,{"$f":"BQ18","v":0},null,{"$f":"BS18","v":0},null,null,null,null,null,{"$f":"BY18","v":0}]
[null,null,null,null,null,null,null,null,null,null,null,null,null,null,null,null,null,null,null,null,null,null,null,null,null,null,null,null,null,null,null,null,null,0,null,null,null,null,null,null,null,null,null,"00:00:00",null,null,0,null,null,null,null,null,null,null,null,null,null,null,null,null,null,null,null,null,null,null,0,null,0,null,0,null,null,null,null,null,0,null,null,null,null,null,null,null,null,null,"00:00:00",null,null,0,null,null,null,null,null,null,null,null,null,null,null,null,null,null,null,null,null,null,null,0,null,0,null,0,null,null,null,null,null,0]
[null,null,null,null,null,null,null,null,null,null,null,null,null,null,null,null,null,null,null,null,null,null,null,null,null,null,null,null,null,null,null,null,null,0,null,null,null,null,null,null,null,null,null,"00:00:00",null,null,0,null,null,null,null,null,null,null,null,null,null,null,null,null,null,null,null,null,null,null,0,null,0,null,0,null,null,null,null,null,0,null,null,null,null,null,null,null,null,null,"00:00:00",null,null,0,null,null,null,null,null,null,null,null,null,null,null,null,null,null,null,null,null,null,null,0,null,0,null,0,null,null,null,null,null,0]
[null,null,null,null,null,null,null,null,null,null,null,null,null,null,null,null,null,null,null,null,null,null,null,null,null,null,null,null,null,null,null,null,null,0,null,null,null,null,null,null,null,null,null,"00:00:00",null,null,0,null,null,null,null,null,null,null,null,null,null,null,null,null,null,null,null,null,null,null,0,null,0,null,0,null,null,null,null,null,0,null,null,null,null,null,null,null,null,null,"00:00:00",null,null,0,null,null,null,null,null,null,null,null,null,null,null,null,null,null,null,null,null,null,null,0,null,0,null,0,null,null,null,null,null,0]
[null,null,null,null,null,null,null,null,null,null,null,null,null,null,null,null,null,null,null,null,null,null,null,null,null,null,null,null,null,null,null,null,null,0,null,null,null,null,null,null,null,null,null,"00:00:00",null,null,0,null,null,null,null,null,null,null,null,null,null,null,null,null,null,null,null,null,null,null,0,null,0,null,0,null,null,null,null,null,0,null,null,null,null,null,null,null,null,null,"00:00:00",null,null,0,null,null,null,null,null,null,null,null,null,null,null,null,null,null,null,null,null,null,null,0,null,0,null,0,null,null,null,null,null,0]
[null,null,null,null,null,null,null,null,null,null,null,null,null,null,null,null,null,null,null,null,null,null,null,null,null,null,null,null,null,null,null,null,null,0,null,null,null,null,null,null,null,null,null,"00:00:00",null,null,0,null,null,null,null,null,null,null,null,null,null,null,null,null,null,null,null,null,null,null,0,null,0,null,0,null,null,null,null,null,0,null,null,null,null,null,null,null,null,null,"00:00:00",null,null,0,null,null,null,null,null,null,null,null,null,null,null,null,null,null,null,null,null,null,null,0,null,0,null,0,null,null,null,null,null,0]
[null,null,null,null,null,null,null,null,null,null,null,null,null,null,null,null,null,null,null,null,null,null,null,null,null,null,null,null,null,null,null,null,null,0,null,null,null,null,null,null,null,null,null,"00:00:00",null,null,0,null,null,null,null,null,null,null,null,null,null,null,null,null,null,null,null,null,null,null,0,null,0,null,0,null,null,null,null,null,0,null,null,null,null,null,null,null,null,null,"00:00:00",null,null,0,null,null,null,null,null,null,null,null,null,null,null,null,null,null,null,null,null,null,null,0,null,0,null,0,null,null,null,null,null,0]
[null,null,null,null,null,null,null,null,null,null,null,null,null,null,null,null,null,null,null,null,null,null,null,null,null,null,null,null,null,null,null,null,null,0,null,null,null,null,null,null,null,null,null,"00:00:00",null,null,0,null,null,null,null,null,null,null,null,null,null,null,null,null,null,null,null,null,null,null,0,null,0,null,0,null,null,null,null,null,0,null,null,null,null,null,null,null,null,null,"00:00:00",null,null,0,null,null,null,null,null,null,null,null,null,null,null,null,null,null,null,null,null,null,null,0,null,0,null,0,null,null,null,null,null,0]
[null,null,null,null,null,null,null,null,null,null,null,null,null,null,null,null,null,null,null,null,null,null,null,null,null,null,null,null,null,null,null,null,null,0,null,null,null,null,null,null,null,null,null,"00:00:00",null,null,0,null,null,null,null,null,null,null,null,null,null,null,null,null,null,null,null,null,null,null,0,null,0,null,0,null,null,null,null,null,0,null,null,null,null,null,null,null,null,null,"00:00:00",null,null,0,null,null,null,null,null,null,null,null,null,null,null,null,null,null,null,null,null,null,null,0,null,0,null,0,null,null,null,null,null,0]
[null,null,null,null,null,null,null,null,null,null,null,null,null,null,null,null,null,null,null,null,null,null,null,null,null,null,null,null,null,null,null,null,null,0,null,null,null,null,null,null,null,null,null,"00:00:00",null,null,0,null,null,null,null,null,null,null,null,null,null,null,null,null,null,null,null,null,null,null,0,null,0,null,0,null,null,null,null,null,0,null,null,null,null,null,null,null,null,null,"00:00:00",null,null,0,null,null,null,null,null,null,null,null,null,null,null,null,null,null,null,null,null,null,null,0,null,0,null,0,null,null,null,null,null,0]
[null,null,null,null,null,null,null,null,null,null,null,null,null,null,null,null,null,null,null,null,null,null,null,null,null,null,null,null,null,null,null,null,null,0,null,null,null,null,null,null,null,null,null,"00:00:00",null,null,0,null,null,null,null,null,null,null,null,null,null,null,null,null,null,null,null,null,null,null,0,null,0,null,0,null,null,null,null,null,0,null,null,null,null,null,null,null,null,null,"00:00:00",null,null,0,null,null,null,null,null,null,null,null,null,null,null,null,null,null,null,null,null,null,null,0,null,0,null,0,null,null,null,null,null,0]
[null,null,null,null,null,null,null,null,null,null,null,null,null,null,null,null,null,null,null,null,null,null,null,null,null,null,null,null,null,null,null,null,null,0,null,null,null,null,null,null,null,null,null,"00:00:00",null,null,0,null,null,null,null,null,null,null,null,null,null,null,null,null,null,null,null,null,null,null,0,null,0,null,0,null,null,null,null,null,0,null,null,null,null,null,null,null,null,null,"00:00:00",null,null,0,null,null,null,null,null,null,null,null,null,null,null,null,null,null,null,null,null,null,null,0,null,0,null,0,null,null,null,null,null,0]
[null,null,null,null,null,null,null,null,null,null,null,null,null,null,null,null,null,null,null,null,null,null,null,null,null,null,null,null,null,null,null,null,null,0,null,null,null,null,null,null,null,null,null,"00:00:00",null,null,0,null,null,null,null,null,null,null,null,null,null,null,null,null,null,null,null,null,null,null,0,null,0,null,0,null,null,null,null,null,0,null,null,null,null,null,null,null,null,null,"00:00:00",null,null,0,null,null,null,null,null,null,null,null,null,null,null,null,null,null,null,null,null,null,null,0,null,0,null,0,null,null,null,null,null,0]
[null,null,null,null,null,null,null,null,null,null,null,null,null,null,null,null,null,null,null,null,null,null,null,null,null,null,null,null,null,null,null,null,null,0,null,null,null,null,null,null,null,null,null,"00:00:00",null,null,0,null,null,null,null,null,null,null,null,null,null,null,null,null,null,null,null,null,null,null,0,null,0,null,0,null,null,null,null,null,0,null,null,null,null,null,null,null,null,null,"00:00:00",null,null,0,null,null,null,null,null,null,null,null,null,null,null,null,null,null,null,null,null,null,null,0,null,0,null,0,null,null,null,null,null,0]
[null,null,null,null,null,null,null,null,null,null,null,null,null,null,null,null,null,null,null,null,null,null,null,null,null,null,null,null,null,null,null,null,null,0,null,null,null,null,null,null,null,null,null,"00:00:00",null,null,0,null,null,null,null,null,null,null,null,null,null,null,null,null,null,null,null,null,null,null,0,null,0,null,0,null,null,null,null,null,0,null,null,null,null,null,null,null,null,null,"00:00:00",null,null,0,null,null,null,null,null,null,null,null,null,null,null,null,null,null,null,null,null,null,null,0,null,0,null,0,null,null,null,null,null,0]
[null,null,null,null,null,null,null,null,null,null,null,null,null,null,null,null,null,null,null,null,null,null,null,null,null,null,null,null,null,null,null,null,null,0,null,null,null,null,null,null,null,null,null,"00:00:00",null,null,0,null,null,null,null,null,null,null,null,null,null,null,null,null,null,null,null,null,null,null,0,null,0,null,0,null,null,null,null,null,0,null,null,null,null,null,null,null,null,null,"00:00:00",null,null,0,null,null,null,null,null,null,null,null,null,null,null,null,null,null,null,null,null,null,null,0,null,0,null,0,null,null,null,null,null,0]
["合　　計 　",null,null,null,null,null,null,null,null,null,null,null,null,null,null,null,null,null,null,null,null,null,null,null,null,null,null,null,null,null,null,null,null,{"$f":"SUM(AH16:AP33)","v":0},null,null,null,null,null,null,null,null,null,"合　　計 　",null,null,null,null,null,null,null,null,null,null,null,null,null,null,null,null,null,null,null,null,null,null,null,null,null,null,null,null,null,null,null,null,{"$f":"AH34","v":0},null,null,null,null,null,null,null,null,null,"合　　計 　",null,null,null,null,null,null,null,null,null,null,null,null,null,null,null,null,null,null,null,null,null,null,null,null,null,null,null,null,null,null,null,null,{"$f":"BY34","v":0}]
["※注文金額20万円以上の工事は、対応する注文書の注文番号をご記入ください。",null,null,null,null,null,null,null,null,null,null,null,null,null,null,null,null,null,null,null,null,null,null,null,null,null,null,null,null,null,null,null,null,null,null,null,null,null,null,null,null,null,null,"※注文金額20万円以上の工事は、対応する注文書の注文番号をご記入ください。",null,null,null,null,null,null,null,null,null,null,null,null,null,null,null,null,null,null,null,null,null,null,null,null,null,null,null,null,null,null,null,null,null,null,null,null,null,null,null,null,null,null,"※注文金額20万円以上の工事は、対応する注文書の注文番号をご記入ください。"]
["※物品・資材の納入、仮設材・重機車輌等リース料以外のご請求は工事用の内訳明細書及び集計請求書をご使用下さい。",null,null,null,null,null,null,null,null,null,null,null,null,null,null,null,null,null,null,null,null,null,null,null,null,null,null,null,null,null,null,null,null,null,null,null,null,null,null,null,null,null,null,"※物品・資材の納入、仮設材・重機車輌等リース料以外のご請求は工事用の内訳明細書及び集計請求書をご使用下さい。",null,null,null,null,null,null,null,null,null,null,null,null,null,null,null,null,null,null,null,null,null,null,null,null,null,null,null,null,null,null,null,null,null,null,null,null,null,null,null,null,null,null,"※物品・資材の納入、仮設材・重機車輌等リース料以外のご請求は工事用の内訳明細書及び集計請求書をご使用下さい。"]
["※現場ごとに集計し、集計請求書１部＋内訳明細書２部をご提出ください。",null,null,null,null,null,null,null,null,null,null,null,null,null,null,null,null,null,null,null,null,null,null,null,null,null,null,null,null,null,null,null,null,null,null,null,null,null,null,null,null,null,null,"※現場ごとに集計し、集計請求書１部＋内訳明細書２部をご提出ください。",null,null,null,null,null,null,null,null,null,null,null,null,null,null,null,null,null,null,null,null,null,null,null,null,null,null,null,null,null,null,null,null,null,null,null,null,null,null,null,null,null,null,"※現場ごとに集計し、集計請求書１部＋内訳明細書２部をご提出ください。"]

{"sheet":"内訳明細書④","index":6,"n_rows":37,"n_cols":123,"rows_kept":37,"cut":false,"hidden":false,"merged":[[36,0,36,42],[36,43,36,85],[36,86,36,128],[34,0,34,42],[34,43,34,85],[34,86,34,128],[35,0,35,42],[35,43,35,85],[35,86,35,128],[32,119,32,127],[33,0,33,32],[33,33,33,41],[33,43,33,75],[33,76,33,84],[33,86,33,118],[33,119,33,127],[32,68,32,69],[32,70,32,75],[32,76,32,84],[32,86,32,88],[32,89,32,108],[32,109,32,110],[31,119,31,127],[32,0,32,2],[32,3,32,22],[32,23,32,24],[32,25,32,26],[32,27,32,32],[32,33,32,41],[32,43,32,45],[32,46,32,65],[32,66,32,67],[31,76,31,84],[31,86,31,88],[31,89,31,108],[31,109,31,110],[31,111,31,112],[31,113,31,118],[31,33,31,41],[31,43,31,45],[31,46,31,65],[31,66,31,67],[31,68,31,69],[31,70,31,75],[32,111,32,112],[32,113,32,118],[31,0,31,2],[31,3,31,22],[31,23,31,24],[31,25,31,26],[31,27,31,32],[30,46,30,65],[30,66,30,67],[30,68,30,69],[30,70,30,75],[29,119,29,127],[30,0,30,2],[30,3,30,22],[30,23,30,24],[30,25,30,26],[30,27,30,32],[30,33,30,41],[30,43,30,45],[29,68,29,69],[29,70,29,75],[29,76,29,84],[29,86,29,88],[29,89,29,108],[29,109,29,110],[30,89,30,108],[30,109,30,110],[30,111,30,112],[30,113,30,118],[30,119,30,127],[30,76,30,84],[30,86,30,88],[28,119,28,127],[29,0,29,2],[29,3,29,22],[29,23,29,24],[29,25,29,26],[29,27,29,32],[29,33,29,41],[29,43,29,45],[29,46,29,65],[29,66,29,67],[28,76,28,84],[28,86,28,88],[28,89,28,108],[28,109,28,110],[28,111,28,112],[28,113,28,118],[28,33,28,41],[28,43,28,45],[28,46,28,65],[28,66,28,67],[28,68,28,69],[28,70,28,75],[29,111,29,112],[29,113,29,118],[28,0,28,2],[28,3,28,22],[28,23,28,24],[28,25,28,26],[28,27,28,32],[27,46,27,65],[27,66,27,67],[27,68,27,69],[27,70,27,75],[26,119,26,127],[27,0,27,2],[27,3,27,22],[27,23,27,24],[27,25,27,26],[27,27,27,32],[27,33,27,41],[27,43,27,45],[26,68,26,69],[26,70,26,75],[26,76,26,84],[26,86,26,88],[26,89,26,108],[26,109,26,110],[27,89,27,108],[27,109,27,110],[27,111,27,112],[27,113,27,118],[27,119,27,127],[27,76,27,84],[27,86,27,88],[25,119,25,127],[26,0,26,2],[26,3,26,22],[26,23,26,24],[26,25,26,26],[26,27,26,32],[26,33,26,41],[26,43,26,45],[26,46,26,65],[26,66,26,67],[25,76,25,84],[25,86,25,88],[25,89,25,108],[25,109,25,110],[25,111,25,112],[25,113,25,118],[25,33,25,41],[25,43,25,45],[25,46,25,65],[25,66,25,67],[25,68,25,69],[25,70,25,75],[26,111,26,112],[26,113,26,118],[24,86,24,88],[25,0,25,2],[25,3,25,22],[25,23,25,24],[25,25,25,26],[25,27,25,32],[24,46,24,65],[24,66,24,67],[24,68,24,69],[24,70,24,75],[22,68,22,69],[22,70,22,75],[23,111,23,112],[23,113,23,118],[23,119,23,127],[24,0,24,2],[24,3,24,22],[24,23,24,24],[24,25,24,26],[24,27,24,32],[24,33,24,41],[24,43,24,45],[23,68,23,69],[23,70,23,75],[23,76,23,84],[23,86,23,88],[23,89,23,108],[23,109,23,110],[24,89,24,108],[24,109,24,110],[24,111,24,112],[24,113,24,118],[24,119,24,127],[24,76,24,84],[23,0,23,2],[23,3,23,22],[23,23,23,24],[23,25,23,26],[23,27,23,32],[23,33,23,41],[23,43,23,45],[23,46,23,65],[23,66,23,67],[21,113,21,118],[21,119,21,127],[21,76,21,84],[21,86,21,88],[22,0,22,2],[22,3,22,22],[22,23,22,24],[22,25,22,26],[22,27,22,32],[21,46,21,65],[21,66,21,67],[21,68,21,69],[21,70,21,75],[22,119,22,127],[22,76,22,84],[22,86,22,88],[22,89,22,108],[22,109,22,110],[22,111,22,112],[22,113,22,118],[22,33,22,41],[22,43,22,45],[22,46,22,65],[22,66,22,67],[19,43,19,45],[19,46,19,65],[19,66,19,67],[19,68,19,69],[19,70,19,75],[20,111,20,112],[20,113,20,118],[20,119,20,127],[21,0,21,2],[21,3,21,22],[21,23,21,24],[21,25,21,26],[21,27,21,32],[21,33,21,41],[21,43,21,45],[20,68,20,69],[20,70,20,75],[20,76,20,84],[20,86,20,88],[20,89,20,108],[20,109,20,110],[21,89,21,108],[21,109,21,110],[21,111,21,112],[20,0,20,2],[20,3,20,22],[20,23,20,24],[20,25,20,26],[20,27,20,32],[20,33,20,41],[20,43,20,45],[20,46,20,65],[20,66,20,67],[18,89,18,108],[18,109,18,110],[18,111,18,112],[18,113,18,118],[18,119,18,127],[18,76,18,84],[18,86,18,88],[19,0,19,2],[19,3,19,22],[19,23,19,24],[19,25,19,26],[19,27,19,32],[18,46,18,65],[18,66,18,67],[18,68,18,69],[18,70,18,75],[19,119,19,127],[19,76,19,84],[19,86,19,88],[19,89,19,108],[19,109,19,110],[19,111,19,112],[19,113,19,118],[19,33,19,41],[18,0,18,2],[18,3,18,22],[18,23,18,24],[18,25,18,26],[18,27,18,32],[18,33,18,41],[18,43,18,45],[17,68,17,69],[17,70,17,75],[17,0,17,2],[17,3,17,22],[17,23,17,24],[17,25,17,26],[17,27,17,32],[16,33,16,41],[16,43,16,45],[16,46,16,65],[16,66,16,67],[16,68,16,69],[16,70,16,75],[17,111,17,112],[17,113,17,118],[17,119,17,127],[17,76,17,84],[17,86,17,88],[17,89,17,108],[17,109,17,110],[17,33,17,41],[17,43,17,45],[17,46,17,65],[17,66,17,67],[15,89,15,108],[15,109,15,110],[15,111,15,112],[15,113,15,118],[15,119,15,127],[15,76,15,84],[15,86,15,88],[14,0,14,2],[16,0,16,2],[16,3,16,22],[16,23,16,24],[16,25,16,26],[16,27,16,32],[15,46,15,65],[15,66,15,67],[15,68,15,69],[15,70,15,75],[16,119,16,127],[16,76,16,84],[16,86,16,88],[16,89,16,108],[16,109,16,110],[16,111,16,112],[16,113,16,118],[15,0,15,2],[15,3,15,22],[15,23,15,24],[15,25,15,26],[15,27,15,32],[15,33,15,41],[15,43,15,45],[14,68,14,69],[14,70,14,75],[14,3,14,22],[14,23,14,24],[14,25,14,26],[14,27,14,32],[14,33,14,41],[14,43,14,45],[14,46,14,65],[14,66,14,67],[7,111,7,119],[14,111,14,112],[14,113,14,118],[14,119,14,127],[14,76,14,84],[14,86,14,88],[14,89,14,108],[14,109,14,110],[7,120,7,128],[7,91,7,105],[7,108,7,110],[8,91,9,100],[8,0,9,3],[8,4,9,4],[8,5,9,14],[8,43,9,46],[8,47,9,47],[8,48,9,57],[8,86,9,89],[8,90,9,90],[7,65,7,67],[7,68,7,76],[7,77,7,85],[7,86,7,89],[7,0,7,3],[7,5,7,19],[7,22,7,24],[7,25,7,33],[7,34,7,42],[7,43,7,46],[7,48,7,62],[5,47,6,47],[5,48,6,62],[5,0,6,3],[5,4,6,4],[5,5,6,19],[5,22,6,24],[5,25,6,42],[5,43,6,46],[0,12,1,27],[0,36,1,42],[0,55,1,70],[0,79,1,85],[0,98,1,113],[0,122,1,128],[5,91,6,105],[5,108,6,110],[5,111,6,128],[5,65,6,67],[5,68,6,85],[5,86,6,89],[5,90,6,90]]}
[null,null,null,null,null,null,null,null,null,null,null,null,"内 訳 明 細 書(物 品)",null,null,null,null,null,null,null,null,null,null,null,null,null,null,null,null,null,null,null,null,null,null,null,"【正本】",null,null,null,null,null,null,null,null,null,null,null,null,null,null,null,null,null,null,"内 訳 明 細 書(物 品)",null,null,null,null,null,null,null,null,null,null,null,null,null,null,null,null,null,null,null,null,null,null,null,"【副本】",null,null,null,null,null,null,null,null,null,null,null,null,null,null,null,null,null,null,"内 訳 明 細 書(物 品)",null,null,null,null,null,null,null,null,null,null,null,null,null,null,null,null,null,null,null,null,null,null,null,"【貴社控】"]
[]
[]
[]
[]
["注文番号",null,null,null,null,null,null,null,null,null,null,null,null,null,null,null,null,null,null,null,null,null,"会社名",null,null,{"$f":"CONCATENATE(基本情報登録!$G$13,\" \",基本情報登録!$O$13)","v":" "},null,null,null,null,null,null,null,null,null,null,null,null,null,null,null,null,null,"注文番号",null,null,null,null,{"$f":"F6","v":0},null,null,null,null,null,null,null,null,null,null,null,null,null,null,null,null,"会社名",null,null,{"$f":"Z6","v":" "},null,null,null,null,null,null,null,null,null,null,null,null,null,null,null,null,null,"注文番号",null,null,null,null,{"$f":"AW6","v":0},null,null,null,null,null,null,null,null,null,null,null,null,null,null,null,null,"会社名",null,null,{"$f":"BQ6","v":" "}]
[]
["工事名",null,null,null,null,null,null,null,null,null,null,null,null,null,null,null,null,null,null,null,null,null,"営業担当\n部署･氏名",null,null,null,null,null,null,null,null,null,null,null,null,null,null,null,null,null,null,null,null,"工事名",null,null,null,null,{"$f":"F8","v":0},null,null,null,null,null,null,null,null,null,null,null,null,null,null,null,null,"営業担当\n部署･氏名",null,null,{"$f":"Z8","v":0},null,null,null,null,null,null,null,null,{"$f":"AI8","v":0},null,null,null,null,null,null,null,null,"工事名",null,null,null,null,{"$f":"AW8","v":0},null,null,null,null,null,null,null,null,null,null,null,null,null,null,null,null,"営業担当\n部署･氏名",null,null,{"$f":"BQ8","v":0},null,null,null,null,null,null,null,null,{"$f":"BZ8","v":0}]
["日乃出江口\n担当者名",null,null,null,null,null,null,null,null,null,null,null,null,null,null,null,null,null,null,null,null,null,null,null,null,null,null,null,null,null,null,null,null,null,null,null,null,null,null,null,null,null,null,"日乃出江口\n担当者名",null,null,null,null,{"$f":"F9","v":0},null,null,null,null,null,null,null,null,null,null,null,null,null,null,null,null,null,null,null,null,null,null,null,null,null,null,null,null,null,null,null,null,null,null,null,null,null,"日乃出江口\n担当者名",null,null,null,null,{"$f":"AW9","v":0}]
[]
[]
[]
[]
[]
["日付",null,null,"内　訳　及　び　納　入　先",null,null,null,null,null,null,null,null,null,null,null,null,null,null,null,null,null,null,null,"数量",null,"単位",null,"単価",null,null,null,null,null,"金額",null,null,null,null,null,null,null,null,null,"日付",null,null,"内　訳　及　び　納　入　先",null,null,null,null,null,null,null,null,null,null,null,null,null,null,null,null,null,null,null,"数量",null,"単位",null,"単価",null,null,null,null,null,"金額",null,null,null,null,null,null,null,null,null,"日付",null,null,"内　訳　及　び　納　入　先",null,null,null,null,null,null,null,null,null,null,null,null,null,null,null,null,null,null,null,"数量",null,"単位",null,"単価",null,null,null,null,null,"金額"]
[null,null,null,null,null,null,null,null,null,null,null,null,null,null,null,null,null,null,null,null,null,null,null,null,null,null,null,null,null,null,null,null,null,{"$f":"ROUND(X16*AB16,0)","v":0},null,null,null,null,null,null,null,null,null,{"$f":"A16","v":"00:00:00"},null,null,{"$f":"D16","v":0},null,null,null,null,null,null,null,null,null,null,null,null,null,null,null,null,null,null,null,{"$f":"X16","v":0},null,{"$f":"Z16","v":0},null,{"$f":"AB16","v":0},null,null,null,null,null,{"$f":"AH16","v":0},null,null,null,null,null,null,null,null,null,{"$f":"AR16","v":"00:00:00"},null,null,{"$f":"AU16","v":0},null,null,null,null,null,null,null,null,null,null,null,null,null,null,null,null,null,null,null,{"$f":"BO16","v":0},null,{"$f":"BQ16","v":0},null,{"$f":"BS16","v":0},null,null,null,null,null,{"$f":"BY16","v":0}]
[null,null,null,null,null,null,null,null,null,null,null,null,null,null,null,null,null,null,null,null,null,null,null,null,null,null,null,null,null,null,null,null,null,{"$f":"ROUND(X17*AB17,0)","v":0},null,null,null,null,null,null,null,null,null,{"$f":"A17","v":"00:00:00"},null,null,{"$f":"D17","v":0},null,null,null,null,null,null,null,null,null,null,null,null,null,null,null,null,null,null,null,{"$f":"X17","v":0},null,{"$f":"Z17","v":0},null,{"$f":"AB17","v":0},null,null,null,null,null,{"$f":"AH17","v":0},null,null,null,null,null,null,null,null,null,{"$f":"AR17","v":"00:00:00"},null,null,{"$f":"AU17","v":0},null,null,null,null,null,null,null,null,null,null,null,null,null,null,null,null,null,null,null,{"$f":"BO17","v":0},null,{"$f":"BQ17","v":0},null,{"$f":"BS17","v":0},null,null,null,null,null,{"$f":"BY17","v":0}]
[null,null,null,null,null,null,null,null,null,null,null,null,null,null,null,null,null,null,null,null,null,null,null,null,null,null,null,null,null,null,null,null,null,{"$f":"ROUND(X18*AB18,0)","v":0},null,null,null,null,null,null,null,null,null,{"$f":"A18","v":"00:00:00"},null,null,{"$f":"D18","v":0},null,null,null,null,null,null,null,null,null,null,null,null,null,null,null,null,null,null,null,{"$f":"X18","v":0},null,{"$f":"Z18","v":0},null,{"$f":"AB18","v":0},null,null,null,null,null,{"$f":"AH18","v":0},null,null,null,null,null,null,null,null,null,{"$f":"AR18","v":"00:00:00"},null,null,{"$f":"AU18","v":0},null,null,null,null,null,null,null,null,null,null,null,null,null,null,null,null,null,null,null,{"$f":"BO18","v":0},null,{"$f":"BQ18","v":0},null,{"$f":"BS18","v":0},null,null,null,null,null,{"$f":"BY18","v":0}]
[null,null,null,null,null,null,null,null,null,null,null,null,null,null,null,null,null,null,null,null,null,null,null,null,null,null,null,null,null,null,null,null,null,0,null,null,null,null,null,null,null,null,null,"00:00:00",null,null,0,null,null,null,null,null,null,null,null,null,null,null,null,null,null,null,null,null,null,null,0,null,0,null,0,null,null,null,null,null,0,null,null,null,null,null,null,null,null,null,"00:00:00",null,null,0,null,null,null,null,null,null,null,null,null,null,null,null,null,null,null,null,null,null,null,0,null,0,null,0,null,null,null,null,null,0]
[null,null,null,null,null,null,null,null,null,null,null,null,null,null,null,null,null,null,null,null,null,null,null,null,null,null,null,null,null,null,null,null,null,0,null,null,null,null,null,null,null,null,null,"00:00:00",null,null,0,null,null,null,null,null,null,null,null,null,null,null,null,null,null,null,null,null,null,null,0,null,0,null,0,null,null,null,null,null,0,null,null,null,null,null,null,null,null,null,"00:00:00",null,null,0,null,null,null,null,null,null,null,null,null,null,null,null,null,null,null,null,null,null,null,0,null,0,null,0,null,null,null,null,null,0]
[null,null,null,null,null,null,null,null,null,null,null,null,null,null,null,null,null,null,null,null,null,null,null,null,null,null,null,null,null,null,null,null,null,0,null,null,null,null,null,null,null,null,null,"00:00:00",null,null,0,null,null,null,null,null,null,null,null,null,null,null,null,null,null,null,null,null,null,null,0,null,0,null,0,null,null,null,null,null,0,null,null,null,null,null,null,null,null,null,"00:00:00",null,null,0,null,null,null,null,null,null,null,null,null,null,null,null,null,null,null,null,null,null,null,0,null,0,null,0,null,null,null,null,null,0]
[null,null,null,null,null,null,null,null,null,null,null,null,null,null,null,null,null,null,null,null,null,null,null,null,null,null,null,null,null,null,null,null,null,0,null,null,null,null,null,null,null,null,null,"00:00:00",null,null,0,null,null,null,null,null,null,null,null,null,null,null,null,null,null,null,null,null,null,null,0,null,0,null,0,null,null,null,null,null,0,null,null,null,null,null,null,null,null,null,"00:00:00",null,null,0,null,null,null,null,null,null,null,null,null,null,null,null,null,null,null,null,null,null,null,0,null,0,null,0,null,null,null,null,null,0]
[null,null,null,null,null,null,null,null,null,null,null,null,null,null,null,null,null,null,null,null,null,null,null,null,null,null,null,null,null,null,null,null,null,0,null,null,null,null,null,null,null,null,null,"00:00:00",null,null,0,null,null,null,null,null,null,null,null,null,null,null,null,null,null,null,null,null,null,null,0,null,0,null,0,null,null,null,null,null,0,null,null,null,null,null,null,null,null,null,"00:00:00",null,null,0,null,null,null,null,null,null,null,null,null,null,null,null,null,null,null,null,null,null,null,0,null,0,null,0,null,null,null,null,null,0]
[null,null,null,null,null,null,null,null,null,null,null,null,null,null,null,null,null,null,null,null,null,null,null,null,null,null,null,null,null,null,null,null,null,0,null,null,null,null,null,null,null,null,null,"00:00:00",null,null,0,null,null,null,null,null,null,null,null,null,null,null,null,null,null,null,null,null,null,null,0,null,0,null,0,null,null,null,null,null,0,null,null,null,null,null,null,null,null,null,"00:00:00",null,null,0,null,null,null,null,null,null,null,null,null,null,null,null,null,null,null,null,null,null,null,0,null,0,null,0,null,null,null,null,null,0]
[null,null,null,null,null,null,null,null,null,null,null,null,null,null,null,null,null,null,null,null,null,null,null,null,null,null,null,null,null,null,null,null,null,0,null,null,null,null,null,null,null,null,null,"00:00:00",null,null,0,null,null,null,null,null,null,null,null,null,null,null,null,null,null,null,null,null,null,null,0,null,0,null,0,null,null,null,null,null,0,null,null,null,null,null,null,null,null,null,"00:00:00",null,null,0,null,null,null,null,null,null,null,null,null,null,null,null,null,null,null,null,null,null,null,0,null,0,null,0,null,null,null,null,null,0]
[null,null,null,null,null,null,null,null,null,null,null,null,null,null,null,null,null,null,null,null,null,null,null,null,null,null,null,null,null,null,null,null,null,0,null,null,null,null,null,null,null,null,null,"00:00:00",null,null,0,null,null,null,null,null,null,null,null,null,null,null,null,null,null,null,null,null,null,null,0,null,0,null,0,null,null,null,null,null,0,null,null,null,null,null,null,null,null,null,"00:00:00",null,null,0,null,null,null,null,null,null,null,null,null,null,null,null,null,null,null,null,null,null,null,0,null,0,null,0,null,null,null,null,null,0]
[null,null,null,null,null,null,null,null,null,null,null,null,null,null,null,null,null,null,null,null,null,null,null,null,null,null,null,null,null,null,null,null,null,0,null,null,null,null,null,null,null,null,null,"00:00:00",null,null,0,null,null,null,null,null,null,null,null,null,null,null,null,null,null,null,null,null,null,null,0,null,0,null,0,null,null,null,null,null,0,null,null,null,null,null,null,null,null,null,"00:00:00",null,null,0,null,null,null,null,null,null,null,null,null,null,null,null,null,null,null,null,null,null,null,0,null,0,null,0,null,null,null,null,null,0]
[null,null,null,null,null,null,null,null,null,null,null,null,null,null,null,null,null,null,null,null,null,null,null,null,null,null,null,null,null,null,null,null,null,0,null,null,null,null,null,null,null,null,null,"00:00:00",null,null,0,null,null,null,null,null,null,null,null,null,null,null,null,null,null,null,null,null,null,null,0,null,0,null,0,null,null,null,null,null,0,null,null,null,null,null,null,null,null,null,"00:00:00",null,null,0,null,null,null,null,null,null,null,null,null,null,null,null,null,null,null,null,null,null,null,0,null,0,null,0,null,null,null,null,null,0]
[null,null,null,null,null,null,null,null,null,null,null,null,null,null,null,null,null,null,null,null,null,null,null,null,null,null,null,null,null,null,null,null,null,0,null,null,null,null,null,null,null,null,null,"00:00:00",null,null,0,null,null,null,null,null,null,null,null,null,null,null,null,null,null,null,null,null,null,null,0,null,0,null,0,null,null,null,null,null,0,null,null,null,null,null,null,null,null,null,"00:00:00",null,null,0,null,null,null,null,null,null,null,null,null,null,null,null,null,null,null,null,null,null,null,0,null,0,null,0,null,null,null,null,null,0]
[null,null,null,null,null,null,null,null,null,null,null,null,null,null,null,null,null,null,null,null,null,null,null,null,null,null,null,null,null,null,null,null,null,0,null,null,null,null,null,null,null,null,null,"00:00:00",null,null,0,null,null,null,null,null,null,null,null,null,null,null,null,null,null,null,null,null,null,null,0,null,0,null,0,null,null,null,null,null,0,null,null,null,null,null,null,null,null,null,"00:00:00",null,null,0,null,null,null,null,null,null,null,null,null,null,null,null,null,null,null,null,null,null,null,0,null,0,null,0,null,null,null,null,null,0]
[null,null,null,null,null,null,null,null,null,null,null,null,null,null,null,null,null,null,null,null,null,null,null,null,null,null,null,null,null,null,null,null,null,0,null,null,null,null,null,null,null,null,null,"00:00:00",null,null,0,null,null,null,null,null,null,null,null,null,null,null,null,null,null,null,null,null,null,null,0,null,0,null,0,null,null,null,null,null,0,null,null,null,null,null,null,null,null,null,"00:00:00",null,null,0,null,null,null,null,null,null,null,null,null,null,null,null,null,null,null,null,null,null,null,0,null,0,null,0,null,null,null,null,null,0]
[null,null,null,null,null,null,null,null,null,null,null,null,null,null,null,null,null,null,null,null,null,null,null,null,null,null,null,null,null,null,null,null,null,0,null,null,null,null,null,null,null,null,null,"00:00:00",null,null,0,null,null,null,null,null,null,null,null,null,null,null,null,null,null,null,null,null,null,null,0,null,0,null,0,null,null,null,null,null,0,null,null,null,null,null,null,null,null,null,"00:00:00",null,null,0,null,null,null,null,null,null,null,null,null,null,null,null,null,null,null,null,null,null,null,0,null,0,null,0,null,null,null,null,null,0]
[null,null,null,null,null,null,null,null,null,null,null,null,null,null,null,null,null,null,null,null,null,null,null,null,null,null,null,null,null,null,null,null,null,0,null,null,null,null,null,null,null,null,null,"00:00:00",null,null,0,null,null,null,null,null,null,null,null,null,null,null,null,null,null,null,null,null,null,null,0,null,0,null,0,null,null,null,null,null,0,null,null,null,null,null,null,null,null,null,"00:00:00",null,null,0,null,null,null,null,null,null,null,null,null,null,null,null,null,null,null,null,null,null,null,0,null,0,null,0,null,null,null,null,null,0]
["合　　計 　",null,null,null,null,null,null,null,null,null,null,null,null,null,null,null,null,null,null,null,null,null,null,null,null,null,null,null,null,null,null,null,null,{"$f":"SUM(AH16:AP33)","v":0},null,null,null,null,null,null,null,null,null,"合　　計 　",null,null,null,null,null,null,null,null,null,null,null,null,null,null,null,null,null,null,null,null,null,null,null,null,null,null,null,null,null,null,null,null,{"$f":"AH34","v":0},null,null,null,null,null,null,null,null,null,"合　　計 　",null,null,null,null,null,null,null,null,null,null,null,null,null,null,null,null,null,null,null,null,null,null,null,null,null,null,null,null,null,null,null,null,{"$f":"BY34","v":0}]
["※注文金額20万円以上の工事は、対応する注文書の注文番号をご記入ください。",null,null,null,null,null,null,null,null,null,null,null,null,null,null,null,null,null,null,null,null,null,null,null,null,null,null,null,null,null,null,null,null,null,null,null,null,null,null,null,null,null,null,"※注文金額20万円以上の工事は、対応する注文書の注文番号をご記入ください。",null,null,null,null,null,null,null,null,null,null,null,null,null,null,null,null,null,null,null,null,null,null,null,null,null,null,null,null,null,null,null,null,null,null,null,null,null,null,null,null,null,null,"※注文金額20万円以上の工事は、対応する注文書の注文番号をご記入ください。"]
["※物品・資材の納入、仮設材・重機車輌等リース料以外のご請求は工事用の内訳明細書及び集計請求書をご使用下さい。",null,null,null,null,null,null,null,null,null,null,null,null,null,null,null,null,null,null,null,null,null,null,null,null,null,null,null,null,null,null,null,null,null,null,null,null,null,null,null,null,null,null,"※物品・資材の納入、仮設材・重機車輌等リース料以外のご請求は工事用の内訳明細書及び集計請求書をご使用下さい。",null,null,null,null,null,null,null,null,null,null,null,null,null,null,null,null,null,null,null,null,null,null,null,null,null,null,null,null,null,null,null,null,null,null,null,null,null,null,null,null,null,null,"※物品・資材の納入、仮設材・重機車輌等リース料以外のご請求は工事用の内訳明細書及び集計請求書をご使用下さい。"]
["※現場ごとに集計し、集計請求書１部＋内訳明細書２部をご提出ください。",null,null,null,null,null,null,null,null,null,null,null,null,null,null,null,null,null,null,null,null,null,null,null,null,null,null,null,null,null,null,null,null,null,null,null,null,null,null,null,null,null,null,"※現場ごとに集計し、集計請求書１部＋内訳明細書２部をご提出ください。",null,null,null,null,null,null,null,null,null,null,null,null,null,null,null,null,null,null,null,null,null,null,null,null,null,null,null,null,null,null,null,null,null,null,null,null,null,null,null,null,null,null,"※現場ごとに集計し、集計請求書１部＋内訳明細書２部をご提出ください。"]

{"sheet":"内訳明細書⑤","index":7,"n_rows":37,"n_cols":123,"rows_kept":37,"cut":false,"hidden":false,"merged":[[36,0,36,42],[36,43,36,85],[36,86,36,128],[34,0,34,42],[34,43,34,85],[34,86,34,128],[35,0,35,42],[35,43,35,85],[35,86,35,128],[32,119,32,127],[33,0,33,32],[33,33,33,41],[33,43,33,75],[33,76,33,84],[33,86,33,118],[33,119,33,127],[32,68,32,69],[32,70,32,75],[32,76,32,84],[32,86,32,88],[32,89,32,108],[32,109,32,110],[31,119,31,127],[32,0,32,2],[32,3,32,22],[32,23,32,24],[32,25,32,26],[32,27,32,32],[32,33,32,41],[32,43,32,45],[32,46,32,65],[32,66,32,67],[31,76,31,84],[31,86,31,88],[31,89,31,108],[31,109,31,110],[31,111,31,112],[31,113,31,118],[31,33,31,41],[31,43,31,45],[31,46,31,65],[31,66,31,67],[31,68,31,69],[31,70,31,75],[32,111,32,112],[32,113,32,118],[31,0,31,2],[31,3,31,22],[31,23,31,24],[31,25,31,26],[31,27,31,32],[30,46,30,65],[30,66,30,67],[30,68,30,69],[30,70,30,75],[29,119,29,127],[30,0,30,2],[30,3,30,22],[30,23,30,24],[30,25,30,26],[30,27,30,32],[30,33,30,41],[30,43,30,45],[29,68,29,69],[29,70,29,75],[29,76,29,84],[29,86,29,88],[29,89,29,108],[29,109,29,110],[30,89,30,108],[30,109,30,110],[30,111,30,112],[30,113,30,118],[30,119,30,127],[30,76,30,84],[30,86,30,88],[28,119,28,127],[29,0,29,2],[29,3,29,22],[29,23,29,24],[29,25,29,26],[29,27,29,32],[29,33,29,41],[29,43,29,45],[29,46,29,65],[29,66,29,67],[28,76,28,84],[28,86,28,88],[28,89,28,108],[28,109,28,110],[28,111,28,112],[28,113,28,118],[28,33,28,41],[28,43,28,45],[28,46,28,65],[28,66,28,67],[28,68,28,69],[28,70,28,75],[29,111,29,112],[29,113,29,118],[28,0,28,2],[28,3,28,22],[28,23,28,24],[28,25,28,26],[28,27,28,32],[27,46,27,65],[27,66,27,67],[27,68,27,69],[27,70,27,75],[26,119,26,127],[27,0,27,2],[27,3,27,22],[27,23,27,24],[27,25,27,26],[27,27,27,32],[27,33,27,41],[27,43,27,45],[26,68,26,69],[26,70,26,75],[26,76,26,84],[26,86,26,88],[26,89,26,108],[26,109,26,110],[27,89,27,108],[27,109,27,110],[27,111,27,112],[27,113,27,118],[27,119,27,127],[27,76,27,84],[27,86,27,88],[25,119,25,127],[26,0,26,2],[26,3,26,22],[26,23,26,24],[26,25,26,26],[26,27,26,32],[26,33,26,41],[26,43,26,45],[26,46,26,65],[26,66,26,67],[25,76,25,84],[25,86,25,88],[25,89,25,108],[25,109,25,110],[25,111,25,112],[25,113,25,118],[25,33,25,41],[25,43,25,45],[25,46,25,65],[25,66,25,67],[25,68,25,69],[25,70,25,75],[26,111,26,112],[26,113,26,118],[24,86,24,88],[25,0,25,2],[25,3,25,22],[25,23,25,24],[25,25,25,26],[25,27,25,32],[24,46,24,65],[24,66,24,67],[24,68,24,69],[24,70,24,75],[22,68,22,69],[22,70,22,75],[23,111,23,112],[23,113,23,118],[23,119,23,127],[24,0,24,2],[24,3,24,22],[24,23,24,24],[24,25,24,26],[24,27,24,32],[24,33,24,41],[24,43,24,45],[23,68,23,69],[23,70,23,75],[23,76,23,84],[23,86,23,88],[23,89,23,108],[23,109,23,110],[24,89,24,108],[24,109,24,110],[24,111,24,112],[24,113,24,118],[24,119,24,127],[24,76,24,84],[23,0,23,2],[23,3,23,22],[23,23,23,24],[23,25,23,26],[23,27,23,32],[23,33,23,41],[23,43,23,45],[23,46,23,65],[23,66,23,67],[21,113,21,118],[21,119,21,127],[21,76,21,84],[21,86,21,88],[22,0,22,2],[22,3,22,22],[22,23,22,24],[22,25,22,26],[22,27,22,32],[21,46,21,65],[21,66,21,67],[21,68,21,69],[21,70,21,75],[22,119,22,127],[22,76,22,84],[22,86,22,88],[22,89,22,108],[22,109,22,110],[22,111,22,112],[22,113,22,118],[22,33,22,41],[22,43,22,45],[22,46,22,65],[22,66,22,67],[19,43,19,45],[19,46,19,65],[19,66,19,67],[19,68,19,69],[19,70,19,75],[20,111,20,112],[20,113,20,118],[20,119,20,127],[21,0,21,2],[21,3,21,22],[21,23,21,24],[21,25,21,26],[21,27,21,32],[21,33,21,41],[21,43,21,45],[20,68,20,69],[20,70,20,75],[20,76,20,84],[20,86,20,88],[20,89,20,108],[20,109,20,110],[21,89,21,108],[21,109,21,110],[21,111,21,112],[20,0,20,2],[20,3,20,22],[20,23,20,24],[20,25,20,26],[20,27,20,32],[20,33,20,41],[20,43,20,45],[20,46,20,65],[20,66,20,67],[18,89,18,108],[18,109,18,110],[18,111,18,112],[18,113,18,118],[18,119,18,127],[18,76,18,84],[18,86,18,88],[19,0,19,2],[19,3,19,22],[19,23,19,24],[19,25,19,26],[19,27,19,32],[18,46,18,65],[18,66,18,67],[18,68,18,69],[18,70,18,75],[19,119,19,127],[19,76,19,84],[19,86,19,88],[19,89,19,108],[19,109,19,110],[19,111,19,112],[19,113,19,118],[19,33,19,41],[18,0,18,2],[18,3,18,22],[18,23,18,24],[18,25,18,26],[18,27,18,32],[18,33,18,41],[18,43,18,45],[17,68,17,69],[17,70,17,75],[17,0,17,2],[17,3,17,22],[17,23,17,24],[17,25,17,26],[17,27,17,32],[16,33,16,41],[16,43,16,45],[16,46,16,65],[16,66,16,67],[16,68,16,69],[16,70,16,75],[17,111,17,112],[17,113,17,118],[17,119,17,127],[17,76,17,84],[17,86,17,88],[17,89,17,108],[17,109,17,110],[17,33,17,41],[17,43,17,45],[17,46,17,65],[17,66,17,67],[15,89,15,108],[15,109,15,110],[15,111,15,112],[15,113,15,118],[15,119,15,127],[15,76,15,84],[15,86,15,88],[14,0,14,2],[16,0,16,2],[16,3,16,22],[16,23,16,24],[16,25,16,26],[16,27,16,32],[15,46,15,65],[15,66,15,67],[15,68,15,69],[15,70,15,75],[16,119,16,127],[16,76,16,84],[16,86,16,88],[16,89,16,108],[16,109,16,110],[16,111,16,112],[16,113,16,118],[15,0,15,2],[15,3,15,22],[15,23,15,24],[15,25,15,26],[15,27,15,32],[15,33,15,41],[15,43,15,45],[14,68,14,69],[14,70,14,75],[14,3,14,22],[14,23,14,24],[14,25,14,26],[14,27,14,32],[14,33,14,41],[14,43,14,45],[14,46,14,65],[14,66,14,67],[7,111,7,119],[14,111,14,112],[14,113,14,118],[14,119,14,127],[14,76,14,84],[14,86,14,88],[14,89,14,108],[14,109,14,110],[7,120,7,128],[7,91,7,105],[7,108,7,110],[8,91,9,100],[8,0,9,3],[8,4,9,4],[8,5,9,14],[8,43,9,46],[8,47,9,47],[8,48,9,57],[8,86,9,89],[8,90,9,90],[7,65,7,67],[7,68,7,76],[7,77,7,85],[7,86,7,89],[7,0,7,3],[7,5,7,19],[7,22,7,24],[7,25,7,33],[7,34,7,42],[7,43,7,46],[7,48,7,62],[5,47,6,47],[5,48,6,62],[5,0,6,3],[5,4,6,4],[5,5,6,19],[5,22,6,24],[5,25,6,42],[5,43,6,46],[0,12,1,27],[0,36,1,42],[0,55,1,70],[0,79,1,85],[0,98,1,113],[0,122,1,128],[5,91,6,105],[5,108,6,110],[5,111,6,128],[5,65,6,67],[5,68,6,85],[5,86,6,89],[5,90,6,90]]}
[null,null,null,null,null,null,null,null,null,null,null,null,"内 訳 明 細 書(物 品)",null,null,null,null,null,null,null,null,null,null,null,null,null,null,null,null,null,null,null,null,null,null,null,"【正本】",null,null,null,null,null,null,null,null,null,null,null,null,null,null,null,null,null,null,"内 訳 明 細 書(物 品)",null,null,null,null,null,null,null,null,null,null,null,null,null,null,null,null,null,null,null,null,null,null,null,"【副本】",null,null,null,null,null,null,null,null,null,null,null,null,null,null,null,null,null,null,"内 訳 明 細 書(物 品)",null,null,null,null,null,null,null,null,null,null,null,null,null,null,null,null,null,null,null,null,null,null,null,"【貴社控】"]
[]
[]
[]
[]
["注文番号",null,null,null,null,null,null,null,null,null,null,null,null,null,null,null,null,null,null,null,null,null,"会社名",null,null,{"$f":"CONCATENATE(基本情報登録!$G$13,\" \",基本情報登録!$O$13)","v":" "},null,null,null,null,null,null,null,null,null,null,null,null,null,null,null,null,null,"注文番号",null,null,null,null,{"$f":"F6","v":0},null,null,null,null,null,null,null,null,null,null,null,null,null,null,null,null,"会社名",null,null,{"$f":"Z6","v":" "},null,null,null,null,null,null,null,null,null,null,null,null,null,null,null,null,null,"注文番号",null,null,null,null,{"$f":"AW6","v":0},null,null,null,null,null,null,null,null,null,null,null,null,null,null,null,null,"会社名",null,null,{"$f":"BQ6","v":" "}]
[]
["工事名",null,null,null,null,null,null,null,null,null,null,null,null,null,null,null,null,null,null,null,null,null,"営業担当\n部署･氏名",null,null,null,null,null,null,null,null,null,null,null,null,null,null,null,null,null,null,null,null,"工事名",null,null,null,null,{"$f":"F8","v":0},null,null,null,null,null,null,null,null,null,null,null,null,null,null,null,null,"営業担当\n部署･氏名",null,null,{"$f":"Z8","v":0},null,null,null,null,null,null,null,null,{"$f":"AI8","v":0},null,null,null,null,null,null,null,null,"工事名",null,null,null,null,{"$f":"AW8","v":0},null,null,null,null,null,null,null,null,null,null,null,null,null,null,null,null,"営業担当\n部署･氏名",null,null,{"$f":"BQ8","v":0},null,null,null,null,null,null,null,null,{"$f":"BZ8","v":0}]
["日乃出江口\n担当者名",null,null,null,null,null,null,null,null,null,null,null,null,null,null,null,null,null,null,null,null,null,null,null,null,null,null,null,null,null,null,null,null,null,null,null,null,null,null,null,null,null,null,"日乃出江口\n担当者名",null,null,null,null,{"$f":"F9","v":0},null,null,null,null,null,null,null,null,null,null,null,null,null,null,null,null,null,null,null,null,null,null,null,null,null,null,null,null,null,null,null,null,null,null,null,null,null,"日乃出江口\n担当者名",null,null,null,null,{"$f":"AW9","v":0}]
[]
[]
[]
[]
[]
["日付",null,null,"内　訳　及　び　納　入　先",null,null,null,null,null,null,null,null,null,null,null,null,null,null,null,null,null,null,null,"数量",null,"単位",null,"単価",null,null,null,null,null,"金額",null,null,null,null,null,null,null,null,null,"日付",null,null,"内　訳　及　び　納　入　先",null,null,null,null,null,null,null,null,null,null,null,null,null,null,null,null,null,null,null,"数量",null,"単位",null,"単価",null,null,null,null,null,"金額",null,null,null,null,null,null,null,null,null,"日付",null,null,"内　訳　及　び　納　入　先",null,null,null,null,null,null,null,null,null,null,null,null,null,null,null,null,null,null,null,"数量",null,"単位",null,"単価",null,null,null,null,null,"金額"]
[null,null,null,null,null,null,null,null,null,null,null,null,null,null,null,null,null,null,null,null,null,null,null,null,null,null,null,null,null,null,null,null,null,{"$f":"ROUND(X16*AB16,0)","v":0},null,null,null,null,null,null,null,null,null,{"$f":"A16","v":"00:00:00"},null,null,{"$f":"D16","v":0},null,null,null,null,null,null,null,null,null,null,null,null,null,null,null,null,null,null,null,{"$f":"X16","v":0},null,{"$f":"Z16","v":0},null,{"$f":"AB16","v":0},null,null,null,null,null,{"$f":"AH16","v":0},null,null,null,null,null,null,null,null,null,{"$f":"AR16","v":"00:00:00"},null,null,{"$f":"AU16","v":0},null,null,null,null,null,null,null,null,null,null,null,null,null,null,null,null,null,null,null,{"$f":"BO16","v":0},null,{"$f":"BQ16","v":0},null,{"$f":"BS16","v":0},null,null,null,null,null,{"$f":"BY16","v":0}]
[null,null,null,null,null,null,null,null,null,null,null,null,null,null,null,null,null,null,null,null,null,null,null,null,null,null,null,null,null,null,null,null,null,{"$f":"ROUND(X17*AB17,0)","v":0},null,null,null,null,null,null,null,null,null,{"$f":"A17","v":"00:00:00"},null,null,{"$f":"D17","v":0},null,null,null,null,null,null,null,null,null,null,null,null,null,null,null,null,null,null,null,{"$f":"X17","v":0},null,{"$f":"Z17","v":0},null,{"$f":"AB17","v":0},null,null,null,null,null,{"$f":"AH17","v":0},null,null,null,null,null,null,null,null,null,{"$f":"AR17","v":"00:00:00"},null,null,{"$f":"AU17","v":0},null,null,null,null,null,null,null,null,null,null,null,null,null,null,null,null,null,null,null,{"$f":"BO17","v":0},null,{"$f":"BQ17","v":0},null,{"$f":"BS17","v":0},null,null,null,null,null,{"$f":"BY17","v":0}]
[null,null,null,null,null,null,null,null,null,null,null,null,null,null,null,null,null,null,null,null,null,null,null,null,null,null,null,null,null,null,null,null,null,{"$f":"ROUND(X18*AB18,0)","v":0},null,null,null,null,null,null,null,null,null,{"$f":"A18","v":"00:00:00"},null,null,{"$f":"D18","v":0},null,null,null,null,null,null,null,null,null,null,null,null,null,null,null,null,null,null,null,{"$f":"X18","v":0},null,{"$f":"Z18","v":0},null,{"$f":"AB18","v":0},null,null,null,null,null,{"$f":"AH18","v":0},null,null,null,null,null,null,null,null,null,{"$f":"AR18","v":"00:00:00"},null,null,{"$f":"AU18","v":0},null,null,null,null,null,null,null,null,null,null,null,null,null,null,null,null,null,null,null,{"$f":"BO18","v":0},null,{"$f":"BQ18","v":0},null,{"$f":"BS18","v":0},null,null,null,null,null,{"$f":"BY18","v":0}]
[null,null,null,null,null,null,null,null,null,null,null,null,null,null,null,null,null,null,null,null,null,null,null,null,null,null,null,null,null,null,null,null,null,0,null,null,null,null,null,null,null,null,null,"00:00:00",null,null,0,null,null,null,null,null,null,null,null,null,null,null,null,null,null,null,null,null,null,null,0,null,0,null,0,null,null,null,null,null,0,null,null,null,null,null,null,null,null,null,"00:00:00",null,null,0,null,null,null,null,null,null,null,null,null,null,null,null,null,null,null,null,null,null,null,0,null,0,null,0,null,null,null,null,null,0]
[null,null,null,null,null,null,null,null,null,null,null,null,null,null,null,null,null,null,null,null,null,null,null,null,null,null,null,null,null,null,null,null,null,0,null,null,null,null,null,null,null,null,null,"00:00:00",null,null,0,null,null,null,null,null,null,null,null,null,null,null,null,null,null,null,null,null,null,null,0,null,0,null,0,null,null,null,null,null,0,null,null,null,null,null,null,null,null,null,"00:00:00",null,null,0,null,null,null,null,null,null,null,null,null,null,null,null,null,null,null,null,null,null,null,0,null,0,null,0,null,null,null,null,null,0]
[null,null,null,null,null,null,null,null,null,null,null,null,null,null,null,null,null,null,null,null,null,null,null,null,null,null,null,null,null,null,null,null,null,0,null,null,null,null,null,null,null,null,null,"00:00:00",null,null,0,null,null,null,null,null,null,null,null,null,null,null,null,null,null,null,null,null,null,null,0,null,0,null,0,null,null,null,null,null,0,null,null,null,null,null,null,null,null,null,"00:00:00",null,null,0,null,null,null,null,null,null,null,null,null,null,null,null,null,null,null,null,null,null,null,0,null,0,null,0,null,null,null,null,null,0]
[null,null,null,null,null,null,null,null,null,null,null,null,null,null,null,null,null,null,null,null,null,null,null,null,null,null,null,null,null,null,null,null,null,0,null,null,null,null,null,null,null,null,null,"00:00:00",null,null,0,null,null,null,null,null,null,null,null,null,null,null,null,null,null,null,null,null,null,null,0,null,0,null,0,null,null,null,null,null,0,null,null,null,null,null,null,null,null,null,"00:00:00",null,null,0,null,null,null,null,null,null,null,null,null,null,null,null,null,null,null,null,null,null,null,0,null,0,null,0,null,null,null,null,null,0]
[null,null,null,null,null,null,null,null,null,null,null,null,null,null,null,null,null,null,null,null,null,null,null,null,null,null,null,null,null,null,null,null,null,0,null,null,null,null,null,null,null,null,null,"00:00:00",null,null,0,null,null,null,null,null,null,null,null,null,null,null,null,null,null,null,null,null,null,null,0,null,0,null,0,null,null,null,null,null,0,null,null,null,null,null,null,null,null,null,"00:00:00",null,null,0,null,null,null,null,null,null,null,null,null,null,null,null,null,null,null,null,null,null,null,0,null,0,null,0,null,null,null,null,null,0]
[null,null,null,null,null,null,null,null,null,null,null,null,null,null,null,null,null,null,null,null,null,null,null,null,null,null,null,null,null,null,null,null,null,0,null,null,null,null,null,null,null,null,null,"00:00:00",null,null,0,null,null,null,null,null,null,null,null,null,null,null,null,null,null,null,null,null,null,null,0,null,0,null,0,null,null,null,null,null,0,null,null,null,null,null,null,null,null,null,"00:00:00",null,null,0,null,null,null,null,null,null,null,null,null,null,null,null,null,null,null,null,null,null,null,0,null,0,null,0,null,null,null,null,null,0]
[null,null,null,null,null,null,null,null,null,null,null,null,null,null,null,null,null,null,null,null,null,null,null,null,null,null,null,null,null,null,null,null,null,0,null,null,null,null,null,null,null,null,null,"00:00:00",null,null,0,null,null,null,null,null,null,null,null,null,null,null,null,null,null,null,null,null,null,null,0,null,0,null,0,null,null,null,null,null,0,null,null,null,null,null,null,null,null,null,"00:00:00",null,null,0,null,null,null,null,null,null,null,null,null,null,null,null,null,null,null,null,null,null,null,0,null,0,null,0,null,null,null,null,null,0]
[null,null,null,null,null,null,null,null,null,null,null,null,null,null,null,null,null,null,null,null,null,null,null,null,null,null,null,null,null,null,null,null,null,0,null,null,null,null,null,null,null,null,null,"00:00:00",null,null,0,null,null,null,null,null,null,null,null,null,null,null,null,null,null,null,null,null,null,null,0,null,0,null,0,null,null,null,null,null,0,null,null,null,null,null,null,null,null,null,"00:00:00",null,null,0,null,null,null,null,null,null,null,null,null,null,null,null,null,null,null,null,null,null,null,0,null,0,null,0,null,null,null,null,null,0]
[null,null,null,null,null,null,null,null,null,null,null,null,null,null,null,null,null,null,null,null,null,null,null,null,null,null,null,null,null,null,null,null,null,0,null,null,null,null,null,null,null,null,null,"00:00:00",null,null,0,null,null,null,null,null,null,null,null,null,null,null,null,null,null,null,null,null,null,null,0,null,0,null,0,null,null,null,null,null,0,null,null,null,null,null,null,null,null,null,"00:00:00",null,null,0,null,null,null,null,null,null,null,null,null,null,null,null,null,null,null,null,null,null,null,0,null,0,null,0,null,null,null,null,null,0]
[null,null,null,null,null,null,null,null,null,null,null,null,null,null,null,null,null,null,null,null,null,null,null,null,null,null,null,null,null,null,null,null,null,0,null,null,null,null,null,null,null,null,null,"00:00:00",null,null,0,null,null,null,null,null,null,null,null,null,null,null,null,null,null,null,null,null,null,null,0,null,0,null,0,null,null,null,null,null,0,null,null,null,null,null,null,null,null,null,"00:00:00",null,null,0,null,null,null,null,null,null,null,null,null,null,null,null,null,null,null,null,null,null,null,0,null,0,null,0,null,null,null,null,null,0]
[null,null,null,null,null,null,null,null,null,null,null,null,null,null,null,null,null,null,null,null,null,null,null,null,null,null,null,null,null,null,null,null,null,0,null,null,null,null,null,null,null,null,null,"00:00:00",null,null,0,null,null,null,null,null,null,null,null,null,null,null,null,null,null,null,null,null,null,null,0,null,0,null,0,null,null,null,null,null,0,null,null,null,null,null,null,null,null,null,"00:00:00",null,null,0,null,null,null,null,null,null,null,null,null,null,null,null,null,null,null,null,null,null,null,0,null,0,null,0,null,null,null,null,null,0]
[null,null,null,null,null,null,null,null,null,null,null,null,null,null,null,null,null,null,null,null,null,null,null,null,null,null,null,null,null,null,null,null,null,0,null,null,null,null,null,null,null,null,null,"00:00:00",null,null,0,null,null,null,null,null,null,null,null,null,null,null,null,null,null,null,null,null,null,null,0,null,0,null,0,null,null,null,null,null,0,null,null,null,null,null,null,null,null,null,"00:00:00",null,null,0,null,null,null,null,null,null,null,null,null,null,null,null,null,null,null,null,null,null,null,0,null,0,null,0,null,null,null,null,null,0]
[null,null,null,null,null,null,null,null,null,null,null,null,null,null,null,null,null,null,null,null,null,null,null,null,null,null,null,null,null,null,null,null,null,0,null,null,null,null,null,null,null,null,null,"00:00:00",null,null,0,null,null,null,null,null,null,null,null,null,null,null,null,null,null,null,null,null,null,null,0,null,0,null,0,null,null,null,null,null,0,null,null,null,null,null,null,null,null,null,"00:00:00",null,null,0,null,null,null,null,null,null,null,null,null,null,null,null,null,null,null,null,null,null,null,0,null,0,null,0,null,null,null,null,null,0]
[null,null,null,null,null,null,null,null,null,null,null,null,null,null,null,null,null,null,null,null,null,null,null,null,null,null,null,null,null,null,null,null,null,0,null,null,null,null,null,null,null,null,null,"00:00:00",null,null,0,null,null,null,null,null,null,null,null,null,null,null,null,null,null,null,null,null,null,null,0,null,0,null,0,null,null,null,null,null,0,null,null,null,null,null,null,null,null,null,"00:00:00",null,null,0,null,null,null,null,null,null,null,null,null,null,null,null,null,null,null,null,null,null,null,0,null,0,null,0,null,null,null,null,null,0]
[null,null,null,null,null,null,null,null,null,null,null,null,null,null,null,null,null,null,null,null,null,null,null,null,null,null,null,null,null,null,null,null,null,0,null,null,null,null,null,null,null,null,null,"00:00:00",null,null,0,null,null,null,null,null,null,null,null,null,null,null,null,null,null,null,null,null,null,null,0,null,0,null,0,null,null,null,null,null,0,null,null,null,null,null,null,null,null,null,"00:00:00",null,null,0,null,null,null,null,null,null,null,null,null,null,null,null,null,null,null,null,null,null,null,0,null,0,null,0,null,null,null,null,null,0]
["合　　計 　",null,null,null,null,null,null,null,null,null,null,null,null,null,null,null,null,null,null,null,null,null,null,null,null,null,null,null,null,null,null,null,null,{"$f":"SUM(AH16:AP33)","v":0},null,null,null,null,null,null,null,null,null,"合　　計 　",null,null,null,null,null,null,null,null,null,null,null,null,null,null,null,null,null,null,null,null,null,null,null,null,null,null,null,null,null,null,null,null,{"$f":"AH34","v":0},null,null,null,null,null,null,null,null,null,"合　　計 　",null,null,null,null,null,null,null,null,null,null,null,null,null,null,null,null,null,null,null,null,null,null,null,null,null,null,null,null,null,null,null,null,{"$f":"BY34","v":0}]
["※注文金額20万円以上の工事は、対応する注文書の注文番号をご記入ください。",null,null,null,null,null,null,null,null,null,null,null,null,null,null,null,null,null,null,null,null,null,null,null,null,null,null,null,null,null,null,null,null,null,null,null,null,null,null,null,null,null,null,"※注文金額20万円以上の工事は、対応する注文書の注文番号をご記入ください。",null,null,null,null,null,null,null,null,null,null,null,null,null,null,null,null,null,null,null,null,null,null,null,null,null,null,null,null,null,null,null,null,null,null,null,null,null,null,null,null,null,null,"※注文金額20万円以上の工事は、対応する注文書の注文番号をご記入ください。"]
["※物品・資材の納入、仮設材・重機車輌等リース料以外のご請求は工事用の内訳明細書及び集計請求書をご使用下さい。",null,null,null,null,null,null,null,null,null,null,null,null,null,null,null,null,null,null,null,null,null,null,null,null,null,null,null,null,null,null,null,null,null,null,null,null,null,null,null,null,null,null,"※物品・資材の納入、仮設材・重機車輌等リース料以外のご請求は工事用の内訳明細書及び集計請求書をご使用下さい。",null,null,null,null,null,null,null,null,null,null,null,null,null,null,null,null,null,null,null,null,null,null,null,null,null,null,null,null,null,null,null,null,null,null,null,null,null,null,null,null,null,null,"※物品・資材の納入、仮設材・重機車輌等リース料以外のご請求は工事用の内訳明細書及び集計請求書をご使用下さい。"]
["※現場ごとに集計し、集計請求書１部＋内訳明細書２部をご提出ください。",null,null,null,null,null,null,null,null,null,null,null,null,null,null,null,null,null,null,null,null,null,null,null,null,null,null,null,null,null,null,null,null,null,null,null,null,null,null,null,null,null,null,"※現場ごとに集計し、集計請求書１部＋内訳明細書２部をご提出ください。",null,null,null,null,null,null,null,null,null,null,null,null,null,null,null,null,null,null,null,null,null,null,null,null,null,null,null,null,null,null,null,null,null,null,null,null,null,null,null,null,null,null,"※現場ごとに集計し、集計請求書１部＋内訳明細書２部をご提出ください。"]

{"sheet":"内訳明細書（記入例)","index":8,"n_rows":36,"n_cols":123,"rows_kept":36,"cut":false,"hidden":false,"merged":[[35,86,35,128],[35,0,35,42],[30,3,30,21],[30,22,30,24],[31,3,31,21],[28,0,28,2],[29,0,29,2],[28,25,28,26],[28,27,28,32],[28,33,28,41],[29,25,29,26],[29,27,29,32],[29,33,29,41],[28,3,28,21],[28,22,28,24],[29,3,29,21],[29,22,29,24],[33,0,33,41],[34,0,34,41],[30,0,30,2],[31,0,31,2],[30,25,30,26],[30,27,30,32],[31,22,31,24],[31,27,31,32],[26,0,26,2],[27,0,27,2],[26,25,26,26],[26,27,26,32],[26,33,26,41],[27,25,27,26],[27,27,27,32],[27,33,27,41],[26,3,26,21],[26,22,26,24],[27,3,27,21],[27,22,27,24],[31,33,31,41],[24,0,24,2],[25,0,25,2],[24,25,24,26],[24,27,24,32],[24,33,24,41],[25,25,25,26],[25,27,25,32],[25,33,25,41],[24,3,24,21],[24,22,24,24],[25,3,25,21],[25,22,25,24],[22,0,22,2],[23,0,23,2],[22,25,22,26],[22,27,22,32],[22,33,22,41],[23,25,23,26],[23,27,23,32],[23,33,23,41],[22,3,22,21],[22,22,22,24],[23,3,23,21],[23,22,23,24],[21,0,21,2],[20,25,20,26],[20,27,20,32],[20,33,20,41],[21,25,21,26],[21,27,21,32],[21,33,21,41],[20,3,20,21],[20,22,20,24],[21,3,21,21],[21,22,21,24],[18,25,18,26],[18,27,18,32],[18,33,18,41],[19,25,19,26],[19,27,19,32],[19,33,19,41],[19,3,19,21],[19,22,19,24],[20,0,20,2],[18,0,18,2],[18,3,18,21],[18,22,18,24],[19,0,19,2],[0,12,1,27],[4,0,5,3],[4,4,5,4],[4,5,5,17],[4,25,5,29],[4,30,5,41],[15,0,15,2],[8,0,9,3],[8,4,9,4],[14,0,14,2],[8,5,9,12],[14,25,14,26],[14,27,14,32],[14,33,14,41],[15,25,15,26],[15,27,15,32],[15,33,15,41],[14,3,14,21],[14,22,14,24],[15,22,15,24],[15,3,15,21],[6,0,7,3],[6,4,7,4],[6,5,7,17],[6,25,7,29],[6,30,7,35],[6,36,7,41],[16,0,16,2],[17,0,17,2],[16,25,16,26],[16,27,16,32],[16,33,16,41],[17,25,17,26],[17,27,17,32],[17,33,17,41],[16,22,16,24],[16,3,16,21],[17,3,17,21],[17,22,17,24],[32,33,32,41],[32,0,32,32],[30,33,30,41],[31,25,31,26],[16,43,16,45],[16,46,16,64],[16,65,16,67],[16,68,16,69],[18,43,18,45],[18,46,18,64],[18,65,18,67],[18,68,18,69],[21,43,21,45],[21,46,21,64],[21,65,21,67],[21,68,21,69],[24,43,24,45],[24,46,24,64],[24,65,24,67],[24,68,24,69],[27,43,27,45],[27,46,27,64],[27,65,27,67],[27,68,27,69],[16,70,16,75],[16,76,16,84],[6,43,7,46],[6,47,7,47],[6,48,7,60],[6,68,7,72],[8,43,9,46],[8,47,9,47],[17,43,17,45],[17,46,17,64],[17,65,17,67],[17,68,17,69],[17,70,17,75],[17,76,17,84],[14,43,14,45],[14,46,14,64],[14,65,14,67],[14,68,14,69],[14,70,14,75],[14,76,14,84],[15,43,15,45],[15,46,15,64],[15,65,15,67],[15,68,15,69],[18,70,18,75],[18,76,18,84],[19,43,19,45],[19,46,19,64],[19,65,19,67],[19,68,19,69],[19,70,19,75],[19,76,19,84],[20,43,20,45],[20,46,20,64],[20,65,20,67],[20,68,20,69],[20,70,20,75],[20,76,20,84],[21,70,21,75],[21,76,21,84],[22,43,22,45],[22,46,22,64],[22,65,22,67],[22,68,22,69],[22,70,22,75],[22,76,22,84],[23,43,23,45],[23,46,23,64],[23,65,23,67],[23,68,23,69],[23,70,23,75],[23,76,23,84],[24,70,24,75],[24,76,24,84],[25,43,25,45],[25,46,25,64],[25,65,25,67],[25,68,25,69],[25,70,25,75],[25,76,25,84],[26,43,26,45],[26,46,26,64],[26,65,26,67],[26,68,26,69],[26,70,26,75],[26,76,26,84],[31,68,31,69],[31,70,31,75],[31,76,31,84],[32,76,32,84],[27,70,27,75],[27,76,27,84],[28,43,28,45],[28,46,28,64],[28,65,28,67],[28,68,28,69],[28,70,28,75],[28,76,28,84],[29,43,29,45],[29,46,29,64],[29,65,29,67],[29,68,29,69],[29,70,29,75],[29,76,29,84],[35,43,35,85],[15,70,15,75],[15,76,15,84],[0,55,1,70],[4,43,5,46],[4,47,5,47],[4,48,5,60],[4,68,5,72],[4,73,5,84],[6,73,7,78],[6,79,7,84],[8,48,9,55],[30,43,30,45],[30,46,30,64],[30,65,30,67],[30,68,30,69],[30,70,30,75],[30,76,30,84],[32,43,32,75],[33,43,33,84],[34,43,34,84],[31,43,31,45],[31,46,31,64],[31,65,31,67],[8,86,9,89],[8,90,9,90],[8,91,9,98],[14,86,14,88],[14,89,14,107],[14,108,14,110],[14,111,14,112],[14,113,14,118],[14,119,14,127],[0,98,1,113],[4,86,5,89],[4,90,5,90],[4,91,5,103],[4,111,5,115],[4,116,5,127],[6,86,7,89],[6,90,7,90],[6,91,7,103],[6,111,7,115],[6,116,7,121],[6,122,7,127],[15,89,15,107],[15,108,15,110],[15,111,15,112],[15,113,15,118],[15,119,15,127],[16,86,16,88],[16,89,16,107],[16,108,16,110],[16,111,16,112],[16,113,16,118],[16,119,16,127],[15,86,15,88],[17,86,17,88],[17,89,17,107],[17,108,17,110],[17,111,17,112],[17,113,17,118],[17,119,17,127],[18,86,18,88],[18,89,18,107],[18,108,18,110],[18,111,18,112],[18,113,18,118],[18,119,18,127],[19,86,19,88],[19,89,19,107],[19,108,19,110],[19,111,19,112],[19,113,19,118],[19,119,19,127],[20,86,20,88],[20,89,20,107],[20,108,20,110],[20,111,20,112],[20,113,20,118],[20,119,20,127],[21,86,21,88],[21,89,21,107],[21,108,21,110],[21,111,21,112],[21,113,21,118],[21,119,21,127],[22,86,22,88],[22,89,22,107],[22,108,22,110],[22,111,22,112],[22,113,22,118],[22,119,22,127],[23,86,23,88],[23,89,23,107],[23,108,23,110],[23,111,23,112],[23,113,23,118],[23,119,23,127],[24,86,24,88],[24,89,24,107],[24,108,24,110],[24,111,24,112],[24,113,24,118],[24,119,24,127],[25,86,25,88],[25,89,25,107],[25,108,25,110],[25,111,25,112],[25,113,25,118],[25,119,25,127],[26,86,26,88],[26,89,26,107],[26,108,26,110],[26,111,26,112],[26,113,26,118],[26,119,26,127],[30,119,30,127],[27,86,27,88],[27,89,27,107],[27,108,27,110],[27,111,27,112],[27,113,27,118],[27,119,27,127],[28,86,28,88],[28,89,28,107],[28,108,28,110],[28,111,28,112],[28,113,28,118],[28,119,28,127],[34,86,34,127],[0,36,1,42],[0,79,1,85],[0,122,1,128],[31,86,31,88],[31,89,31,107],[31,108,31,110],[31,111,31,112],[31,113,31,118],[31,119,31,127],[32,86,32,118],[32,119,32,127],[33,86,33,127],[29,86,29,88],[29,89,29,107],[29,108,29,110],[29,111,29,112],[29,113,29,118],[29,119,29,127],[30,86,30,88],[30,89,30,107],[30,108,30,110],[30,111,30,112],[30,113,30,118]]}
[null,null,null,null,null,null,null,null,null,null,null,null,"内 訳 明 細 書(納 品)",null,null,null,null,null,null,null,null,null,null,null,null,null,null,null,null,null,null,null,null,null,null,null,"【正本】",null,null,null,null,null,null,null,null,null,null,null,null,null,null,null,null,null,null,"内　 訳　 明　 細　 書",null,null,null,null,null,null,null,null,null,null,null,null,null,null,null,null,null,null,null,null,null,null,null,"【副本】",null,null,null,null,null,null,null,null,null,null,null,null,null,null,null,null,null,null,"内　 訳　 明　 細　 書",null,null,null,null,null,null,null,null,null,null,null,null,null,null,null,null,null,null,null,null,null,null,null,"【貴社控】"]
[]
[]
[]
["注文番号",null,null,null,null,"301508003-01",null,null,null,null,null,null,null,null,null,null,null,null,null,null,null,null,null,null,null,"会社名",null,null,null,null,"株式会社　××建設",null,null,null,null,null,null,null,null,null,null,null,null,"注文番号",null,null,null,null,"301508003-01",null,null,null,null,null,null,null,null,null,null,null,null,null,null,null,null,null,null,null,"会社名",null,null,null,null,"株式会社　××建設",null,null,null,null,null,null,null,null,null,null,null,null,"注文番号",null,null,null,null,"301508003-01",null,null,null,null,null,null,null,null,null,null,null,null,null,null,null,null,null,null,null,"会社名",null,null,null,null,"株式会社　××建設"]
[]
["工事名",null,null,null,null,"××工場窓修理工事",null,null,null,null,null,null,null,null,null,null,null,null,null,null,null,null,null,null,null,"営業担当\n部署・氏名",null,null,null,null,"建築部",null,null,null,null,null,"建築　大介",null,null,null,null,null,null,"工事名",null,null,null,null,"××工場窓修理工事",null,null,null,null,null,null,null,null,null,null,null,null,null,null,null,null,null,null,null,"営業担当\n部署・氏名",null,null,null,null,"建築部",null,null,null,null,null,"建築　大介",null,null,null,null,null,null,"工事名",null,null,null,null,"××工場窓修理工事",null,null,null,null,null,null,null,null,null,null,null,null,null,null,null,null,null,null,null,"営業担当\n部署・氏名",null,null,null,null,"建築部",null,null,null,null,null,"建築　大介"]
[]
["日乃出江口\n担当者名",null,null,null,null,"〇〇部長",null,null,null,null,null,null,null,null,null,null,null,null,null,null,null,null,null,null,null,null,null,null,null,null,null,null,null,null,null,null,null,null,null,null,null,null,null,"日乃出江口\n担当者名",null,null,null,null,"〇〇部長",null,null,null,null,null,null,null,null,null,null,null,null,null,null,null,null,null,null,null,null,null,null,null,null,null,null,null,null,null,null,null,null,null,null,null,null,null,"日乃出江口\n担当者名",null,null,null,null,"〇〇部長"]
[]
[]
[]
[]
[]
["日付",null,null,"内　訳　及　び　納　入　先",null,null,null,null,null,null,null,null,null,null,null,null,null,null,null,null,null,null,"数量",null,null,"単位",null,"単価",null,null,null,null,null,"金額",null,null,null,null,null,null,null,null,null,"日付",null,null,"内　訳　及　び　納　入　先",null,null,null,null,null,null,null,null,null,null,null,null,null,null,null,null,null,null,"数量",null,null,"単位",null,"単価",null,null,null,null,null,"金額",null,null,null,null,null,null,null,null,null,"日付",null,null,"内　訳　及　び　納　入　先",null,null,null,null,null,null,null,null,null,null,null,null,null,null,null,null,null,null,"数量",null,null,"単位",null,"単価",null,null,null,null,null,"金額"]
["2017-11-25",null,null,"調査費",null,null,null,null,null,null,null,null,null,null,null,null,null,null,null,null,null,null,1,null,null,"回",null,4500,null,null,null,null,null,{"$f":"W16*AB16","v":4500},null,null,null,null,null,null,null,null,null,"2017-11-25",null,null,"調査費",null,null,null,null,null,null,null,null,null,null,null,null,null,null,null,null,null,null,1,null,null,"回",null,4500,null,null,null,null,null,{"$f":"BN16*BS16","v":4500},null,null,null,null,null,null,null,null,null,"2017-11-25",null,null,"調査費",null,null,null,null,null,null,null,null,null,null,null,null,null,null,null,null,null,null,1,null,null,"回",null,4500,null,null,null,null,null,{"$f":"DE16*DJ16","v":4500}]
["2017-11-26",null,null,"材料費、消耗品費",null,null,null,null,null,null,null,null,null,null,null,null,null,null,null,null,null,null,1,null,null,"式",null,250000,null,null,null,null,null,{"$f":"W17*AB17","v":250000},null,null,null,null,null,null,null,null,null,"2017-11-26",null,null,"材料費、消耗品費",null,null,null,null,null,null,null,null,null,null,null,null,null,null,null,null,null,null,1,null,null,"式",null,250000,null,null,null,null,null,{"$f":"BN17*BS17","v":250000},null,null,null,null,null,null,null,null,null,"2017-11-26",null,null,"材料費、消耗品費",null,null,null,null,null,null,null,null,null,null,null,null,null,null,null,null,null,null,1,null,null,"式",null,250000,null,null,null,null,null,{"$f":"DE17*DJ17","v":250000}]
["2017-11-26",null,null,"その他修理費用",null,null,null,null,null,null,null,null,null,null,null,null,null,null,null,null,null,null,1,null,null,"式",null,105000,null,null,null,null,null,{"$f":"W18*AB18","v":105000},null,null,null,null,null,null,null,null,null,"2017-11-26",null,null,"その他修理費用",null,null,null,null,null,null,null,null,null,null,null,null,null,null,null,null,null,null,1,null,null,"式",null,105000,null,null,null,null,null,{"$f":"BN18*BS18","v":105000},null,null,null,null,null,null,null,null,null,"2017-11-26",null,null,"その他修理費用",null,null,null,null,null,null,null,null,null,null,null,null,null,null,null,null,null,null,1,null,null,"式",null,105000,null,null,null,null,null,{"$f":"DE18*DJ18","v":105000}]
[null,null,null,null,null,null,null,null,null,null,null,null,null,null,null,null,null,null,null,null,null,null,null,null,null,null,null,null,null,null,null,null,null,{"$f":"X19*AB19","v":0},null,null,null,null,null,null,null,null,null,null,null,null,null,null,null,null,null,null,null,null,null,null,null,null,null,null,null,null,null,null,null,null,null,null,null,null,null,null,null,null,null,null,{"$f":"BO19*BS19","v":0},null,null,null,null,null,null,null,null,null,null,null,null,null,null,null,null,null,null,null,null,null,null,null,null,null,null,null,null,null,null,null,null,null,null,null,null,null,null,null,null,null,null,{"$f":"DF19*DJ19","v":0}]
[null,null,null,null,null,null,null,null,null,null,null,null,null,null,null,null,null,null,null,null,null,null,null,null,null,null,null,null,null,null,null,null,null,0,null,null,null,null,null,null,null,null,null,null,null,null,null,null,null,null,null,null,null,null,null,null,null,null,null,null,null,null,null,null,null,null,null,null,null,null,null,null,null,null,null,null,0,null,null,null,null,null,null,null,null,null,null,null,null,null,null,null,null,null,null,null,null,null,null,null,null,null,null,null,null,null,null,null,null,null,null,null,null,null,null,null,null,null,null,0]
[null,null,null,null,null,null,null,null,null,null,null,null,null,null,null,null,null,null,null,null,null,null,null,null,null,null,null,null,null,null,null,null,null,0,null,null,null,null,null,null,null,null,null,null,null,null,null,null,null,null,null,null,null,null,null,null,null,null,null,null,null,null,null,null,null,null,null,null,null,null,null,null,null,null,null,null,0,null,null,null,null,null,null,null,null,null,null,null,null,null,null,null,null,null,null,null,null,null,null,null,null,null,null,null,null,null,null,null,null,null,null,null,null,null,null,null,null,null,null,0]
[null,null,null,null,null,null,null,null,null,null,null,null,null,null,null,null,null,null,null,null,null,null,null,null,null,null,null,null,null,null,null,null,null,0,null,null,null,null,null,null,null,null,null,null,null,null,null,null,null,null,null,null,null,null,null,null,null,null,null,null,null,null,null,null,null,null,null,null,null,null,null,null,null,null,null,null,0,null,null,null,null,null,null,null,null,null,null,null,null,null,null,null,null,null,null,null,null,null,null,null,null,null,null,null,null,null,null,null,null,null,null,null,null,null,null,null,null,null,null,0]
[null,null,null,null,null,null,null,null,null,null,null,null,null,null,null,null,null,null,null,null,null,null,null,null,null,null,null,null,null,null,null,null,null,0,null,null,null,null,null,null,null,null,null,null,null,null,null,null,null,null,null,null,null,null,null,null,null,null,null,null,null,null,null,null,null,null,null,null,null,null,null,null,null,null,null,null,0,null,null,null,null,null,null,null,null,null,null,null,null,null,null,null,null,null,null,null,null,null,null,null,null,null,null,null,null,null,null,null,null,null,null,null,null,null,null,null,null,null,null,0]
[null,null,null,null,null,null,null,null,null,null,null,null,null,null,null,null,null,null,null,null,null,null,null,null,null,null,null,null,null,null,null,null,null,0,null,null,null,null,null,null,null,null,null,null,null,null,null,null,null,null,null,null,null,null,null,null,null,null,null,null,null,null,null,null,null,null,null,null,null,null,null,null,null,null,null,null,0,null,null,null,null,null,null,null,null,null,null,null,null,null,null,null,null,null,null,null,null,null,null,null,null,null,null,null,null,null,null,null,null,null,null,null,null,null,null,null,null,null,null,0]
[null,null,null,null,null,null,null,null,null,null,null,null,null,null,null,null,null,null,null,null,null,null,null,null,null,null,null,null,null,null,null,null,null,0,null,null,null,null,null,null,null,null,null,null,null,null,null,null,null,null,null,null,null,null,null,null,null,null,null,null,null,null,null,null,null,null,null,null,null,null,null,null,null,null,null,null,0,null,null,null,null,null,null,null,null,null,null,null,null,null,null,null,null,null,null,null,null,null,null,null,null,null,null,null,null,null,null,null,null,null,null,null,null,null,null,null,null,null,null,0]
[null,null,null,null,null,null,null,null,null,null,null,null,null,null,null,null,null,null,null,null,null,null,null,null,null,null,null,null,null,null,null,null,null,0,null,null,null,null,null,null,null,null,null,null,null,null,null,null,null,null,null,null,null,null,null,null,null,null,null,null,null,null,null,null,null,null,null,null,null,null,null,null,null,null,null,null,0,null,null,null,null,null,null,null,null,null,null,null,null,null,null,null,null,null,null,null,null,null,null,null,null,null,null,null,null,null,null,null,null,null,null,null,null,null,null,null,null,null,null,0]
[null,null,null,null,null,null,null,null,null,null,null,null,null,null,null,null,null,null,null,null,null,null,null,null,null,null,null,null,null,null,null,null,null,0,null,null,null,null,null,null,null,null,null,null,null,null,null,null,null,null,null,null,null,null,null,null,null,null,null,null,null,null,null,null,null,null,null,null,null,null,null,null,null,null,null,null,0,null,null,null,null,null,null,null,null,null,null,null,null,null,null,null,null,null,null,null,null,null,null,null,null,null,null,null,null,null,null,null,null,null,null,null,null,null,null,null,null,null,null,0]
[null,null,null,null,null,null,null,null,null,null,null,null,null,null,null,null,null,null,null,null,null,null,null,null,null,null,null,null,null,null,null,null,null,0,null,null,null,null,null,null,null,null,null,null,null,null,null,null,null,null,null,null,null,null,null,null,null,null,null,null,null,null,null,null,null,null,null,null,null,null,null,null,null,null,null,null,0,null,null,null,null,null,null,null,null,null,null,null,null,null,null,null,null,null,null,null,null,null,null,null,null,null,null,null,null,null,null,null,null,null,null,null,null,null,null,null,null,null,null,0]
[null,null,null,null,null,null,null,null,null,null,null,null,null,null,null,null,null,null,null,null,null,null,null,null,null,null,null,null,null,null,null,null,null,0,null,null,null,null,null,null,null,null,null,null,null,null,null,null,null,null,null,null,null,null,null,null,null,null,null,null,null,null,null,null,null,null,null,null,null,null,null,null,null,null,null,null,0,null,null,null,null,null,null,null,null,null,null,null,null,null,null,null,null,null,null,null,null,null,null,null,null,null,null,null,null,null,null,null,null,null,null,null,null,null,null,null,null,null,null,0]
[null,null,null,null,null,null,null,null,null,null,null,null,null,null,null,null,null,null,null,null,null,null,null,null,null,null,null,null,null,null,null,null,null,0,null,null,null,null,null,null,null,null,null,null,null,null,null,null,null,null,null,null,null,null,null,null,null,null,null,null,null,null,null,null,null,null,null,null,null,null,null,null,null,null,null,null,0,null,null,null,null,null,null,null,null,null,null,null,null,null,null,null,null,null,null,null,null,null,null,null,null,null,null,null,null,null,null,null,null,null,null,null,null,null,null,null,null,null,null,0]
[null,null,null,null,null,null,null,null,null,null,null,null,null,null,null,null,null,null,null,null,null,null,null,null,null,null,null,null,null,null,null,null,null,0,null,null,null,null,null,null,null,null,null,null,null,null,null,null,null,null,null,null,null,null,null,null,null,null,null,null,null,null,null,null,null,null,null,null,null,null,null,null,null,null,null,null,0,null,null,null,null,null,null,null,null,null,null,null,null,null,null,null,null,null,null,null,null,null,null,null,null,null,null,null,null,null,null,null,null,null,null,null,null,null,null,null,null,null,null,0]
[null,null,null,null,null,null,null,null,null,null,null,null,null,null,null,null,null,null,null,null,null,null,null,null,null,null,null,null,null,null,null,null,null,0,null,null,null,null,null,null,null,null,null,null,null,null,null,null,null,null,null,null,null,null,null,null,null,null,null,null,null,null,null,null,null,null,null,null,null,null,null,null,null,null,null,null,0,null,null,null,null,null,null,null,null,null,null,null,null,null,null,null,null,null,null,null,null,null,null,null,null,null,null,null,null,null,null,null,null,null,null,null,null,null,null,null,null,null,null,0]
["合　　計　",null,null,null,null,null,null,null,null,null,null,null,null,null,null,null,null,null,null,null,null,null,null,null,null,null,null,null,null,null,null,null,null,{"$f":"SUM(AH16:AP32)","v":359500},null,null,null,null,null,null,null,null,null,"合　　計　",null,null,null,null,null,null,null,null,null,null,null,null,null,null,null,null,null,null,null,null,null,null,null,null,null,null,null,null,null,null,null,null,{"$f":"SUM(BY16:CG32)","v":359500},null,null,null,null,null,null,null,null,null,"合　　計　",null,null,null,null,null,null,null,null,null,null,null,null,null,null,null,null,null,null,null,null,null,null,null,null,null,null,null,null,null,null,null,null,{"$f":"SUM(DP16:DX32)","v":359500}]
["※注文金額20万円以上の工事は、対応する注文書の注文番号をご記入ください。",null,null,null,null,null,null,null,null,null,null,null,null,null,null,null,null,null,null,null,null,null,null,null,null,null,null,null,null,null,null,null,null,null,null,null,null,null,null,null,null,null,null,"※注文金額20万円以上の工事は、対応する注文書の注文番号をご記入ください。",null,null,null,null,null,null,null,null,null,null,null,null,null,null,null,null,null,null,null,null,null,null,null,null,null,null,null,null,null,null,null,null,null,null,null,null,null,null,null,null,null,null,"※注文金額20万円以上の工事は、対応する注文書の注文番号をご記入ください。"]
["※物品・資材の納入、仮設材・重機車輌等リース料以外のご請求は工事用の内訳明細書及び集計請求書をご使用下さい。",null,null,null,null,null,null,null,null,null,null,null,null,null,null,null,null,null,null,null,null,null,null,null,null,null,null,null,null,null,null,null,null,null,null,null,null,null,null,null,null,null,null,"※物品・資材の納入、仮設材・重機車輌等リース料以外のご請求は工事用の内訳明細書及び集計請求書をご使用下さい。",null,null,null,null,null,null,null,null,null,null,null,null,null,null,null,null,null,null,null,null,null,null,null,null,null,null,null,null,null,null,null,null,null,null,null,null,null,null,null,null,null,null,"※物品・資材の納入、仮設材・重機車輌等リース料以外のご請求は工事用の内訳明細書及び集計請求書をご使用下さい。"]
["※現場ごとに集計し、集計請求書１部＋内訳明細書２部をご提出ください。",null,null,null,null,null,null,null,null,null,null,null,null,null,null,null,null,null,null,null,null,null,null,null,null,null,null,null,null,null,null,null,null,null,null,null,null,null,null,null,null,null,null,"※現場ごとに集計し、集計請求書１部＋内訳明細書２部をご提出ください。",null,null,null,null,null,null,null,null,null,null,null,null,null,null,null,null,null,null,null,null,null,null,null,null,null,null,null,null,null,null,null,null,null,null,null,null,null,null,null,null,null,null,"※現場ごとに集計し、集計請求書１部＋内訳明細書２部をご提出ください。"]